Unique Reference Number,Vendor Name,Subj Mapping 1,Subj Mapping 2,Subjective  Desc,Capital/Revenue,Line Amount,GL Posting Date,Directorate
WC50-0001,1ST HAND CARE LTD,Third Party Payments,Private Contractor Fees,73372-DOMICILIARY CARE,Revenue,"12,976.03",11/11/2014,Social Care & Inclusion
WC50-0002,247 CARS (WILLENHALL) LIMITED,Transport,Hire,52000-WITH DRIVER-HIRE OF VEHICLES,Revenue,-510.84,06/11/2014,Childrens
WC50-0003,247 CARS (WILLENHALL) LIMITED,Transport,Hire,52000-WITH DRIVER-HIRE OF VEHICLES,Revenue,266.40,10/11/2014,Childrens
WC50-0004,247 CARS (WILLENHALL) LIMITED,Transport,Hire,52000-WITH DRIVER-HIRE OF VEHICLES,Revenue,288.00,11/11/2014,Childrens
WC50-0005,247 CARS (WILLENHALL) LIMITED,Transport,Hire,52000-WITH DRIVER-HIRE OF VEHICLES,Revenue,300.00,11/11/2014,Childrens
WC50-0006,247 CARS (WILLENHALL) LIMITED,Transport,Hire,52000-WITH DRIVER-HIRE OF VEHICLES,Revenue,473.60,11/11/2014,Childrens
WC50-0007,247 CARS (WILLENHALL) LIMITED,Transport,Hire,52000-WITH DRIVER-HIRE OF VEHICLES,Revenue,504.00,11/11/2014,Childrens
WC50-0008,247 CARS (WILLENHALL) LIMITED,Transport,Hire,52000-WITH DRIVER-HIRE OF VEHICLES,Revenue,510.00,19/11/2014,Childrens
WC50-0009,247 CARS (WILLENHALL) LIMITED,Transport,Hire,52000-WITH DRIVER-HIRE OF VEHICLES,Revenue,532.80,10/11/2014,Childrens
WC50-0010,247 CARS (WILLENHALL) LIMITED,Transport,Hire,52000-WITH DRIVER-HIRE OF VEHICLES,Revenue,648.00,11/11/2014,Childrens
WC50-0011,247 CARS (WILLENHALL) LIMITED,Transport,Hire,52000-WITH DRIVER-HIRE OF VEHICLES,Revenue,720.00,05/11/2014,Childrens
WC50-0012,247 CARS (WILLENHALL) LIMITED,Transport,Hire,52000-WITH DRIVER-HIRE OF VEHICLES,Revenue,900.00,10/11/2014,Childrens
WC50-0013,247 CARS (WILLENHALL) LIMITED,Transport,Hire,52000-WITH DRIVER-HIRE OF VEHICLES,Revenue,900.00,10/11/2014,Childrens
WC50-0014,247 CARS (WILLENHALL) LIMITED,Transport,Hire,52000-WITH DRIVER-HIRE OF VEHICLES,Revenue,917.60,19/11/2014,Childrens
WC50-0015,247 CARS (WILLENHALL) LIMITED,Transport,Hire,52000-WITH DRIVER-HIRE OF VEHICLES,Revenue,"1,335.60",10/11/2014,Childrens
WC50-0016,39 ESSEX STREET LLP PFA,Supplies & Services,Other Supplies & Services,63116-EXTERNAL BARRISTERS-SERVICES-FEES,Revenue,"1,250.01",04/11/2014,Resources
WC50-0017,4 SIGHT EYECARE CENTRE 002,Employees,Other Staff Costs,34310-EYE TESTS-EMPLOYEES,Revenue,500.00,06/11/2014,Resources
WC50-0018,A 2 Z TAXIS (A2Z CARS),Transport,Hire,52000-WITH DRIVER-HIRE OF VEHICLES,Revenue,"1,547.00",19/11/2014,Childrens
WC50-0019,A D T FIRE AND SECURITY PLC,Third Party Payments,Private Contractor Fees,73002-SECURITY-PRIV CONTRACTOR FEES,Revenue,976.44,12/11/2014,Regeneration
WC50-0020,A D T FIRE AND SECURITY PLC,Third Party Payments,Private Contractor Fees,73025-PROFESSIONAL SERVICES-PRIV CONTRACTOR & OTHER AGENCIES,Revenue,"3,036.41",03/11/2014,Neighbourhood Services
WC50-0021,A D T FIRE AND SECURITY PLC,Supplies & Services,"Equip,Furniture & Materials",60008-MAINTENANCE-FURNITURE & EQUIPMENT,Revenue,"4,050.00",14/11/2014,Social Care & Inclusion
WC50-0022,A F BLAKEMORE & SON LTD,Supplies & Services,Provisions,61002-DRY FOODS-PROVISIONS,Revenue,262.19,14/11/2014,Neighbourhood Services
WC50-0023,A F BLAKEMORE & SON LTD,Supplies & Services,Provisions,61016-FOOD AND BEVERAGES-PROVISIONS,Revenue,275.94,04/11/2014,Social Care & Inclusion
WC50-0024,A F BLAKEMORE & SON LTD,Supplies & Services,Provisions,61305-CATERING,Revenue,293.25,03/11/2014,Social Care & Inclusion
WC50-0025,A F BLAKEMORE & SON LTD,Supplies & Services,Provisions,61305-CATERING,Revenue,298.12,19/11/2014,Social Care & Inclusion
WC50-0026,A F BLAKEMORE & SON LTD,Supplies & Services,Provisions,61016-FOOD AND BEVERAGES-PROVISIONS,Revenue,301.66,01/11/2014,Social Care & Inclusion
WC50-0027,A F BLAKEMORE & SON LTD,Supplies & Services,Provisions,61002-DRY FOODS-PROVISIONS,Revenue,313.28,14/11/2014,Neighbourhood Services
WC50-0028,A F BLAKEMORE & SON LTD,Supplies & Services,Provisions,61305-CATERING,Revenue,613.15,03/11/2014,Social Care & Inclusion
WC50-0029,A F BLAKEMORE & SON LTD,Supplies & Services,Provisions,61008-CONFECTIONERY/SNACKS-PROVISIONS,Revenue,633.12,18/11/2014,Neighbourhood Services
WC50-0030,A F BLAKEMORE & SON LTD,Supplies & Services,Provisions,61006-FRUIT & VEGETABLES OTHER-PROVISIONS,Revenue,673.27,07/11/2014,Social Care & Inclusion
WC50-0031,REDACTED,Third Party Payments,Private Contractor Fees,74006-HOLIDAY/CHRISTMAS ALLOWANCE-FOSTER CARERS-OTH AGENCY PROVISION,Revenue,333.92,24/11/2014,Childrens
WC50-0032,A KARIMS CHUCKERY PHARMACY,Supplies & Services,Services,63000-PROFESSIONAL FEES AND SERVICES,Revenue,52.50,14/11/2014,Neighbourhood Services
WC50-0033,A KARIMS CHUCKERY PHARMACY,Supplies & Services,Services,63000-PROFESSIONAL FEES AND SERVICES,Revenue,118.05,14/11/2014,Neighbourhood Services
WC50-0034,A KARIMS CHUCKERY PHARMACY,Supplies & Services,Services,63000-PROFESSIONAL FEES AND SERVICES,Revenue,"1,869.70",14/11/2014,Neighbourhood Services
WC50-0035,REDACTED,Supplies & Services,Other Supplies & Services,62515-MISCELLANEOUS SUPPLIES,Revenue,896.24,10/11/2014,Childrens
WC50-0036,REDACTED,Third Party Payments,Private Contractor Fees,74006-HOLIDAY/CHRISTMAS ALLOWANCE-FOSTER CARERS-OTH AGENCY PROVISION,Revenue,"2,589.41",10/11/2014,Childrens
WC50-0037,A&R VEHICLE SERVICES LIMITED,Third Party Payments,Private Contractor Fees,73025-PROFESSIONAL SERVICES-PRIV CONTRACTOR & OTHER AGENCIES,Revenue,590.00,24/11/2014,Neighbourhood Services
WC50-0038,AAA BEE JAY TRAVEL,Transport,Hire,52000-WITH DRIVER-HIRE OF VEHICLES,Revenue,650.00,04/11/2014,Childrens
WC50-0039,AAA BEE JAY TRAVEL,Transport,Hire,52000-WITH DRIVER-HIRE OF VEHICLES,Revenue,"1,290.00",04/11/2014,Childrens
WC50-0040,REDACTED,Transfer Payments,Transfer Payments,76422-DIRECT PAYMENTS TO SOCIAL SERVICES CLIENTS,Revenue,345.24,11/11/2014,Childrens
WC50-0041,REDACTED,Third Party Payments,Private Contractor Fees,74006-HOLIDAY/CHRISTMAS ALLOWANCE-FOSTER CARERS-OTH AGENCY PROVISION,Revenue,799.25,24/11/2014,Childrens
WC50-0042,ABBEY COURT NURSING & RESIDEN,Third Party Payments,Private Contractor Fees,73373-RESIDENTIAL & NURSING CARE PLACEMENTS,Revenue,"1,867.50",11/11/2014,Social Care & Inclusion
WC50-0043,ABBEY COURT NURSING & RESIDEN,Third Party Payments,Private Contractor Fees,73373-RESIDENTIAL & NURSING CARE PLACEMENTS,Revenue,"1,867.50",11/11/2014,Social Care & Inclusion
WC50-0044,ABBEY COURT NURSING & RESIDEN,Third Party Payments,Private Contractor Fees,73373-RESIDENTIAL & NURSING CARE PLACEMENTS,Revenue,"1,867.50",11/11/2014,Social Care & Inclusion
WC50-0045,ABBEY HEALTHCARE HOMES LTD,Third Party Payments,Private Contractor Fees,73373-RESIDENTIAL & NURSING CARE PLACEMENTS,Revenue,"2,243.60",11/11/2014,Social Care & Inclusion
WC50-0046,ABBEYMERE CARE CENTRE,Third Party Payments,Private Contractor Fees,73373-RESIDENTIAL & NURSING CARE PLACEMENTS,Revenue,"1,528.87",19/11/2014,Social Care & Inclusion
WC50-0047,ABC DAY NURSERY (WILLENHALL) LIMITED,Third Party Payments,Grants to Other Orgs,66505-OTHER-GRANTS TO OTHER ORGS,Revenue,"8,789.82",24/11/2014,Childrens
WC50-0048,ABC FOSTERING,Third Party Payments,Private Contractor Fees,74037-INDEPENDENT FOSTER CARE-OTH AGENCY PROVISION,Revenue,"2,884.20",17/11/2014,Childrens
WC50-0049,ABC FOSTERING,Third Party Payments,Private Contractor Fees,74037-INDEPENDENT FOSTER CARE-OTH AGENCY PROVISION,Revenue,"3,036.00",17/11/2014,Childrens
WC50-0050,ABC TEACHERS LIMITED,Employees,Agency,34305-AGENCY STAFF-EMPLOYEES,Revenue,677.97,06/11/2014,Childrens
WC50-0051,REDACTED,Transfer Payments,Transfer Payments,76422-DIRECT PAYMENTS TO SOCIAL SERVICES CLIENTS,Revenue,"2,357.99",11/11/2014,Social Care & Inclusion
WC50-0052,ABLEWELL CARS,Transport,Hire,52000-WITH DRIVER-HIRE OF VEHICLES,Revenue,271.80,25/11/2014,Childrens
WC50-0053,ABLEWELL CARS,Transport,Hire,52000-WITH DRIVER-HIRE OF VEHICLES,Revenue,300.00,19/11/2014,Childrens
WC50-0054,ABLEWELL CARS,Transport,Hire,52000-WITH DRIVER-HIRE OF VEHICLES,Revenue,330.00,25/11/2014,Childrens
WC50-0055,ABLEWELL CARS,Transport,Hire,52000-WITH DRIVER-HIRE OF VEHICLES,Revenue,330.00,25/11/2014,Childrens
WC50-0056,ABLEWELL CARS,Transport,Hire,52000-WITH DRIVER-HIRE OF VEHICLES,Revenue,371.00,12/11/2014,Childrens
WC50-0057,ABLEWELL CARS,Transport,Hire,52000-WITH DRIVER-HIRE OF VEHICLES,Revenue,530.00,10/11/2014,Childrens
WC50-0058,ABLEWELL CARS,Transport,Hire,52000-WITH DRIVER-HIRE OF VEHICLES,Revenue,530.00,10/11/2014,Childrens
WC50-0059,ABLEWELL CARS,Transport,Hire,52000-WITH DRIVER-HIRE OF VEHICLES,Revenue,530.00,12/11/2014,Childrens
WC50-0060,ABLEWELL CARS,Transport,Hire,52000-WITH DRIVER-HIRE OF VEHICLES,Revenue,530.00,25/11/2014,Childrens
WC50-0061,ABU BAKR NURSERY,Third Party Payments,Grants to Other Orgs,66505-OTHER-GRANTS TO OTHER ORGS,Revenue,"5,363.28",24/11/2014,Childrens
WC50-0062,ACCORD HOUSING ASSOCIATION LTD#135,Third Party Payments,Private Contractor Fees,73373-RESIDENTIAL & NURSING CARE PLACEMENTS,Revenue,"4,640.48",19/11/2014,Social Care & Inclusion
WC50-0063,ACCORD HOUSING ASSOCIATION LTD#135,Third Party Payments,Private Contractor Fees,73373-RESIDENTIAL & NURSING CARE PLACEMENTS,Revenue,"4,640.48",19/11/2014,Social Care & Inclusion
WC50-0064,ACCORD HOUSING ASSOCIATION LTD#135,Third Party Payments,Private Contractor Fees,73373-RESIDENTIAL & NURSING CARE PLACEMENTS,Revenue,"4,640.48",19/11/2014,Social Care & Inclusion
WC50-0065,ACCORD HOUSING ASSOCIATION LTD#135,Third Party Payments,Private Contractor Fees,73373-RESIDENTIAL & NURSING CARE PLACEMENTS,Revenue,"4,640.48",19/11/2014,Social Care & Inclusion
WC50-0066,ACCORD HOUSING ASSOCIATION LTD#135,Third Party Payments,Private Contractor Fees,73373-RESIDENTIAL & NURSING CARE PLACEMENTS,Revenue,"6,476.61",19/11/2014,Social Care & Inclusion
WC50-0067,ACCORD HOUSING ASSOCIATION LTD#135,Third Party Payments,Private Contractor Fees,73373-RESIDENTIAL & NURSING CARE PLACEMENTS,Revenue,"6,476.61",19/11/2014,Social Care & Inclusion
WC50-0068,ACCORD HOUSING ASSOCIATION LTD#135,Third Party Payments,Private Contractor Fees,73373-RESIDENTIAL & NURSING CARE PLACEMENTS,Revenue,"6,476.61",19/11/2014,Social Care & Inclusion
WC50-0069,ACE CARE AGENCY,Third Party Payments,Private Contractor Fees,73372-DOMICILIARY CARE,Revenue,283.29,05/11/2014,Social Care & Inclusion
WC50-0070,ACE CARE AGENCY,Third Party Payments,Private Contractor Fees,73372-DOMICILIARY CARE,Revenue,519.40,01/11/2014,Social Care & Inclusion
WC50-0071,ACE CARE AGENCY,Third Party Payments,Private Contractor Fees,73372-DOMICILIARY CARE,Revenue,647.52,01/11/2014,Social Care & Inclusion
WC50-0072,ACE PA HIRE,Supplies & Services,Other Supplies & Services,83900-CIVIC EVENTS-OTHER DEMOCRACY COSTS,Revenue,300.00,21/11/2014,Resources
WC50-0073,ACE PA HIRE,Supplies & Services,Other Supplies & Services,83900-CIVIC EVENTS-OTHER DEMOCRACY COSTS,Revenue,600.00,21/11/2014,Resources
WC50-0074,ACE RADIO CARS,Transport,Hire,52000-WITH DRIVER-HIRE OF VEHICLES,Revenue,"1,464.30",04/11/2014,Childrens
WC50-0075,ACEPAY LTD (COTTAGE NUR HOME),Third Party Payments,Private Contractor Fees,73373-RESIDENTIAL & NURSING CARE PLACEMENTS,Revenue,345.21,11/11/2014,Social Care & Inclusion
WC50-0076,ACEPAY LTD (COTTAGE NUR HOME),Third Party Payments,Private Contractor Fees,73373-RESIDENTIAL & NURSING CARE PLACEMENTS,Revenue,"1,460.40",11/11/2014,Social Care & Inclusion
WC50-0077,ACEPAY LTD (COTTAGE NUR HOME),Third Party Payments,Private Contractor Fees,73373-RESIDENTIAL & NURSING CARE PLACEMENTS,Revenue,"1,933.16",11/11/2014,Social Care & Inclusion
WC50-0078,ACEPAY LTD (COTTAGE NUR HOME),Third Party Payments,Private Contractor Fees,73373-RESIDENTIAL & NURSING CARE PLACEMENTS,Revenue,"1,933.16",11/11/2014,Social Care & Inclusion
WC50-0079,ACEPAY LTD (COTTAGE NUR HOME),Third Party Payments,Private Contractor Fees,73373-RESIDENTIAL & NURSING CARE PLACEMENTS,Revenue,"1,933.16",11/11/2014,Social Care & Inclusion
WC50-0080,ACEPAY LTD (COTTAGE NUR HOME),Third Party Payments,Private Contractor Fees,73373-RESIDENTIAL & NURSING CARE PLACEMENTS,Revenue,"1,933.16",11/11/2014,Social Care & Inclusion
WC50-0081,ACEPAY LTD (COTTAGE NUR HOME),Third Party Payments,Private Contractor Fees,73373-RESIDENTIAL & NURSING CARE PLACEMENTS,Revenue,"1,979.20",11/11/2014,Social Care & Inclusion
WC50-0082,ACEPAY LTD (COTTAGE NUR HOME),Third Party Payments,Private Contractor Fees,73373-RESIDENTIAL & NURSING CARE PLACEMENTS,Revenue,"1,979.20",11/11/2014,Social Care & Inclusion
WC50-0083,ACEPAY LTD (COTTAGE NUR HOME),Third Party Payments,Private Contractor Fees,73373-RESIDENTIAL & NURSING CARE PLACEMENTS,Revenue,"1,979.20",11/11/2014,Social Care & Inclusion
WC50-0084,ACEPAY LTD (COTTAGE NUR HOME),Third Party Payments,Private Contractor Fees,73373-RESIDENTIAL & NURSING CARE PLACEMENTS,Revenue,"2,372.32",11/11/2014,Social Care & Inclusion
WC50-0085,ACEPAY LTD (COTTAGE NUR HOME),Third Party Payments,Private Contractor Fees,73373-RESIDENTIAL & NURSING CARE PLACEMENTS,Revenue,"4,211.53",11/11/2014,Social Care & Inclusion
WC50-0086,ACORN CARE LTD,Third Party Payments,Private Contractor Fees,73373-RESIDENTIAL & NURSING CARE PLACEMENTS,Revenue,"14,361.60",11/11/2014,Social Care & Inclusion
WC50-0087,ACORN FOSTERING SERVICES LTD,Third Party Payments,Private Contractor Fees,74037-INDEPENDENT FOSTER CARE-OTH AGENCY PROVISION,Revenue,"3,609.29",17/11/2014,Childrens
WC50-0088,ACORN HOUSE FOSTERING SERVICES LTD,Third Party Payments,Private Contractor Fees,74037-INDEPENDENT FOSTER CARE-OTH AGENCY PROVISION,Revenue,"2,563.35",05/11/2014,Childrens
WC50-0089,ACORN HOUSE FOSTERING SERVICES LTD,Third Party Payments,Private Contractor Fees,74037-INDEPENDENT FOSTER CARE-OTH AGENCY PROVISION,Revenue,"2,615.79",05/11/2014,Childrens
WC50-0090,ACORN REST HOME,Third Party Payments,Private Contractor Fees,73373-RESIDENTIAL & NURSING CARE PLACEMENTS,Revenue,"1,460.40",04/11/2014,Social Care & Inclusion
WC50-0091,ACORN REST HOME,Third Party Payments,Private Contractor Fees,73373-RESIDENTIAL & NURSING CARE PLACEMENTS,Revenue,"1,460.40",25/11/2014,Social Care & Inclusion
WC50-0092,ACORNS CHILDRENS HOSPICE TRUST,Supplies & Services,Services,63000-PROFESSIONAL FEES AND SERVICES,Revenue,750.00,24/11/2014,Childrens
WC50-0093,ACTION FOR CHILDREN,Third Party Payments,Private Contractor Fees,74037-INDEPENDENT FOSTER CARE-OTH AGENCY PROVISION,Revenue,"3,405.34",17/11/2014,Childrens
WC50-0094,ACTION ON HEARING LOSS,Third Party Payments,Private Contractor Fees,73373-RESIDENTIAL & NURSING CARE PLACEMENTS,Revenue,"3,593.71",25/11/2014,Social Care & Inclusion
WC50-0095,ACTION ON HEARING LOSS,Third Party Payments,Private Contractor Fees,73373-RESIDENTIAL & NURSING CARE PLACEMENTS,Revenue,"3,593.71",25/11/2014,Social Care & Inclusion
WC50-0096,REDACTED,Transfer Payments,Transfer Payments,76422-DIRECT PAYMENTS TO SOCIAL SERVICES CLIENTS,Revenue,487.60,11/11/2014,Childrens
WC50-0097,REDACTED,Transfer Payments,Transfer Payments,76422-DIRECT PAYMENTS TO SOCIAL SERVICES CLIENTS,Revenue,384.00,11/11/2014,Social Care & Inclusion
WC50-0098,ADFLOOR INDUSTRIAL LIMITED,Supplies & Services,Services,63000-PROFESSIONAL FEES AND SERVICES,Revenue,495.00,18/11/2014,Neighbourhood Services
WC50-0099,REDACTED,Transfer Payments,Transfer Payments,76422-DIRECT PAYMENTS TO SOCIAL SERVICES CLIENTS,Revenue,375.56,18/11/2014,Social Care & Inclusion
WC50-0100,ADMIRAL SELF STORAGE LTD,Supplies & Services,Services,63000-PROFESSIONAL FEES AND SERVICES,Revenue,419.32,24/11/2014,Resources
WC50-0101,ADMIRAL SELF STORAGE LTD,Supplies & Services,Other Supplies & Services,63115-HIRE OF ROOM (duplicate please use 63128)-SERVICES-FEES,Revenue,"1,785.89",13/11/2014,Neighbourhood Services
WC50-0102,ADMIRAL SELF STORAGE LTD,Supplies & Services,Other Supplies & Services,63115-HIRE OF ROOM (duplicate please use 63128)-SERVICES-FEES,Revenue,"1,785.95",13/11/2014,Neighbourhood Services
WC50-0103,ADOPTION UK,Supplies & Services,Communications & Computing,68001-PUBLICITY & ADVERTISING (NOT STAFF ADVERTISING),Revenue,435.00,17/11/2014,Childrens
WC50-0104,ADRIAN CARROLL LTD,Capital,Capital,01007-ARCHITECTS ASSISTANTS TIME,Capital,800.00,10/11/2014,Childrens
WC50-0105,REDACTED,Third Party Payments,Private Contractor Fees,74006-HOLIDAY/CHRISTMAS ALLOWANCE-FOSTER CARERS-OTH AGENCY PROVISION,Revenue,681.52,24/11/2014,Childrens
WC50-0106,ADS ELECTRICAL & HIGHWAY SERVICES LTD,Supplies & Services,"Equip,Furniture & Materials",60534-VEHICLE TESTING STATION-MATERIALS,Revenue,310.00,14/11/2014,Neighbourhood Services
WC50-0107,ADS ELECTRICAL & HIGHWAY SERVICES LTD,Supplies & Services,"Equip,Furniture & Materials",60534-VEHICLE TESTING STATION-MATERIALS,Revenue,387.00,06/11/2014,Neighbourhood Services
WC50-0108,ADS ELECTRICAL & HIGHWAY SERVICES LTD,Supplies & Services,Services,63000-PROFESSIONAL FEES AND SERVICES,Revenue,500.00,07/11/2014,Neighbourhood Services
WC50-0109,ADS ELECTRICAL & HIGHWAY SERVICES LTD,Supplies & Services,Services,63000-PROFESSIONAL FEES AND SERVICES,Revenue,580.00,18/11/2014,Neighbourhood Services
WC50-0110,ADVANCE HEALTH CARE (UK) LTD,Employees,Agency,34305-AGENCY STAFF-EMPLOYEES,Revenue,370.50,07/11/2014,Social Care & Inclusion
WC50-0111,ADVANCE HEALTH CARE (UK) LTD,Employees,Agency,34305-AGENCY STAFF-EMPLOYEES,Revenue,689.00,20/11/2014,Social Care & Inclusion
WC50-0112,ADVANCE HEALTH CARE (UK) LTD,Employees,Agency,34305-AGENCY STAFF-EMPLOYEES,Revenue,767.00,01/11/2014,Social Care & Inclusion
WC50-0113,ADVANCE HEALTH CARE (UK) LTD,Employees,Agency,34305-AGENCY STAFF-EMPLOYEES,Revenue,994.50,07/11/2014,Social Care & Inclusion
WC50-0114,ADVANCE HEALTH CARE (UK) LTD,Employees,Agency,34305-AGENCY STAFF-EMPLOYEES,Revenue,"1,430.00",07/11/2014,Social Care & Inclusion
WC50-0115,ADVANCE HEALTH CARE (UK) LTD,Third Party Payments,Private Contractor Fees,73372-DOMICILIARY CARE,Revenue,"19,297.09",12/11/2014,Social Care & Inclusion
WC50-0116,ADVANCED CHILDCARE LTD,Third Party Payments,Private Contractor Fees,74037-INDEPENDENT FOSTER CARE-OTH AGENCY PROVISION,Revenue,433.76,20/11/2014,Childrens
WC50-0117,ADVANCED CHILDCARE LTD,Third Party Payments,Private Contractor Fees,74036-EXTERNAL RESIDENTIAL CARE-OTH AGENCY PROVISION,Revenue,"2,571.30",25/11/2014,Childrens
WC50-0118,ADVANCED CHILDCARE LTD,Third Party Payments,Private Contractor Fees,74037-INDEPENDENT FOSTER CARE-OTH AGENCY PROVISION,Revenue,"3,081.78",20/11/2014,Childrens
WC50-0119,ADVANCED CHILDCARE LTD,Third Party Payments,Private Contractor Fees,74037-INDEPENDENT FOSTER CARE-OTH AGENCY PROVISION,Revenue,"3,103.10",20/11/2014,Childrens
WC50-0120,ADVANCED CHILDCARE LTD,Third Party Payments,Private Contractor Fees,74036-EXTERNAL RESIDENTIAL CARE-OTH AGENCY PROVISION,Revenue,"13,877.10",25/11/2014,Childrens
WC50-0121,ADVANCED CONTRACTS (MIDLANDS) LTD,Premises,Premises-Repairs & Maintenance,"40000-REPAIRS,ALTERATIONS & MAINTENANCE-PREM",Revenue,291.30,14/11/2014,Regeneration
WC50-0122,ADVANCED CONTRACTS (MIDLANDS) LTD,Capital,Capital,01006-SITE WORKS MAIN CONTRACTORS,Capital,448.00,14/11/2014,Regeneration
WC50-0123,ADVANCED CONTRACTS (MIDLANDS) LTD,Premises,Premises-Repairs & Maintenance,"40000-REPAIRS,ALTERATIONS & MAINTENANCE-PREM",Revenue,455.00,14/11/2014,Regeneration
WC50-0124,ADVANCED CONTRACTS (MIDLANDS) LTD,Third Party Payments,Private Contractor Fees,73025-PROFESSIONAL SERVICES-PRIV CONTRACTOR & OTHER AGENCIES,Revenue,898.91,20/11/2014,Regeneration
WC50-0125,ADVANCED CONTRACTS (MIDLANDS) LTD,Premises,Premises-Repairs & Maintenance,"40000-REPAIRS,ALTERATIONS & MAINTENANCE-PREM",Revenue,"2,388.00",20/11/2014,Regeneration
WC50-0126,ADVANCED CONTRACTS (MIDLANDS) LTD,Premises,Premises-Repairs & Maintenance,"40000-REPAIRS,ALTERATIONS & MAINTENANCE-PREM",Revenue,"2,445.00",17/11/2014,Regeneration
WC50-0127,ADVANCED CONTRACTS (MIDLANDS) LTD,Premises,Premises-Repairs & Maintenance,"40000-REPAIRS,ALTERATIONS & MAINTENANCE-PREM",Revenue,"2,495.00",26/11/2014,Regeneration
WC50-0128,ADVANCED CONTRACTS (MIDLANDS) LTD,Premises,Premises-Repairs & Maintenance,"40000-REPAIRS,ALTERATIONS & MAINTENANCE-PREM",Revenue,"7,462.00",05/11/2014,Regeneration
WC50-0129,ADVANCED HEALTH AND CARE,Supplies & Services,Services,63000-PROFESSIONAL FEES AND SERVICES,Revenue,400.00,07/11/2014,Social Care & Inclusion
WC50-0130,ADVANCED HEALTH AND CARE,Supplies & Services,Services,63000-PROFESSIONAL FEES AND SERVICES,Revenue,550.00,07/11/2014,Social Care & Inclusion
WC50-0131,ADVENTURELAND DAY NURSERY,Third Party Payments,Grants to Other Orgs,66505-OTHER-GRANTS TO OTHER ORGS,Revenue,"4,990.83",24/11/2014,Childrens
WC50-0132,AEBI SCHMIDT UK LIMITED,Third Party Payments,Private Contractor Fees,73025-PROFESSIONAL SERVICES-PRIV CONTRACTOR & OTHER AGENCIES,Revenue,430.88,25/11/2014,Neighbourhood Services
WC50-0133,AECOM LIMITED,Capital,Capital,01001-OTHER CONSULTANTS FEES,Capital,"1,670.67",11/11/2014,Regeneration
WC50-0134,AECOM LIMITED,Capital,Capital,01006-SITE WORKS MAIN CONTRACTORS,Capital,"2,172.02",11/11/2014,Regeneration
WC50-0135,AGE UK WALSALL,Transfer Payments,Transfer Payments,76423-DIRECT PAYMENTS SUPPORT,Revenue,"2,352.00",05/11/2014,Social Care & Inclusion
WC50-0136,AGGORA TECHNICAL LTD,Supplies & Services,"Printing, Stationery & Office Exp",63500-POSTAGES AND COURIER SERVICES,Revenue,59.00,13/11/2014,Neighbourhood Services
WC50-0137,AGGORA TECHNICAL LTD,Supplies & Services,"Equip,Furniture & Materials",60006-NEW-FURNITURE & EQUIPMENT,Revenue,407.00,06/11/2014,Neighbourhood Services
WC50-0138,AGGORA TECHNICAL LTD,Supplies & Services,"Equip,Furniture & Materials",60006-NEW-FURNITURE & EQUIPMENT,Revenue,945.00,13/11/2014,Neighbourhood Services
WC50-0139,AGINCARE UK LTD,Third Party Payments,Private Contractor Fees,73372-DOMICILIARY CARE,Revenue,308.00,03/11/2014,Social Care & Inclusion
WC50-0140,AGINCARE UK LTD,Third Party Payments,Private Contractor Fees,73372-DOMICILIARY CARE,Revenue,"1,713.60",03/11/2014,Social Care & Inclusion
WC50-0141,AGINCARE UK LTD,Third Party Payments,Private Contractor Fees,73372-DOMICILIARY CARE,Revenue,"1,995.12",03/11/2014,Social Care & Inclusion
WC50-0142,REDACTED,Transfer Payments,Transfer Payments,76422-DIRECT PAYMENTS TO SOCIAL SERVICES CLIENTS,Revenue,"1,882.00",11/11/2014,Social Care & Inclusion
WC50-0143,REDACTED,Transfer Payments,Transfer Payments,76422-DIRECT PAYMENTS TO SOCIAL SERVICES CLIENTS,Revenue,936.52,11/11/2014,Social Care & Inclusion
WC50-0144,ALBEMARLE,Supplies & Services,Services,63000-PROFESSIONAL FEES AND SERVICES,Revenue,"2,000.00",26/11/2014,Neighbourhood Services
WC50-0145,REDACTED,Transfer Payments,Transfer Payments,76422-DIRECT PAYMENTS TO SOCIAL SERVICES CLIENTS,Revenue,667.80,11/11/2014,Social Care & Inclusion
WC50-0146,ALBERT PRITCHARD INFANT AND WOOD GREEN JUNIOR FEDERATED SCHOOLS,Transfer Payments,Transfer Payments,77300-ISB-FORMULA ALLOCATION,Revenue,900.00,25/11/2014,Childrens
WC50-0147,ALCHEMY FIREWORKS,Supplies & Services,Other Supplies & Services,62523-EVENTS,Revenue,"12,000.00",17/11/2014,Neighbourhood Services
WC50-0148,ALDERGROVE MANOR CARE HOME,Third Party Payments,Private Contractor Fees,73373-RESIDENTIAL & NURSING CARE PLACEMENTS,Revenue,"1,784.48",19/11/2014,Social Care & Inclusion
WC50-0149,ALDRIDGE & BARONS LIMITED,Transport,Hire,52000-WITH DRIVER-HIRE OF VEHICLES,Revenue,295.00,04/11/2014,Childrens
WC50-0150,ALDRIDGE & BARONS LIMITED,Transport,Car Allowances,53004-TAXIS-TRAVEL ALLOWANCES,Revenue,600.00,18/11/2014,Childrens
WC50-0151,ALDRIDGE & BARONS LIMITED,Transport,Car Allowances,53004-TAXIS-TRAVEL ALLOWANCES,Revenue,820.00,17/11/2014,Childrens
WC50-0152,ALDRIDGE & BARONS LIMITED,Transport,Car Allowances,53004-TAXIS-TRAVEL ALLOWANCES,Revenue,836.00,17/11/2014,Childrens
WC50-0153,ALDRIDGE & BARONS LIMITED,Transport,Hire,52001-HIRE OF VEHICLES,Revenue,959.34,01/11/2014,Social Care & Inclusion
WC50-0154,ALDRIDGE & BARONS LIMITED,Supplies & Services,Services,63000-PROFESSIONAL FEES AND SERVICES,Revenue,"1,054.00",01/11/2014,Childrens
WC50-0155,ALDRIDGE & BARONS LIMITED,Transport,Hire,52000-WITH DRIVER-HIRE OF VEHICLES,Revenue,"1,190.00",04/11/2014,Childrens
WC50-0156,ALDRIDGE & BARONS LIMITED,Transport,Hire,52000-WITH DRIVER-HIRE OF VEHICLES,Revenue,"1,249.12",04/11/2014,Childrens
WC50-0157,ALDRIDGE & BARONS LIMITED,Transport,Hire,52000-WITH DRIVER-HIRE OF VEHICLES,Revenue,"1,282.50",04/11/2014,Childrens
WC50-0158,ALDRIDGE & BARONS LIMITED,Transport,Hire,52000-WITH DRIVER-HIRE OF VEHICLES,Revenue,"1,520.00",20/11/2014,Childrens
WC50-0159,ALDRIDGE & BARONS LIMITED,Transport,Car Allowances,53004-TAXIS-TRAVEL ALLOWANCES,Revenue,"1,540.00",17/11/2014,Childrens
WC50-0160,ALDRIDGE & BARONS LIMITED,Transport,Hire,52000-WITH DRIVER-HIRE OF VEHICLES,Revenue,"2,120.00",01/11/2014,Childrens
WC50-0161,ALDRIDGE & BARONS LIMITED,Transport,Hire,52000-WITH DRIVER-HIRE OF VEHICLES,Revenue,"2,242.10",04/11/2014,Childrens
WC50-0162,ALDRIDGE & BARONS LIMITED,Transport,Hire,52000-WITH DRIVER-HIRE OF VEHICLES,Revenue,"2,254.20",04/11/2014,Childrens
WC50-0163,ALDRIDGE & BARONS LIMITED,Transport,Hire,52000-WITH DRIVER-HIRE OF VEHICLES,Revenue,"2,434.28",04/11/2014,Childrens
WC50-0164,ALDRIDGE & BARONS LIMITED,Transport,Hire,52000-WITH DRIVER-HIRE OF VEHICLES,Revenue,"2,595.84",04/11/2014,Childrens
WC50-0165,ALDRIDGE & BARONS LIMITED,Transport,Hire,52000-WITH DRIVER-HIRE OF VEHICLES,Revenue,"2,671.40",04/11/2014,Childrens
WC50-0166,ALDRIDGE & BARONS LIMITED,Transport,Hire,52000-WITH DRIVER-HIRE OF VEHICLES,Revenue,"3,192.00",04/11/2014,Childrens
WC50-0167,ALDRIDGE & BARONS LIMITED,Transport,Hire,52000-WITH DRIVER-HIRE OF VEHICLES,Revenue,"3,648.00",04/11/2014,Childrens
WC50-0168,ALDRIDGE & BARONS LIMITED,Transport,Hire,52000-WITH DRIVER-HIRE OF VEHICLES,Revenue,"4,666.40",04/11/2014,Childrens
WC50-0169,ALDRIDGE SCHOOL A SCIENCE COLLEGE.,Transfer Payments,Transfer Payments,77300-ISB-FORMULA ALLOCATION,Revenue,350.00,12/11/2014,Childrens
WC50-0170,ALDRIDGE SCHOOL A SCIENCE COLLEGE.,Transfer Payments,Transfer Payments,77300-ISB-FORMULA ALLOCATION,Revenue,350.00,12/11/2014,Childrens
WC50-0171,ALDRIDGE SCHOOL A SCIENCE COLLEGE.,Transfer Payments,Transfer Payments,77300-ISB-FORMULA ALLOCATION,Revenue,350.00,12/11/2014,Childrens
WC50-0172,ALDRIDGE SCHOOL A SCIENCE COLLEGE.,Transfer Payments,Transfer Payments,77300-ISB-FORMULA ALLOCATION,Revenue,350.00,12/11/2014,Childrens
WC50-0173,ALDRIDGE SCHOOL A SCIENCE COLLEGE.,Transfer Payments,Transfer Payments,77300-ISB-FORMULA ALLOCATION,Revenue,350.00,12/11/2014,Childrens
WC50-0174,ALDRIDGE YOUTH THEATRE,Third Party Payments,Grants to Other Orgs,66500-GRANTS TO OTHER ORGS,Revenue,"4,129.42",03/11/2014,Neighbourhood Services
WC50-0175,REDACTED,Transfer Payments,Transfer Payments,76422-DIRECT PAYMENTS TO SOCIAL SERVICES CLIENTS,Revenue,"1,204.00",11/11/2014,Social Care & Inclusion
WC50-0176,ALEXANDRA HOUSE CARE SERVICES LTD T/A STONEBRIDGE NURSING HOME,Third Party Payments,Private Contractor Fees,73373-RESIDENTIAL & NURSING CARE PLACEMENTS,Revenue,"6,960.84",04/11/2014,Social Care & Inclusion
WC50-0177,REDACTED,Transfer Payments,Transfer Payments,76422-DIRECT PAYMENTS TO SOCIAL SERVICES CLIENTS,Revenue,582.66,11/11/2014,Childrens
WC50-0178,REDACTED,Transfer Payments,Transfer Payments,76422-DIRECT PAYMENTS TO SOCIAL SERVICES CLIENTS,Revenue,854.00,11/11/2014,Social Care & Inclusion
WC50-0179,REDACTED,Transfer Payments,Transfer Payments,76422-DIRECT PAYMENTS TO SOCIAL SERVICES CLIENTS,Revenue,328.80,11/11/2014,Social Care & Inclusion
WC50-0180,REDACTED,Third Party Payments,Private Contractor Fees,74006-HOLIDAY/CHRISTMAS ALLOWANCE-FOSTER CARERS-OTH AGENCY PROVISION,Revenue,"1,142.70",10/11/2014,Childrens
WC50-0181,REDACTED,Supplies & Services,Other Supplies & Services,62515-MISCELLANEOUS SUPPLIES,Revenue,"1,428.44",10/11/2014,Childrens
WC50-0182,REDACTED,Third Party Payments,Grants to Other Orgs,66505-OTHER-GRANTS TO OTHER ORGS,Revenue,310.44,24/11/2014,Childrens
WC50-0183,REDACTED,Third Party Payments,Private Contractor Fees,74006-HOLIDAY/CHRISTMAS ALLOWANCE-FOSTER CARERS-OTH AGENCY PROVISION,Revenue,542.80,24/11/2014,Childrens
WC50-0184,ALLIED HEALTHCARE GROUP LTD,Third Party Payments,Private Contractor Fees,73372-DOMICILIARY CARE,Revenue,"3,934.84",26/11/2014,Social Care & Inclusion
WC50-0185,ALLSORTS OFFICE SUPPLIES LTD,Capital,Capital,01044-PURCHASE OF FURNITURE & EQUIPMENT,Capital,606.00,11/11/2014,Regeneration
WC50-0186,ALLSORTS OFFICE SUPPLIES LTD,Capital,Capital,01044-PURCHASE OF FURNITURE & EQUIPMENT,Capital,837.00,12/11/2014,Regeneration
WC50-0187,ALLSORTS OFFICE SUPPLIES LTD,Capital,Capital,01044-PURCHASE OF FURNITURE & EQUIPMENT,Capital,979.00,12/11/2014,Regeneration
WC50-0188,ALLSTAR BUSINESS SOLUTIONS LTD,Transport,Other Transport,50301-FUEL-TRANSPORT RUN COSTS,Revenue,281.85,19/11/2014,Neighbourhood Services
WC50-0189,ALMA COURT,Third Party Payments,Private Contractor Fees,73373-RESIDENTIAL & NURSING CARE PLACEMENTS,Revenue,"5,978.57",11/11/2014,Social Care & Inclusion
WC50-0190,ALMA COURT,Third Party Payments,Private Contractor Fees,73373-RESIDENTIAL & NURSING CARE PLACEMENTS,Revenue,"5,978.57",11/11/2014,Social Care & Inclusion
WC50-0191,ALMOZENE NURSERY & CHILDRENS CENTRE,Third Party Payments,Grants to Other Orgs,66505-OTHER-GRANTS TO OTHER ORGS,Revenue,"4,096.95",24/11/2014,Childrens
WC50-0192,ALPHA HAIR DESIGN ACADEMY,Third Party Payments,Grants to Other Orgs,66502-TOP UP FUNDING -GRANTS TO SCHOOLS,Revenue,"1,506.52",11/11/2014,Childrens
WC50-0193,ALPHA HEALTH CARE LTD,Third Party Payments,Private Contractor Fees,73373-RESIDENTIAL & NURSING CARE PLACEMENTS,Revenue,640.29,25/11/2014,Social Care & Inclusion
WC50-0194,ALPHA HEALTH CARE LTD,Third Party Payments,Private Contractor Fees,73373-RESIDENTIAL & NURSING CARE PLACEMENTS,Revenue,"1,375.60",19/11/2014,Social Care & Inclusion
WC50-0195,ALPHA HEALTH CARE LTD,Third Party Payments,Private Contractor Fees,73373-RESIDENTIAL & NURSING CARE PLACEMENTS,Revenue,"1,375.60",19/11/2014,Social Care & Inclusion
WC50-0196,ALPHA HEALTH CARE LTD,Third Party Payments,Private Contractor Fees,73373-RESIDENTIAL & NURSING CARE PLACEMENTS,Revenue,"1,382.00",19/11/2014,Social Care & Inclusion
WC50-0197,ALPHA HEALTH CARE LTD,Third Party Payments,Private Contractor Fees,73373-RESIDENTIAL & NURSING CARE PLACEMENTS,Revenue,"1,460.40",19/11/2014,Social Care & Inclusion
WC50-0198,ALPHA HEALTH CARE LTD,Third Party Payments,Private Contractor Fees,73373-RESIDENTIAL & NURSING CARE PLACEMENTS,Revenue,"1,470.60",19/11/2014,Social Care & Inclusion
WC50-0199,ALPHA HEALTH CARE LTD,Third Party Payments,Private Contractor Fees,73373-RESIDENTIAL & NURSING CARE PLACEMENTS,Revenue,"1,476.84",19/11/2014,Social Care & Inclusion
WC50-0200,ALPHA HEALTH CARE LTD,Third Party Payments,Private Contractor Fees,73373-RESIDENTIAL & NURSING CARE PLACEMENTS,Revenue,"1,476.84",19/11/2014,Social Care & Inclusion
WC50-0201,ALPHA HEALTH CARE LTD,Third Party Payments,Private Contractor Fees,73373-RESIDENTIAL & NURSING CARE PLACEMENTS,Revenue,"1,489.60",19/11/2014,Social Care & Inclusion
WC50-0202,ALPHA HEALTH CARE LTD,Third Party Payments,Private Contractor Fees,73373-RESIDENTIAL & NURSING CARE PLACEMENTS,Revenue,"1,489.60",19/11/2014,Social Care & Inclusion
WC50-0203,ALPHA HEALTH CARE LTD,Third Party Payments,Private Contractor Fees,73373-RESIDENTIAL & NURSING CARE PLACEMENTS,Revenue,"1,489.60",19/11/2014,Social Care & Inclusion
WC50-0204,ALPHA HEALTH CARE LTD,Third Party Payments,Private Contractor Fees,73373-RESIDENTIAL & NURSING CARE PLACEMENTS,Revenue,"1,489.60",19/11/2014,Social Care & Inclusion
WC50-0205,ALPHA HEALTH CARE LTD,Third Party Payments,Private Contractor Fees,73373-RESIDENTIAL & NURSING CARE PLACEMENTS,Revenue,"1,489.60",19/11/2014,Social Care & Inclusion
WC50-0206,ALPHA HEALTH CARE LTD,Third Party Payments,Private Contractor Fees,73373-RESIDENTIAL & NURSING CARE PLACEMENTS,Revenue,"1,489.60",19/11/2014,Social Care & Inclusion
WC50-0207,ALPHA HEALTH CARE LTD,Third Party Payments,Private Contractor Fees,73373-RESIDENTIAL & NURSING CARE PLACEMENTS,Revenue,"1,489.60",19/11/2014,Social Care & Inclusion
WC50-0208,ALPHA HEALTH CARE LTD,Third Party Payments,Private Contractor Fees,73373-RESIDENTIAL & NURSING CARE PLACEMENTS,Revenue,"1,489.60",19/11/2014,Social Care & Inclusion
WC50-0209,ALPHA HEALTH CARE LTD,Third Party Payments,Private Contractor Fees,73373-RESIDENTIAL & NURSING CARE PLACEMENTS,Revenue,"1,489.60",19/11/2014,Social Care & Inclusion
WC50-0210,ALPHA HEALTH CARE LTD,Third Party Payments,Private Contractor Fees,73373-RESIDENTIAL & NURSING CARE PLACEMENTS,Revenue,"1,489.60",19/11/2014,Social Care & Inclusion
WC50-0211,ALPHA HEALTH CARE LTD,Third Party Payments,Private Contractor Fees,73373-RESIDENTIAL & NURSING CARE PLACEMENTS,Revenue,"1,489.64",19/11/2014,Social Care & Inclusion
WC50-0212,ALPHA HEALTH CARE LTD,Third Party Payments,Private Contractor Fees,73373-RESIDENTIAL & NURSING CARE PLACEMENTS,Revenue,"1,534.12",19/11/2014,Social Care & Inclusion
WC50-0213,ALPHA HEALTH CARE LTD,Third Party Payments,Private Contractor Fees,73373-RESIDENTIAL & NURSING CARE PLACEMENTS,Revenue,"1,534.12",19/11/2014,Social Care & Inclusion
WC50-0214,ALPHA HEALTH CARE LTD,Third Party Payments,Private Contractor Fees,73373-RESIDENTIAL & NURSING CARE PLACEMENTS,Revenue,"1,534.12",19/11/2014,Social Care & Inclusion
WC50-0215,ALPHA HEALTH CARE LTD,Third Party Payments,Private Contractor Fees,73373-RESIDENTIAL & NURSING CARE PLACEMENTS,Revenue,"1,534.12",19/11/2014,Social Care & Inclusion
WC50-0216,ALPHA HEALTH CARE LTD,Third Party Payments,Private Contractor Fees,73373-RESIDENTIAL & NURSING CARE PLACEMENTS,Revenue,"1,534.12",19/11/2014,Social Care & Inclusion
WC50-0217,ALPHA HEALTH CARE LTD,Third Party Payments,Private Contractor Fees,73373-RESIDENTIAL & NURSING CARE PLACEMENTS,Revenue,"1,534.28",19/11/2014,Social Care & Inclusion
WC50-0218,ALPHA HEALTH CARE LTD,Third Party Payments,Private Contractor Fees,73373-RESIDENTIAL & NURSING CARE PLACEMENTS,Revenue,"1,590.32",19/11/2014,Social Care & Inclusion
WC50-0219,ALPHA HEALTH CARE LTD,Third Party Payments,Private Contractor Fees,73373-RESIDENTIAL & NURSING CARE PLACEMENTS,Revenue,"1,649.20",19/11/2014,Social Care & Inclusion
WC50-0220,ALPHA HEALTH CARE LTD,Third Party Payments,Private Contractor Fees,73373-RESIDENTIAL & NURSING CARE PLACEMENTS,Revenue,"2,008.20",19/11/2014,Social Care & Inclusion
WC50-0221,ALPHA HEALTH CARE LTD,Third Party Payments,Private Contractor Fees,73373-RESIDENTIAL & NURSING CARE PLACEMENTS,Revenue,"2,109.44",19/11/2014,Social Care & Inclusion
WC50-0222,ALPHA HEALTH CARE LTD,Third Party Payments,Private Contractor Fees,73373-RESIDENTIAL & NURSING CARE PLACEMENTS,Revenue,"4,430.52",25/11/2014,Social Care & Inclusion
WC50-0223,ALPHA HEALTH CARE LTD,Third Party Payments,Private Contractor Fees,73373-RESIDENTIAL & NURSING CARE PLACEMENTS,Revenue,"4,522.01",25/11/2014,Social Care & Inclusion
WC50-0224,ALPHA HEALTH CARE LTD,Third Party Payments,Private Contractor Fees,73373-RESIDENTIAL & NURSING CARE PLACEMENTS,Revenue,"5,426.72",19/11/2014,Social Care & Inclusion
WC50-0225,ALPHA HEALTH CARE LTD,Third Party Payments,Private Contractor Fees,73373-RESIDENTIAL & NURSING CARE PLACEMENTS,Revenue,"5,600.00",19/11/2014,Social Care & Inclusion
WC50-0226,ALTODIGITAL NETWORKS LTD,Supplies & Services,"Equip,Furniture & Materials",60009-LEASING/HIRE/RENTAL-EQUIPMENT,Revenue,"3,494.42",03/11/2014,Resources
WC50-0227,REDACTED,Third Party Payments,Private Contractor Fees,74006-HOLIDAY/CHRISTMAS ALLOWANCE-FOSTER CARERS-OTH AGENCY PROVISION,Revenue,"1,493.76",24/11/2014,Childrens
WC50-0228,REDACTED,Supplies & Services,Other Supplies & Services,62515-MISCELLANEOUS SUPPLIES,Revenue,350.40,10/11/2014,Childrens
WC50-0229,REDACTED,Third Party Payments,Private Contractor Fees,74006-HOLIDAY/CHRISTMAS ALLOWANCE-FOSTER CARERS-OTH AGENCY PROVISION,Revenue,701.65,10/11/2014,Childrens
WC50-0230,REDACTED,Transfer Payments,Transfer Payments,76422-DIRECT PAYMENTS TO SOCIAL SERVICES CLIENTS,Revenue,654.50,11/11/2014,Social Care & Inclusion
WC50-0231,REDACTED,Transfer Payments,Transfer Payments,76422-DIRECT PAYMENTS TO SOCIAL SERVICES CLIENTS,Revenue,378.25,11/11/2014,Childrens
WC50-0232,AMETHYST HORTICULTURE LTD,Supplies & Services,Other Supplies & Services,62515-MISCELLANEOUS SUPPLIES,Revenue,"1,700.00",26/11/2014,Regeneration
WC50-0233,AMEY LG LIMITED,Supplies & Services,"Equip,Furniture & Materials",60008-MAINTENANCE-FURNITURE & EQUIPMENT,Revenue,360.48,18/11/2014,Social Care & Inclusion
WC50-0234,AMEY LG LIMITED,Supplies & Services,"Equip,Furniture & Materials",60008-MAINTENANCE-FURNITURE & EQUIPMENT,Revenue,536.86,26/11/2014,Neighbourhood Services
WC50-0235,AMEY LG LIMITED,Supplies & Services,Other Supplies & Services,62515-MISCELLANEOUS SUPPLIES,Revenue,610.10,12/11/2014,Neighbourhood Services
WC50-0236,AMEY LG LIMITED,Supplies & Services,"Equip,Furniture & Materials",60008-MAINTENANCE-FURNITURE & EQUIPMENT,Revenue,730.64,13/11/2014,Social Care & Inclusion
WC50-0237,AMEY LG LIMITED,Capital,Capital,01009-SITE WORKS - OTHER CONTRACTORS,Capital,"1,404.94",14/11/2014,Regeneration
WC50-0238,AMEY LG LIMITED,Third Party Payments,Private Contractor Fees,73025-PROFESSIONAL SERVICES-PRIV CONTRACTOR & OTHER AGENCIES,Revenue,"4,111.31",25/11/2014,Neighbourhood Services
WC50-0239,AMEY LG LIMITED,Third Party Payments,Private Contractor Fees,73025-PROFESSIONAL SERVICES-PRIV CONTRACTOR & OTHER AGENCIES,Revenue,"7,628.14",25/11/2014,Neighbourhood Services
WC50-0240,AMEY LG LIMITED,Third Party Payments,Private Contractor Fees,73025-PROFESSIONAL SERVICES-PRIV CONTRACTOR & OTHER AGENCIES,Revenue,"11,390.88",25/11/2014,Neighbourhood Services
WC50-0241,AMEY LG LIMITED,Supplies & Services,Other Supplies & Services,62515-MISCELLANEOUS SUPPLIES,Revenue,"11,540.00",14/11/2014,Neighbourhood Services
WC50-0242,AMG NURSING CARE SERVICES,Supplies & Services,Services,63000-PROFESSIONAL FEES AND SERVICES,Revenue,"1,451.84",06/11/2014,Childrens
WC50-0243,AMG NURSING CARE SERVICES,Supplies & Services,Services,63000-PROFESSIONAL FEES AND SERVICES,Revenue,"2,229.76",01/11/2014,Childrens
WC50-0244,AMG NURSING CARE SERVICES,Supplies & Services,Services,63000-PROFESSIONAL FEES AND SERVICES,Revenue,"2,229.76",24/11/2014,Childrens
WC50-0245,AMG NURSING CARE SERVICES,Third Party Payments,Private Contractor Fees,73372-DOMICILIARY CARE,Revenue,"6,785.01",24/11/2014,Social Care & Inclusion
WC50-0246,REDACTED,Transfer Payments,Transfer Payments,76422-DIRECT PAYMENTS TO SOCIAL SERVICES CLIENTS,Revenue,"1,485.40",11/11/2014,Social Care & Inclusion
WC50-0247,REDACTED,Transfer Payments,Transfer Payments,76422-DIRECT PAYMENTS TO SOCIAL SERVICES CLIENTS,Revenue,891.24,11/11/2014,Social Care & Inclusion
WC50-0248,REDACTED,Third Party Payments,Private Contractor Fees,74006-HOLIDAY/CHRISTMAS ALLOWANCE-FOSTER CARERS-OTH AGENCY PROVISION,Revenue,417.56,24/11/2014,Childrens
WC50-0249,REDACTED,Transfer Payments,Transfer Payments,76422-DIRECT PAYMENTS TO SOCIAL SERVICES CLIENTS,Revenue,569.50,11/11/2014,Social Care & Inclusion
WC50-0250,REDACTED,Third Party Payments,Private Contractor Fees,74006-HOLIDAY/CHRISTMAS ALLOWANCE-FOSTER CARERS-OTH AGENCY PROVISION,Revenue,"1,598.50",10/11/2014,Childrens
WC50-0251,REDACTED,Supplies & Services,Other Supplies & Services,62515-MISCELLANEOUS SUPPLIES,Revenue,"2,037.60",10/11/2014,Childrens
WC50-0252,REDACTED,Transfer Payments,Transfer Payments,76422-DIRECT PAYMENTS TO SOCIAL SERVICES CLIENTS,Revenue,378.00,18/11/2014,Social Care & Inclusion
WC50-0253,REDACTED,Third Party Payments,Private Contractor Fees,74006-HOLIDAY/CHRISTMAS ALLOWANCE-FOSTER CARERS-OTH AGENCY PROVISION,Revenue,886.32,10/11/2014,Childrens
WC50-0254,REDACTED,Supplies & Services,Other Supplies & Services,62515-MISCELLANEOUS SUPPLIES,Revenue,896.24,10/11/2014,Childrens
WC50-0255,ANGEL COURT RESIDENTIAL CARE HOME,Third Party Payments,Private Contractor Fees,73373-RESIDENTIAL & NURSING CARE PLACEMENTS,Revenue,"3,396.98",04/11/2014,Social Care & Inclusion
WC50-0256,REDACTED,Third Party Payments,Private Contractor Fees,74006-HOLIDAY/CHRISTMAS ALLOWANCE-FOSTER CARERS-OTH AGENCY PROVISION,Revenue,"2,477.68",24/11/2014,Childrens
WC50-0257,REDACTED,Third Party Payments,Private Contractor Fees,74006-HOLIDAY/CHRISTMAS ALLOWANCE-FOSTER CARERS-OTH AGENCY PROVISION,Revenue,995.00,24/11/2014,Childrens
WC50-0258,ANGLIA STAIRLIFTS LTD,Capital,Capital,01045-PRIVATE GRANTS,Capital,"4,175.00",18/11/2014,Resources
WC50-0259,ANGLIA STAIRLIFTS LTD,Capital,Capital,01006-SITE WORKS MAIN CONTRACTORS,Capital,"4,665.00",01/11/2014,Resources
WC50-0260,ANGLIA STAIRLIFTS LTD,Capital,Capital,01045-PRIVATE GRANTS,Capital,"5,145.00",20/11/2014,Resources
WC50-0261,ANGLIA STAIRLIFTS LTD,Capital,Capital,01006-SITE WORKS MAIN CONTRACTORS,Capital,"5,165.00",20/11/2014,Resources
WC50-0262,REDACTED,Supplies & Services,Other Supplies & Services,62515-MISCELLANEOUS SUPPLIES,Revenue,459.44,10/11/2014,Childrens
WC50-0263,REDACTED,Third Party Payments,Private Contractor Fees,74006-HOLIDAY/CHRISTMAS ALLOWANCE-FOSTER CARERS-OTH AGENCY PROVISION,Revenue,"1,598.50",10/11/2014,Childrens
WC50-0264,REDACTED,Transfer Payments,Transfer Payments,76422-DIRECT PAYMENTS TO SOCIAL SERVICES CLIENTS,Revenue,250.00,11/11/2014,Social Care & Inclusion
WC50-0265,REDACTED,Third Party Payments,Private Contractor Fees,73374-SUPPORTED & OTHER ACCOMMODATION,Revenue,687.87,03/11/2014,Social Care & Inclusion
WC50-0266,REDACTED,Transfer Payments,Transfer Payments,76422-DIRECT PAYMENTS TO SOCIAL SERVICES CLIENTS,Revenue,625.82,11/11/2014,Social Care & Inclusion
WC50-0267,ANSON COURT RESIDENTIAL HOME,Third Party Payments,Private Contractor Fees,73373-RESIDENTIAL & NURSING CARE PLACEMENTS,Revenue,-821.85,04/11/2014,Social Care & Inclusion
WC50-0268,ANSON COURT RESIDENTIAL HOME,Third Party Payments,Private Contractor Fees,73373-RESIDENTIAL & NURSING CARE PLACEMENTS,Revenue,-711.95,19/11/2014,Social Care & Inclusion
WC50-0269,ANSON COURT RESIDENTIAL HOME,Third Party Payments,Private Contractor Fees,73373-RESIDENTIAL & NURSING CARE PLACEMENTS,Revenue,712.27,04/11/2014,Social Care & Inclusion
WC50-0270,ANSON COURT RESIDENTIAL HOME,Third Party Payments,Private Contractor Fees,73373-RESIDENTIAL & NURSING CARE PLACEMENTS,Revenue,821.85,04/11/2014,Social Care & Inclusion
WC50-0271,ANSON COURT RESIDENTIAL HOME,Third Party Payments,Private Contractor Fees,73373-RESIDENTIAL & NURSING CARE PLACEMENTS,Revenue,"1,532.52",19/11/2014,Social Care & Inclusion
WC50-0272,ANSON COURT RESIDENTIAL HOME,Third Party Payments,Private Contractor Fees,73373-RESIDENTIAL & NURSING CARE PLACEMENTS,Revenue,"1,534.12",04/11/2014,Social Care & Inclusion
WC50-0273,ANSON COURT RESIDENTIAL HOME,Third Party Payments,Private Contractor Fees,73373-RESIDENTIAL & NURSING CARE PLACEMENTS,Revenue,"1,534.12",04/11/2014,Social Care & Inclusion
WC50-0274,ANSON COURT RESIDENTIAL HOME,Third Party Payments,Private Contractor Fees,73373-RESIDENTIAL & NURSING CARE PLACEMENTS,Revenue,"1,534.12",04/11/2014,Social Care & Inclusion
WC50-0275,ANSON COURT RESIDENTIAL HOME,Third Party Payments,Private Contractor Fees,73373-RESIDENTIAL & NURSING CARE PLACEMENTS,Revenue,"1,534.12",19/11/2014,Social Care & Inclusion
WC50-0276,ANSON COURT RESIDENTIAL HOME,Third Party Payments,Private Contractor Fees,73373-RESIDENTIAL & NURSING CARE PLACEMENTS,Revenue,"1,534.12",19/11/2014,Social Care & Inclusion
WC50-0277,ANSON COURT RESIDENTIAL HOME,Third Party Payments,Private Contractor Fees,73373-RESIDENTIAL & NURSING CARE PLACEMENTS,Revenue,"1,534.12",19/11/2014,Social Care & Inclusion
WC50-0278,ANSON COURT RESIDENTIAL HOME,Third Party Payments,Private Contractor Fees,73373-RESIDENTIAL & NURSING CARE PLACEMENTS,Revenue,"1,534.12",19/11/2014,Social Care & Inclusion
WC50-0279,ANSON COURT RESIDENTIAL HOME,Third Party Payments,Private Contractor Fees,73373-RESIDENTIAL & NURSING CARE PLACEMENTS,Revenue,"1,534.12",19/11/2014,Social Care & Inclusion
WC50-0280,ANSON COURT RESIDENTIAL HOME,Third Party Payments,Private Contractor Fees,73373-RESIDENTIAL & NURSING CARE PLACEMENTS,Revenue,"1,534.12",19/11/2014,Social Care & Inclusion
WC50-0281,ANSON COURT RESIDENTIAL HOME,Third Party Payments,Private Contractor Fees,73373-RESIDENTIAL & NURSING CARE PLACEMENTS,Revenue,"1,534.12",19/11/2014,Social Care & Inclusion
WC50-0282,ANSON COURT RESIDENTIAL HOME,Third Party Payments,Private Contractor Fees,73373-RESIDENTIAL & NURSING CARE PLACEMENTS,Revenue,"1,534.12",19/11/2014,Social Care & Inclusion
WC50-0283,ANSON COURT RESIDENTIAL HOME,Third Party Payments,Private Contractor Fees,73373-RESIDENTIAL & NURSING CARE PLACEMENTS,Revenue,"1,534.12",19/11/2014,Social Care & Inclusion
WC50-0284,ANSON COURT RESIDENTIAL HOME,Third Party Payments,Private Contractor Fees,73373-RESIDENTIAL & NURSING CARE PLACEMENTS,Revenue,"1,534.72",19/11/2014,Social Care & Inclusion
WC50-0285,ANSON COURT RESIDENTIAL HOME,Third Party Payments,Private Contractor Fees,73373-RESIDENTIAL & NURSING CARE PLACEMENTS,Revenue,"1,534.72",19/11/2014,Social Care & Inclusion
WC50-0286,ANSON COURT RESIDENTIAL HOME,Third Party Payments,Private Contractor Fees,73373-RESIDENTIAL & NURSING CARE PLACEMENTS,Revenue,"1,612.92",19/11/2014,Social Care & Inclusion
WC50-0287,ANSON COURT RESIDENTIAL HOME,Third Party Payments,Private Contractor Fees,73373-RESIDENTIAL & NURSING CARE PLACEMENTS,Revenue,"1,614.12",19/11/2014,Social Care & Inclusion
WC50-0288,ANSON COURT RESIDENTIAL HOME,Third Party Payments,Private Contractor Fees,73373-RESIDENTIAL & NURSING CARE PLACEMENTS,Revenue,"1,614.72",19/11/2014,Social Care & Inclusion
WC50-0289,ANSON COURT RESIDENTIAL HOME,Third Party Payments,Private Contractor Fees,73373-RESIDENTIAL & NURSING CARE PLACEMENTS,Revenue,"1,614.72",19/11/2014,Social Care & Inclusion
WC50-0290,ANSON COURT RESIDENTIAL HOME,Third Party Payments,Private Contractor Fees,73373-RESIDENTIAL & NURSING CARE PLACEMENTS,Revenue,"2,629.92",25/11/2014,Social Care & Inclusion
WC50-0291,REDACTED,Third Party Payments,Private Contractor Fees,74006-HOLIDAY/CHRISTMAS ALLOWANCE-FOSTER CARERS-OTH AGENCY PROVISION,Revenue,"1,364.56",24/11/2014,Childrens
WC50-0292,REDACTED,Third Party Payments,Private Contractor Fees,74006-HOLIDAY/CHRISTMAS ALLOWANCE-FOSTER CARERS-OTH AGENCY PROVISION,Revenue,701.65,24/11/2014,Childrens
WC50-0293,APEX ECOLOGY LTD,Supplies & Services,Services,63000-PROFESSIONAL FEES AND SERVICES,Revenue,"2,330.00",12/11/2014,Regeneration
WC50-0294,APSE 001,Employees,Training,30030-EXTERNAL TRAINING,Revenue,"2,441.11",26/11/2014,Neighbourhood Services
WC50-0295,ARBORETUM NURSING HOME.,Third Party Payments,Private Contractor Fees,73373-RESIDENTIAL & NURSING CARE PLACEMENTS,Revenue,"-1,311.79",11/11/2014,Social Care & Inclusion
WC50-0296,ARBORETUM NURSING HOME.,Third Party Payments,Private Contractor Fees,73373-RESIDENTIAL & NURSING CARE PLACEMENTS,Revenue,"1,933.16",11/11/2014,Social Care & Inclusion
WC50-0297,ARBORETUM NURSING HOME.,Third Party Payments,Private Contractor Fees,73373-RESIDENTIAL & NURSING CARE PLACEMENTS,Revenue,"1,933.16",11/11/2014,Social Care & Inclusion
WC50-0298,ARBORETUM NURSING HOME.,Third Party Payments,Private Contractor Fees,73373-RESIDENTIAL & NURSING CARE PLACEMENTS,Revenue,"1,933.16",11/11/2014,Social Care & Inclusion
WC50-0299,ARBORETUM NURSING HOME.,Third Party Payments,Private Contractor Fees,73373-RESIDENTIAL & NURSING CARE PLACEMENTS,Revenue,"1,933.16",11/11/2014,Social Care & Inclusion
WC50-0300,ARBORETUM NURSING HOME.,Third Party Payments,Private Contractor Fees,73373-RESIDENTIAL & NURSING CARE PLACEMENTS,Revenue,"1,933.16",11/11/2014,Social Care & Inclusion
WC50-0301,ARBORETUM NURSING HOME.,Third Party Payments,Private Contractor Fees,73373-RESIDENTIAL & NURSING CARE PLACEMENTS,Revenue,"1,933.16",11/11/2014,Social Care & Inclusion
WC50-0302,ARBORETUM NURSING HOME.,Third Party Payments,Private Contractor Fees,73373-RESIDENTIAL & NURSING CARE PLACEMENTS,Revenue,"1,933.16",11/11/2014,Social Care & Inclusion
WC50-0303,ARBORETUM NURSING HOME.,Third Party Payments,Private Contractor Fees,73373-RESIDENTIAL & NURSING CARE PLACEMENTS,Revenue,"1,990.76",11/11/2014,Social Care & Inclusion
WC50-0304,ARBORETUM NURSING HOME.,Third Party Payments,Private Contractor Fees,73373-RESIDENTIAL & NURSING CARE PLACEMENTS,Revenue,"1,990.76",19/11/2014,Social Care & Inclusion
WC50-0305,ARBORETUM NURSING HOME.,Third Party Payments,Private Contractor Fees,73373-RESIDENTIAL & NURSING CARE PLACEMENTS,Revenue,"2,048.15",11/11/2014,Social Care & Inclusion
WC50-0306,ARBORETUM NURSING HOME.,Third Party Payments,Private Contractor Fees,73373-RESIDENTIAL & NURSING CARE PLACEMENTS,Revenue,"2,416.45",11/11/2014,Social Care & Inclusion
WC50-0307,ARBORETUM NURSING HOME.,Third Party Payments,Private Contractor Fees,73373-RESIDENTIAL & NURSING CARE PLACEMENTS,Revenue,"2,488.45",11/11/2014,Social Care & Inclusion
WC50-0308,ARBORETUM NURSING HOME.,Third Party Payments,Private Contractor Fees,73373-RESIDENTIAL & NURSING CARE PLACEMENTS,Revenue,"2,488.45",11/11/2014,Social Care & Inclusion
WC50-0309,ARBORETUM NURSING HOME.,Third Party Payments,Private Contractor Fees,73373-RESIDENTIAL & NURSING CARE PLACEMENTS,Revenue,"2,488.45",19/11/2014,Social Care & Inclusion
WC50-0310,ARCANE DIRECT MARKETING,Supplies & Services,Communications & Computing,68001-PUBLICITY & ADVERTISING (NOT STAFF ADVERTISING),Revenue,648.20,24/11/2014,Neighbourhood Services
WC50-0311,ARCHWAY TCS LTD,Third Party Payments,Private Contractor Fees,73025-PROFESSIONAL SERVICES-PRIV CONTRACTOR & OTHER AGENCIES,Revenue,468.21,18/11/2014,Neighbourhood Services
WC50-0312,ARMADA,Employees,Training,30030-EXTERNAL TRAINING,Revenue,495.00,05/11/2014,Regeneration
WC50-0313,REDACTED,Employees,Other Staff Costs,32000-MISC FEES AND EXPENSES,Revenue,250.00,06/11/2014,Neighbourhood Services
WC50-0314,ARRIVA MIDLANDS LTD,Transport,Hire,52000-WITH DRIVER-HIRE OF VEHICLES,Revenue,"4,795.00",21/11/2014,Childrens
WC50-0315,ARTHUR J GALLAGHER INTERNATIONAL,Supplies & Services,Services,63000-PROFESSIONAL FEES AND SERVICES,Revenue,"6,000.00",26/11/2014,Resources
WC50-0316,ASA AWARDS,Supplies & Services,"Equip,Furniture & Materials",60500-GENERAL MATERIALS,Revenue,284.20,18/11/2014,Neighbourhood Services
WC50-0317,ASCO EDUCATIONAL SUPPLIES LTD,Supplies & Services,"Equip,Furniture & Materials",60500-GENERAL MATERIALS,Revenue,397.75,01/11/2014,Childrens
WC50-0318,ASDA PHARMACY,Supplies & Services,Services,63000-PROFESSIONAL FEES AND SERVICES,Revenue,89.50,12/11/2014,Neighbourhood Services
WC50-0319,ASDA PHARMACY,Supplies & Services,Services,63000-PROFESSIONAL FEES AND SERVICES,Revenue,95.00,12/11/2014,Neighbourhood Services
WC50-0320,ASDA PHARMACY,Supplies & Services,Services,63000-PROFESSIONAL FEES AND SERVICES,Revenue,357.50,12/11/2014,Neighbourhood Services
WC50-0321,ASDA PHARMACY,Supplies & Services,Services,63000-PROFESSIONAL FEES AND SERVICES,Revenue,502.92,12/11/2014,Neighbourhood Services
WC50-0322,ASDA PHARMACY,Supplies & Services,Services,63000-PROFESSIONAL FEES AND SERVICES,Revenue,"1,359.91",12/11/2014,Neighbourhood Services
WC50-0323,ASH GRANGE CARE HOME,Third Party Payments,Private Contractor Fees,73373-RESIDENTIAL & NURSING CARE PLACEMENTS,Revenue,"-1,037.98",04/11/2014,Social Care & Inclusion
WC50-0324,ASH GRANGE CARE HOME,Third Party Payments,Private Contractor Fees,73373-RESIDENTIAL & NURSING CARE PLACEMENTS,Revenue,"-1,037.98",04/11/2014,Social Care & Inclusion
WC50-0325,ASH GRANGE CARE HOME,Third Party Payments,Private Contractor Fees,73373-RESIDENTIAL & NURSING CARE PLACEMENTS,Revenue,-472.76,04/11/2014,Social Care & Inclusion
WC50-0326,ASH GRANGE CARE HOME,Third Party Payments,Private Contractor Fees,73373-RESIDENTIAL & NURSING CARE PLACEMENTS,Revenue,-472.76,04/11/2014,Social Care & Inclusion
WC50-0327,ASH GRANGE CARE HOME,Third Party Payments,Private Contractor Fees,73373-RESIDENTIAL & NURSING CARE PLACEMENTS,Revenue,-472.76,04/11/2014,Social Care & Inclusion
WC50-0328,ASH GRANGE CARE HOME,Third Party Payments,Private Contractor Fees,73373-RESIDENTIAL & NURSING CARE PLACEMENTS,Revenue,-414.25,04/11/2014,Social Care & Inclusion
WC50-0329,ASH GRANGE CARE HOME,Third Party Payments,Private Contractor Fees,73373-RESIDENTIAL & NURSING CARE PLACEMENTS,Revenue,-388.34,04/11/2014,Social Care & Inclusion
WC50-0330,ASH GRANGE CARE HOME,Third Party Payments,Private Contractor Fees,73373-RESIDENTIAL & NURSING CARE PLACEMENTS,Revenue,-371.45,04/11/2014,Social Care & Inclusion
WC50-0331,ASH GRANGE CARE HOME,Third Party Payments,Private Contractor Fees,73373-RESIDENTIAL & NURSING CARE PLACEMENTS,Revenue,260.79,04/11/2014,Social Care & Inclusion
WC50-0332,ASH GRANGE CARE HOME,Third Party Payments,Private Contractor Fees,73373-RESIDENTIAL & NURSING CARE PLACEMENTS,Revenue,"1,147.46",25/11/2014,Social Care & Inclusion
WC50-0333,ASH GRANGE CARE HOME,Third Party Payments,Private Contractor Fees,73373-RESIDENTIAL & NURSING CARE PLACEMENTS,Revenue,"1,190.97",04/11/2014,Social Care & Inclusion
WC50-0334,ASH GRANGE CARE HOME,Third Party Payments,Private Contractor Fees,73373-RESIDENTIAL & NURSING CARE PLACEMENTS,Revenue,"1,460.40",04/11/2014,Social Care & Inclusion
WC50-0335,ASH GRANGE CARE HOME,Third Party Payments,Private Contractor Fees,73373-RESIDENTIAL & NURSING CARE PLACEMENTS,Revenue,"1,460.40",19/11/2014,Social Care & Inclusion
WC50-0336,ASH GRANGE CARE HOME,Third Party Payments,Private Contractor Fees,73373-RESIDENTIAL & NURSING CARE PLACEMENTS,Revenue,"1,460.40",19/11/2014,Social Care & Inclusion
WC50-0337,ASH GRANGE CARE HOME,Third Party Payments,Private Contractor Fees,73373-RESIDENTIAL & NURSING CARE PLACEMENTS,Revenue,"1,460.40",19/11/2014,Social Care & Inclusion
WC50-0338,ASH GRANGE CARE HOME,Third Party Payments,Private Contractor Fees,73373-RESIDENTIAL & NURSING CARE PLACEMENTS,Revenue,"1,522.37",04/11/2014,Social Care & Inclusion
WC50-0339,ASH GRANGE CARE HOME,Third Party Payments,Private Contractor Fees,73373-RESIDENTIAL & NURSING CARE PLACEMENTS,Revenue,"1,799.16",04/11/2014,Social Care & Inclusion
WC50-0340,ASH GRANGE CARE HOME,Third Party Payments,Private Contractor Fees,73373-RESIDENTIAL & NURSING CARE PLACEMENTS,Revenue,"1,799.16",04/11/2014,Social Care & Inclusion
WC50-0341,ASH GRANGE CARE HOME,Third Party Payments,Private Contractor Fees,73373-RESIDENTIAL & NURSING CARE PLACEMENTS,Revenue,"1,933.16",04/11/2014,Social Care & Inclusion
WC50-0342,ASH GRANGE CARE HOME,Third Party Payments,Private Contractor Fees,73373-RESIDENTIAL & NURSING CARE PLACEMENTS,Revenue,"1,937.56",19/11/2014,Social Care & Inclusion
WC50-0343,ASH GRANGE CARE HOME,Third Party Payments,Private Contractor Fees,73373-RESIDENTIAL & NURSING CARE PLACEMENTS,Revenue,"1,937.56",19/11/2014,Social Care & Inclusion
WC50-0344,ASH GRANGE CARE HOME,Third Party Payments,Private Contractor Fees,73373-RESIDENTIAL & NURSING CARE PLACEMENTS,Revenue,"1,937.56",19/11/2014,Social Care & Inclusion
WC50-0345,ASH GRANGE CARE HOME,Third Party Payments,Private Contractor Fees,73373-RESIDENTIAL & NURSING CARE PLACEMENTS,Revenue,"1,937.56",19/11/2014,Social Care & Inclusion
WC50-0346,ASH GRANGE CARE HOME,Third Party Payments,Private Contractor Fees,73373-RESIDENTIAL & NURSING CARE PLACEMENTS,Revenue,"1,937.56",19/11/2014,Social Care & Inclusion
WC50-0347,ASH GRANGE CARE HOME,Third Party Payments,Private Contractor Fees,73373-RESIDENTIAL & NURSING CARE PLACEMENTS,Revenue,"1,937.56",19/11/2014,Social Care & Inclusion
WC50-0348,ASH GRANGE CARE HOME,Third Party Payments,Private Contractor Fees,73373-RESIDENTIAL & NURSING CARE PLACEMENTS,Revenue,"1,937.56",19/11/2014,Social Care & Inclusion
WC50-0349,ASH GRANGE CARE HOME,Third Party Payments,Private Contractor Fees,73373-RESIDENTIAL & NURSING CARE PLACEMENTS,Revenue,"1,937.56",19/11/2014,Social Care & Inclusion
WC50-0350,ASH GRANGE CARE HOME,Third Party Payments,Private Contractor Fees,73373-RESIDENTIAL & NURSING CARE PLACEMENTS,Revenue,"1,937.56",19/11/2014,Social Care & Inclusion
WC50-0351,ASH GRANGE CARE HOME,Third Party Payments,Private Contractor Fees,73373-RESIDENTIAL & NURSING CARE PLACEMENTS,Revenue,"1,937.56",25/11/2014,Social Care & Inclusion
WC50-0352,ASH GRANGE CARE HOME,Third Party Payments,Private Contractor Fees,73373-RESIDENTIAL & NURSING CARE PLACEMENTS,Revenue,"1,937.56",25/11/2014,Social Care & Inclusion
WC50-0353,ASH GRANGE CARE HOME,Third Party Payments,Private Contractor Fees,73373-RESIDENTIAL & NURSING CARE PLACEMENTS,Revenue,"1,937.56",25/11/2014,Social Care & Inclusion
WC50-0354,ASH GRANGE CARE HOME,Third Party Payments,Private Contractor Fees,73373-RESIDENTIAL & NURSING CARE PLACEMENTS,Revenue,"2,012.64",19/11/2014,Social Care & Inclusion
WC50-0355,ASH GRANGE CARE HOME,Third Party Payments,Private Contractor Fees,73373-RESIDENTIAL & NURSING CARE PLACEMENTS,Revenue,"2,012.64",19/11/2014,Social Care & Inclusion
WC50-0356,ASH GRANGE CARE HOME,Third Party Payments,Private Contractor Fees,73373-RESIDENTIAL & NURSING CARE PLACEMENTS,Revenue,"2,070.60",19/11/2014,Social Care & Inclusion
WC50-0357,ASH GRANGE CARE HOME,Third Party Payments,Private Contractor Fees,73373-RESIDENTIAL & NURSING CARE PLACEMENTS,Revenue,"2,145.15",19/11/2014,Social Care & Inclusion
WC50-0358,ASH GRANGE CARE HOME,Third Party Payments,Private Contractor Fees,73373-RESIDENTIAL & NURSING CARE PLACEMENTS,Revenue,"2,864.40",19/11/2014,Social Care & Inclusion
WC50-0359,ASKEWS AND HOLTS LIBRARY SERVICES LTD,Supplies & Services,"Equip,Furniture & Materials",60501-LIBRARY BOOKS,Revenue,253.17,18/11/2014,Neighbourhood Services
WC50-0360,ASKEWS AND HOLTS LIBRARY SERVICES LTD,Supplies & Services,"Equip,Furniture & Materials",60501-LIBRARY BOOKS,Revenue,256.14,01/11/2014,Neighbourhood Services
WC50-0361,ASKEWS AND HOLTS LIBRARY SERVICES LTD,Supplies & Services,"Equip,Furniture & Materials",60501-LIBRARY BOOKS,Revenue,260.92,04/11/2014,Neighbourhood Services
WC50-0362,ASKEWS AND HOLTS LIBRARY SERVICES LTD,Supplies & Services,"Equip,Furniture & Materials",60501-LIBRARY BOOKS,Revenue,274.57,05/11/2014,Neighbourhood Services
WC50-0363,ASKEWS AND HOLTS LIBRARY SERVICES LTD,Supplies & Services,"Equip,Furniture & Materials",60501-LIBRARY BOOKS,Revenue,278.31,04/11/2014,Neighbourhood Services
WC50-0364,ASKEWS AND HOLTS LIBRARY SERVICES LTD,Supplies & Services,"Equip,Furniture & Materials",60501-LIBRARY BOOKS,Revenue,283.72,19/11/2014,Neighbourhood Services
WC50-0365,ASKEWS AND HOLTS LIBRARY SERVICES LTD,Supplies & Services,"Equip,Furniture & Materials",60501-LIBRARY BOOKS,Revenue,286.07,01/11/2014,Neighbourhood Services
WC50-0366,ASKEWS AND HOLTS LIBRARY SERVICES LTD,Supplies & Services,"Equip,Furniture & Materials",60501-LIBRARY BOOKS,Revenue,377.01,24/11/2014,Neighbourhood Services
WC50-0367,ASKEWS AND HOLTS LIBRARY SERVICES LTD,Supplies & Services,"Equip,Furniture & Materials",60501-LIBRARY BOOKS,Revenue,395.69,17/11/2014,Neighbourhood Services
WC50-0368,ASKEWS AND HOLTS LIBRARY SERVICES LTD,Supplies & Services,"Equip,Furniture & Materials",60501-LIBRARY BOOKS,Revenue,644.79,04/11/2014,Neighbourhood Services
WC50-0369,ASKEWS AND HOLTS LIBRARY SERVICES LTD,Supplies & Services,"Equip,Furniture & Materials",60501-LIBRARY BOOKS,Revenue,777.20,12/11/2014,Neighbourhood Services
WC50-0370,REDACTED,Transfer Payments,Transfer Payments,76422-DIRECT PAYMENTS TO SOCIAL SERVICES CLIENTS,Revenue,493.00,11/11/2014,Social Care & Inclusion
WC50-0371,ASN FIRST AID & HYGIENE LTD,Supplies & Services,"Equip,Furniture & Materials",61502-PROTECTIVE CLOTHING & UNIFORM,Revenue,467.50,18/11/2014,Social Care & Inclusion
WC50-0372,ASPINALL VERDI LIMITED,Capital,Capital,01001-OTHER CONSULTANTS FEES,Capital,487.50,24/11/2014,Regeneration
WC50-0373,ASSOCIATION OF ACCOUNTING TECHNICIANS.,Supplies & Services,Other Supplies & Services,63013-EXAMINATIONS-SERVICES,Revenue,252.00,05/11/2014,Neighbourhood Services
WC50-0374,ASSOCIATION OF ACCOUNTING TECHNICIANS.,Employees,Training,30030-EXTERNAL TRAINING,Revenue,330.00,26/11/2014,Neighbourhood Services
WC50-0375,ASSOCIATION OF ACCOUNTING TECHNICIANS.,Employees,Training,30030-EXTERNAL TRAINING,Revenue,360.00,26/11/2014,Neighbourhood Services
WC50-0376,ASSOCIATION OF ACCOUNTING TECHNICIANS.,Supplies & Services,Other Supplies & Services,63013-EXAMINATIONS-SERVICES,Revenue,468.00,13/11/2014,Neighbourhood Services
WC50-0377,ASSOCIATION OF ACCOUNTING TECHNICIANS.,Employees,Training,30030-EXTERNAL TRAINING,Revenue,620.00,26/11/2014,Neighbourhood Services
WC50-0378,ASSOCIATION OF ACCOUNTING TECHNICIANS.,Employees,Training,30030-EXTERNAL TRAINING,Revenue,"1,260.00",13/11/2014,Neighbourhood Services
WC50-0379,A-STAT OFFICE TECHNOLOGY LTD,Central,Internal Recharges,82012-PRINT & DESIGN CHARGES-INTERNAL,Revenue,407.44,13/11/2014,Childrens
WC50-0380,ATHWAL NEWS LTD,Supplies & Services,"Equip,Furniture & Materials",60501-LIBRARY BOOKS,Revenue,671.87,07/11/2014,Neighbourhood Services
WC50-0381,AUDITEL RENTAL & SERVICE LTD,Premises,Premises-Repairs & Maintenance,"40000-REPAIRS,ALTERATIONS & MAINTENANCE-PREM",Revenue,350.00,26/11/2014,Regeneration
WC50-0382,AURORA GRAPHICS & DISPLAYS LTD,Supplies & Services,"Printing, Stationery & Office Exp",62008-OUTWORK-PRINT ROOM,Revenue,335.72,07/11/2014,Resources
WC50-0383,AUTISM WEST MIDLANDS,Third Party Payments,Private Contractor Fees,73373-RESIDENTIAL & NURSING CARE PLACEMENTS,Revenue,"7,314.45",04/11/2014,Social Care & Inclusion
WC50-0384,AUTISM WEST MIDLANDS 001,Third Party Payments,Private Contractor Fees,73373-RESIDENTIAL & NURSING CARE PLACEMENTS,Revenue,"4,924.75",04/11/2014,Social Care & Inclusion
WC50-0385,AUTOCHECK ELECTRICS,Premises,Premises-Repairs & Maintenance,"40000-REPAIRS,ALTERATIONS & MAINTENANCE-PREM",Revenue,472.50,01/11/2014,Childrens
WC50-0386,AVANTGARDE PHARMA LTD T/A AL-SHAFA PHARMACY,Supplies & Services,Services,63000-PROFESSIONAL FEES AND SERVICES,Revenue,814.69,27/11/2014,Neighbourhood Services
WC50-0387,AXIELL LIMITED,Supplies & Services,"Equip,Furniture & Materials",60500-GENERAL MATERIALS,Revenue,400.00,24/11/2014,Neighbourhood Services
WC50-0388,REDACTED,Transfer Payments,Transfer Payments,76422-DIRECT PAYMENTS TO SOCIAL SERVICES CLIENTS,Revenue,"2,024.00",11/11/2014,Childrens
WC50-0389,REDACTED,Transfer Payments,Transfer Payments,76422-DIRECT PAYMENTS TO SOCIAL SERVICES CLIENTS,Revenue,"2,652.00",11/11/2014,Social Care & Inclusion
WC50-0390,B & A TEXTILES LIMITED,Supplies & Services,"Equip,Furniture & Materials",61502-PROTECTIVE CLOTHING & UNIFORM,Revenue,255.00,03/11/2014,Regeneration
WC50-0391,B & A TEXTILES LIMITED,Supplies & Services,"Equip,Furniture & Materials",61502-PROTECTIVE CLOTHING & UNIFORM,Revenue,"1,253.40",03/11/2014,Regeneration
WC50-0392,REDACTED,Supplies & Services,Other Supplies & Services,62515-MISCELLANEOUS SUPPLIES,Revenue,896.24,10/11/2014,Childrens
WC50-0393,REDACTED,Third Party Payments,Private Contractor Fees,74006-HOLIDAY/CHRISTMAS ALLOWANCE-FOSTER CARERS-OTH AGENCY PROVISION,Revenue,995.00,10/11/2014,Childrens
WC50-0394,REDACTED,Supplies & Services,Other Supplies & Services,62515-MISCELLANEOUS SUPPLIES,Revenue,"1,428.44",10/11/2014,Childrens
WC50-0395,REDACTED,Third Party Payments,Private Contractor Fees,74006-HOLIDAY/CHRISTMAS ALLOWANCE-FOSTER CARERS-OTH AGENCY PROVISION,Revenue,"2,279.25",10/11/2014,Childrens
WC50-0396,B&Q WAREHOUSE PLC,Premises,Premises-Repairs & Maintenance,"40000-REPAIRS,ALTERATIONS & MAINTENANCE-PREM",Revenue,252.62,05/11/2014,Resources
WC50-0397,BAAF,Employees,Training,30000-INTERNAL TRAINING,Revenue,750.00,03/11/2014,Childrens
WC50-0398,BAAF,Supplies & Services,Communications & Computing,68001-PUBLICITY & ADVERTISING (NOT STAFF ADVERTISING),Revenue,827.40,21/11/2014,Childrens
WC50-0399,REDACTED,Transfer Payments,Transfer Payments,76422-DIRECT PAYMENTS TO SOCIAL SERVICES CLIENTS,Revenue,863.20,11/11/2014,Social Care & Inclusion
WC50-0400,REDACTED,Transfer Payments,Transfer Payments,76422-DIRECT PAYMENTS TO SOCIAL SERVICES CLIENTS,Revenue,"2,849.92",11/11/2014,Social Care & Inclusion
WC50-0401,REDACTED,Transfer Payments,Transfer Payments,76422-DIRECT PAYMENTS TO SOCIAL SERVICES CLIENTS,Revenue,620.00,11/11/2014,Social Care & Inclusion
WC50-0402,REDACTED,Transfer Payments,Transfer Payments,76422-DIRECT PAYMENTS TO SOCIAL SERVICES CLIENTS,Revenue,"1,140.04",11/11/2014,Social Care & Inclusion
WC50-0403,BANGOR UNIVERSITY,Supplies & Services,"Equip,Furniture & Materials",60500-GENERAL MATERIALS,Revenue,750.00,17/11/2014,Neighbourhood Services
WC50-0404,REDACTED,Transfer Payments,Transfer Payments,76422-DIRECT PAYMENTS TO SOCIAL SERVICES CLIENTS,Revenue,450.26,11/11/2014,Social Care & Inclusion
WC50-0405,REDACTED,Transfer Payments,Transfer Payments,76422-DIRECT PAYMENTS TO SOCIAL SERVICES CLIENTS,Revenue,"1,314.88",11/11/2014,Social Care & Inclusion
WC50-0406,REDACTED,Transfer Payments,Transfer Payments,76422-DIRECT PAYMENTS TO SOCIAL SERVICES CLIENTS,Revenue,"1,280.00",11/11/2014,Social Care & Inclusion
WC50-0407,REDACTED,Transfer Payments,Transfer Payments,76422-DIRECT PAYMENTS TO SOCIAL SERVICES CLIENTS,Revenue,718.00,11/11/2014,Social Care & Inclusion
WC50-0408,REDACTED,Transfer Payments,Transfer Payments,76422-DIRECT PAYMENTS TO SOCIAL SERVICES CLIENTS,Revenue,632.52,18/11/2014,Social Care & Inclusion
WC50-0409,REDACTED,Transfer Payments,Transfer Payments,76422-DIRECT PAYMENTS TO SOCIAL SERVICES CLIENTS,Revenue,690.56,11/11/2014,Social Care & Inclusion
WC50-0410,BARCHESTER HEALTHCARE#1,Third Party Payments,Private Contractor Fees,73373-RESIDENTIAL & NURSING CARE PLACEMENTS,Revenue,"1,858.33",25/11/2014,Social Care & Inclusion
WC50-0411,BARNARDOS SERVICES LTD,Employees,Training,30000-INTERNAL TRAINING,Revenue,745.00,03/11/2014,Childrens
WC50-0412,BARNARDOS SERVICES LTD,Third Party Payments,Private Contractor Fees,74037-INDEPENDENT FOSTER CARE-OTH AGENCY PROVISION,Revenue,"4,478.57",17/11/2014,Childrens
WC50-0413,BARNSLEY M B C,Supplies & Services,Subscriptions,64500-PUBLICATIONS/ORGANISATIONS-SUBSCRIPTIONS,Revenue,"3,000.00",25/11/2014,Resources
WC50-0414,BARONS COURT HOTEL,Transfer Payments,Transfer Payments,76422-DIRECT PAYMENTS TO SOCIAL SERVICES CLIENTS,Revenue,682.50,03/11/2014,Childrens
WC50-0415,BARONS COURT HOTEL,Third Party Payments,Private Contractor Fees,73374-SUPPORTED & OTHER ACCOMMODATION,Revenue,980.00,25/11/2014,Childrens
WC50-0416,BARONS COURT HOTEL,Transfer Payments,Transfer Payments,76422-DIRECT PAYMENTS TO SOCIAL SERVICES CLIENTS,Revenue,"1,102.50",05/11/2014,Childrens
WC50-0417,BARONS COURT HOTEL,Third Party Payments,Private Contractor Fees,73374-SUPPORTED & OTHER ACCOMMODATION,Revenue,"1,400.00",25/11/2014,Childrens
WC50-0418,BARONS COURT HOTEL,Transfer Payments,Transfer Payments,76422-DIRECT PAYMENTS TO SOCIAL SERVICES CLIENTS,Revenue,"1,837.50",03/11/2014,Childrens
WC50-0419,BASEMAP LTD,Supplies & Services,Communications & Computing,63809-LICENCES-COMPUTER,Revenue,550.00,18/11/2014,Neighbourhood Services
WC50-0420,BEADEN POWERLEC LIMITED,Capital,Capital,01006-SITE WORKS MAIN CONTRACTORS,Capital,250.00,21/11/2014,Childrens
WC50-0421,BEADEN POWERLEC LIMITED,Supplies & Services,"Equip,Furniture & Materials",60008-MAINTENANCE-FURNITURE & EQUIPMENT,Revenue,965.76,24/11/2014,Neighbourhood Services
WC50-0422,BEADEN POWERLEC LIMITED,Capital,Capital,01006-SITE WORKS MAIN CONTRACTORS,Capital,"2,944.01",05/11/2014,Childrens
WC50-0423,REDACTED,Third Party Payments,Private Contractor Fees,74006-HOLIDAY/CHRISTMAS ALLOWANCE-FOSTER CARERS-OTH AGENCY PROVISION,Revenue,517.62,10/11/2014,Childrens
WC50-0424,BEARWOOD NURSING HOME LTD,Third Party Payments,Private Contractor Fees,73373-RESIDENTIAL & NURSING CARE PLACEMENTS,Revenue,"1,494.00",19/11/2014,Social Care & Inclusion
WC50-0425,REDACTED,Transfer Payments,Transfer Payments,76422-DIRECT PAYMENTS TO SOCIAL SERVICES CLIENTS,Revenue,641.76,11/11/2014,Social Care & Inclusion
WC50-0426,REDACTED,Supplies & Services,Other Supplies & Services,62515-MISCELLANEOUS SUPPLIES,Revenue,445.60,10/11/2014,Childrens
WC50-0427,REDACTED,Third Party Payments,Private Contractor Fees,74006-HOLIDAY/CHRISTMAS ALLOWANCE-FOSTER CARERS-OTH AGENCY PROVISION,Revenue,701.65,10/11/2014,Childrens
WC50-0428,BELLEVUE COURT CARE HOME,Third Party Payments,Private Contractor Fees,73373-RESIDENTIAL & NURSING CARE PLACEMENTS,Revenue,"1,486.96",19/11/2014,Social Care & Inclusion
WC50-0429,BELLEVUE COURT CARE HOME,Third Party Payments,Private Contractor Fees,73373-RESIDENTIAL & NURSING CARE PLACEMENTS,Revenue,"1,494.00",19/11/2014,Social Care & Inclusion
WC50-0430,BELLEVUE COURT CARE HOME,Third Party Payments,Private Contractor Fees,73373-RESIDENTIAL & NURSING CARE PLACEMENTS,Revenue,"1,530.16",19/11/2014,Social Care & Inclusion
WC50-0431,REDACTED,Transfer Payments,Transfer Payments,76422-DIRECT PAYMENTS TO SOCIAL SERVICES CLIENTS,Revenue,"2,205.00",11/11/2014,Social Care & Inclusion
WC50-0432,BENTLEY COURT PRIORY,Third Party Payments,Private Contractor Fees,73373-RESIDENTIAL & NURSING CARE PLACEMENTS,Revenue,"1,600.71",11/11/2014,Social Care & Inclusion
WC50-0433,BENTLEY COURT PRIORY,Third Party Payments,Private Contractor Fees,73373-RESIDENTIAL & NURSING CARE PLACEMENTS,Revenue,"2,140.29",11/11/2014,Social Care & Inclusion
WC50-0434,BENTLEY WEST J M I,Supplies & Services,Other Supplies & Services,63128-HIRE OF ROOM-SERVICES-FEES,Revenue,"1,500.00",06/11/2014,Childrens
WC50-0435,BENTLEY WEST J M I,Supplies & Services,Other Supplies & Services,63128-HIRE OF ROOM-SERVICES-FEES,Revenue,"5,000.00",06/11/2014,Childrens
WC50-0436,REDACTED,Transfer Payments,Transfer Payments,76422-DIRECT PAYMENTS TO SOCIAL SERVICES CLIENTS,Revenue,424.56,11/11/2014,Social Care & Inclusion
WC50-0437,REDACTED,Transfer Payments,Transfer Payments,76422-DIRECT PAYMENTS TO SOCIAL SERVICES CLIENTS,Revenue,912.00,11/11/2014,Social Care & Inclusion
WC50-0438,REDACTED,Third Party Payments,Private Contractor Fees,74006-HOLIDAY/CHRISTMAS ALLOWANCE-FOSTER CARERS-OTH AGENCY PROVISION,Revenue,"1,403.30",10/11/2014,Childrens
WC50-0439,REDACTED,Supplies & Services,Other Supplies & Services,62515-MISCELLANEOUS SUPPLIES,Revenue,"2,138.16",10/11/2014,Childrens
WC50-0440,REDACTED,Transfer Payments,Transfer Payments,76422-DIRECT PAYMENTS TO SOCIAL SERVICES CLIENTS,Revenue,968.00,11/11/2014,Social Care & Inclusion
WC50-0441,BESCOT LODGE,Third Party Payments,Private Contractor Fees,73373-RESIDENTIAL & NURSING CARE PLACEMENTS,Revenue,"-1,150.59",11/11/2014,Social Care & Inclusion
WC50-0442,BESCOT LODGE,Supplies & Services,Services,63000-PROFESSIONAL FEES AND SERVICES,Revenue,500.00,10/11/2014,Social Care & Inclusion
WC50-0443,BESCOT LODGE,Third Party Payments,Private Contractor Fees,73373-RESIDENTIAL & NURSING CARE PLACEMENTS,Revenue,602.69,04/11/2014,Social Care & Inclusion
WC50-0444,BESCOT LODGE,Third Party Payments,Private Contractor Fees,73373-RESIDENTIAL & NURSING CARE PLACEMENTS,Revenue,"1,564.71",25/11/2014,Social Care & Inclusion
WC50-0445,BESCOT LODGE,Third Party Payments,Private Contractor Fees,73373-RESIDENTIAL & NURSING CARE PLACEMENTS,Revenue,"1,564.71",25/11/2014,Social Care & Inclusion
WC50-0446,BESCOT LODGE,Third Party Payments,Private Contractor Fees,73373-RESIDENTIAL & NURSING CARE PLACEMENTS,Revenue,"1,643.70",25/11/2014,Social Care & Inclusion
WC50-0447,BESCOT LODGE,Third Party Payments,Private Contractor Fees,73373-RESIDENTIAL & NURSING CARE PLACEMENTS,Revenue,"1,643.70",25/11/2014,Social Care & Inclusion
WC50-0448,BESCOT LODGE,Third Party Payments,Private Contractor Fees,73373-RESIDENTIAL & NURSING CARE PLACEMENTS,Revenue,"1,643.70",25/11/2014,Social Care & Inclusion
WC50-0449,BESCOT LODGE,Third Party Payments,Private Contractor Fees,73373-RESIDENTIAL & NURSING CARE PLACEMENTS,Revenue,"1,643.70",25/11/2014,Social Care & Inclusion
WC50-0450,BESCOT LODGE,Third Party Payments,Private Contractor Fees,73373-RESIDENTIAL & NURSING CARE PLACEMENTS,Revenue,"1,643.70",25/11/2014,Social Care & Inclusion
WC50-0451,BESCOT LODGE,Third Party Payments,Private Contractor Fees,73373-RESIDENTIAL & NURSING CARE PLACEMENTS,Revenue,"1,643.70",25/11/2014,Social Care & Inclusion
WC50-0452,BESCOT LODGE,Third Party Payments,Private Contractor Fees,73373-RESIDENTIAL & NURSING CARE PLACEMENTS,Revenue,"1,643.70",25/11/2014,Social Care & Inclusion
WC50-0453,BESCOT LODGE,Third Party Payments,Private Contractor Fees,73373-RESIDENTIAL & NURSING CARE PLACEMENTS,Revenue,"1,661.27",25/11/2014,Social Care & Inclusion
WC50-0454,BESCOT LODGE,Third Party Payments,Private Contractor Fees,73373-RESIDENTIAL & NURSING CARE PLACEMENTS,Revenue,"1,661.36",25/11/2014,Social Care & Inclusion
WC50-0455,BESCOT LODGE,Third Party Payments,Private Contractor Fees,73373-RESIDENTIAL & NURSING CARE PLACEMENTS,Revenue,"1,661.36",25/11/2014,Social Care & Inclusion
WC50-0456,BESCOT PROMOTIONS,Third Party Payments,Private Contractor Fees,73025-PROFESSIONAL SERVICES-PRIV CONTRACTOR & OTHER AGENCIES,Revenue,"3,250.00",05/11/2014,Regeneration
WC50-0457,BETHPHAGE.,Third Party Payments,Private Contractor Fees,73374-SUPPORTED & OTHER ACCOMMODATION,Revenue,650.00,27/11/2014,Social Care & Inclusion
WC50-0458,BETHPHAGE.,Third Party Payments,Private Contractor Fees,73374-SUPPORTED & OTHER ACCOMMODATION,Revenue,812.50,27/11/2014,Social Care & Inclusion
WC50-0459,BETHPHAGE.,Third Party Payments,Private Contractor Fees,73374-SUPPORTED & OTHER ACCOMMODATION,Revenue,"1,545.05",27/11/2014,Social Care & Inclusion
WC50-0460,BETHPHAGE.,Third Party Payments,Private Contractor Fees,73374-SUPPORTED & OTHER ACCOMMODATION,Revenue,"1,768.00",27/11/2014,Social Care & Inclusion
WC50-0461,BETHPHAGE.,Third Party Payments,Private Contractor Fees,73374-SUPPORTED & OTHER ACCOMMODATION,Revenue,"1,961.30",27/11/2014,Social Care & Inclusion
WC50-0462,BETHPHAGE.,Third Party Payments,Private Contractor Fees,73374-SUPPORTED & OTHER ACCOMMODATION,Revenue,"2,031.84",27/11/2014,Social Care & Inclusion
WC50-0463,BETHPHAGE.,Third Party Payments,Private Contractor Fees,73374-SUPPORTED & OTHER ACCOMMODATION,Revenue,"2,539.80",27/11/2014,Social Care & Inclusion
WC50-0464,BETHPHAGE.,Third Party Payments,Private Contractor Fees,73374-SUPPORTED & OTHER ACCOMMODATION,Revenue,"3,831.92",27/11/2014,Social Care & Inclusion
WC50-0465,BETHPHAGE.,Third Party Payments,Private Contractor Fees,73374-SUPPORTED & OTHER ACCOMMODATION,Revenue,"4,789.90",27/11/2014,Social Care & Inclusion
WC50-0466,BETTERCARE KEYS LTD,Third Party Payments,Private Contractor Fees,74036-EXTERNAL RESIDENTIAL CARE-OTH AGENCY PROVISION,Revenue,"-6,399.96",01/11/2014,Childrens
WC50-0467,BETTERCARE KEYS LTD,Third Party Payments,Private Contractor Fees,74036-EXTERNAL RESIDENTIAL CARE-OTH AGENCY PROVISION,Revenue,"11,885.64",01/11/2014,Childrens
WC50-0468,BETTERCARE KEYS LTD,Third Party Payments,Private Contractor Fees,74036-EXTERNAL RESIDENTIAL CARE-OTH AGENCY PROVISION,Revenue,"14,171.34",01/11/2014,Childrens
WC50-0469,REDACTED,Transfer Payments,Transfer Payments,76422-DIRECT PAYMENTS TO SOCIAL SERVICES CLIENTS,Revenue,322.00,11/11/2014,Social Care & Inclusion
WC50-0470,REDACTED,Transfer Payments,Transfer Payments,76422-DIRECT PAYMENTS TO SOCIAL SERVICES CLIENTS,Revenue,949.52,11/11/2014,Social Care & Inclusion
WC50-0471,REDACTED,Transfer Payments,Transfer Payments,76422-DIRECT PAYMENTS TO SOCIAL SERVICES CLIENTS,Revenue,998.60,18/11/2014,Social Care & Inclusion
WC50-0472,BEVAN BRITTAN,Supplies & Services,Other Supplies & Services,63116-EXTERNAL BARRISTERS-SERVICES-FEES,Revenue,"9,546.50",24/11/2014,Resources
WC50-0473,REDACTED,Transfer Payments,Transfer Payments,76422-DIRECT PAYMENTS TO SOCIAL SERVICES CLIENTS,Revenue,250.00,11/11/2014,Social Care & Inclusion
WC50-0474,BFA SAFETY TRAINING,Employees,Training,30030-EXTERNAL TRAINING,Revenue,295.00,01/11/2014,Resources
WC50-0475,BFA SAFETY TRAINING,Employees,Training,30030-EXTERNAL TRAINING,Revenue,495.00,21/11/2014,Resources
WC50-0476,BFA SAFETY TRAINING,Employees,Training,30030-EXTERNAL TRAINING,Revenue,795.00,01/11/2014,Resources
WC50-0477,BIBLIOGRAPHIC DATA SERVICES LTD,Supplies & Services,Subscriptions,64500-PUBLICATIONS/ORGANISATIONS-SUBSCRIPTIONS,Revenue,"2,630.00",05/11/2014,Neighbourhood Services
WC50-0478,BIFFA WASTE SERVICES LTD,Third Party Payments,Private Contractor Fees,73039-LANDFILL TAX-PRIV CONTRACTOR FEES,Revenue,256.00,20/11/2014,Neighbourhood Services
WC50-0479,BIFFA WASTE SERVICES LTD,Third Party Payments,Private Contractor Fees,73029-HAZARDOUS WASTE REMOVAL/DISPOSAL-PRIV CONTRACTOR FEES,Revenue,327.01,20/11/2014,Neighbourhood Services
WC50-0480,BIFFA WASTE SERVICES LTD,Third Party Payments,Private Contractor Fees,73005-LANDFILL PTYS-PRIV CONTRACTOR FEES,Revenue,"1,035.90",14/11/2014,Neighbourhood Services
WC50-0481,BIFFA WASTE SERVICES LTD,Third Party Payments,Private Contractor Fees,73005-LANDFILL PTYS-PRIV CONTRACTOR FEES,Revenue,"1,226.97",14/11/2014,Neighbourhood Services
WC50-0482,BIFFA WASTE SERVICES LTD,Third Party Payments,Private Contractor Fees,73005-LANDFILL PTYS-PRIV CONTRACTOR FEES,Revenue,"1,626.66",04/11/2014,Neighbourhood Services
WC50-0483,BIFFA WASTE SERVICES LTD,Third Party Payments,Private Contractor Fees,73005-LANDFILL PTYS-PRIV CONTRACTOR FEES,Revenue,"1,899.84",27/11/2014,Neighbourhood Services
WC50-0484,BIFFA WASTE SERVICES LTD,Third Party Payments,Private Contractor Fees,73039-LANDFILL TAX-PRIV CONTRACTOR FEES,Revenue,"6,419.20",14/11/2014,Neighbourhood Services
WC50-0485,BIFFA WASTE SERVICES LTD,Third Party Payments,Private Contractor Fees,73039-LANDFILL TAX-PRIV CONTRACTOR FEES,Revenue,"7,603.20",14/11/2014,Neighbourhood Services
WC50-0486,BIFFA WASTE SERVICES LTD,Third Party Payments,Private Contractor Fees,73039-LANDFILL TAX-PRIV CONTRACTOR FEES,Revenue,"10,080.00",04/11/2014,Neighbourhood Services
WC50-0487,BIFFA WASTE SERVICES LTD,Third Party Payments,Private Contractor Fees,73039-LANDFILL TAX-PRIV CONTRACTOR FEES,Revenue,"11,772.80",27/11/2014,Neighbourhood Services
WC50-0488,REDACTED,Transfer Payments,Transfer Payments,76422-DIRECT PAYMENTS TO SOCIAL SERVICES CLIENTS,Revenue,"1,227.68",11/11/2014,Childrens
WC50-0489,REDACTED,Capital,Capital,01006-SITE WORKS MAIN CONTRACTORS,Capital,"7,000.00",12/11/2014,Regeneration
WC50-0490,BIRCHILLS C OF E COMMUNITY ACADEMY,Transfer Payments,Transfer Payments,77300-ISB-FORMULA ALLOCATION,Revenue,"2,000.00",17/11/2014,Childrens
WC50-0491,BIRCHILLS C OF E COMMUNITY ACADEMY,Transfer Payments,Transfer Payments,77300-ISB-FORMULA ALLOCATION,Revenue,"2,275.00",25/11/2014,Childrens
WC50-0492,BIRCHILLS C OF E COMMUNITY ACADEMY,Transfer Payments,Transfer Payments,77300-ISB-FORMULA ALLOCATION,Revenue,"2,600.00",25/11/2014,Childrens
WC50-0493,BIRMINGHAM CITY COUNCIL,Third Party Payments,Private Contractor Fees,71000-PAYMENTS FOR SERVICES FROM OTHER LOCAL AUTHORITIES,Revenue,"5,100.50",11/11/2014,Regeneration
WC50-0494,BIRMINGHAM CITY COUNCIL,Third Party Payments,Private Contractor Fees,71000-PAYMENTS FOR SERVICES FROM OTHER LOCAL AUTHORITIES,Revenue,"10,201.00",11/11/2014,Neighbourhood Services
WC50-0495,BIRMINGHAM CITY COUNCIL,Third Party Payments,Grants to Other Orgs,66502-TOP UP FUNDING -GRANTS TO SCHOOLS,Revenue,"48,627.63",17/11/2014,Childrens
WC50-0496,BIRMINGHAM CITY COUNCIL,Third Party Payments,Grants to Other Orgs,66502-TOP UP FUNDING -GRANTS TO SCHOOLS,Revenue,"103,467.00",17/11/2014,Childrens
WC50-0497,BLACK COUNTRY CONSORTIUM LIMITED,Supplies & Services,Services,63102-CONSULTANTS FEES - CORPORATE,Revenue,365.35,20/11/2014,Regeneration
WC50-0498,BLACK COUNTRY CONSORTIUM LIMITED,Supplies & Services,Services,63000-PROFESSIONAL FEES AND SERVICES,Revenue,"2,594.03",21/11/2014,Regeneration
WC50-0499,BLACK COUNTRY CONSORTIUM LIMITED,Supplies & Services,Services,63000-PROFESSIONAL FEES AND SERVICES,Revenue,"2,594.03",24/11/2014,Regeneration
WC50-0500,BLACK COUNTRY CONSORTIUM LIMITED,Supplies & Services,Services,63000-PROFESSIONAL FEES AND SERVICES,Revenue,"120,453.42",20/11/2014,Regeneration
WC50-0501,BLACK COUNTRY PARTNERSHIP NHS,Third Party Payments,Private Contractor Fees,73375-IN PATIENT BEDS,Revenue,"45,900.00",11/11/2014,Social Care & Inclusion
WC50-0502,BLACK COUNTRY PARTNERSHIP NHS,Third Party Payments,Joint Arrangements,71007-CONTRIBUTION TO PCT,Revenue,"261,332.09",11/11/2014,Social Care & Inclusion
WC50-0503,BLACK COUNTRY TOURING,Supplies & Services,Services,63000-PROFESSIONAL FEES AND SERVICES,Revenue,300.00,18/11/2014,Neighbourhood Services
WC50-0504,BLAKENALL HEATH JMI SCHOOL,Transfer Payments,Transfer Payments,77300-ISB-FORMULA ALLOCATION,Revenue,660.00,27/11/2014,Childrens
WC50-0505,BLAKENALL HEATH JMI SCHOOL,Transfer Payments,Transfer Payments,77300-ISB-FORMULA ALLOCATION,Revenue,660.00,27/11/2014,Childrens
WC50-0506,BLAKENALL HEATH JMI SCHOOL,Transfer Payments,Transfer Payments,77300-ISB-FORMULA ALLOCATION,Revenue,"1,375.00",25/11/2014,Childrens
WC50-0507,BLAKENALL HEATH JMI SCHOOL,Transfer Payments,Transfer Payments,77300-ISB-FORMULA ALLOCATION,Revenue,"1,375.00",25/11/2014,Childrens
WC50-0508,BLAKENALL HEATH JMI SCHOOL,Transfer Payments,Transfer Payments,77200-TRANSFER PAYMENTS-OTHER SCHOOLCHILDREN/STUDENT RELATED ITEMS,Revenue,"5,244.00",24/11/2014,Childrens
WC50-0509,BLAKENALL HEATH JMI SCHOOL,Transfer Payments,Transfer Payments,77302-ISB-SCHOOL STANDARDS GRANT,Revenue,"52,075.00",04/11/2014,Childrens
WC50-0510,BLAKENALL HEATH JMI SCHOOL,Transfer Payments,Transfer Payments,77300-ISB-FORMULA ALLOCATION,Revenue,"86,631.80",18/11/2014,Childrens
WC50-0511,BLANCHWORTH CARE HOMES LIMITED,Third Party Payments,Private Contractor Fees,73373-RESIDENTIAL & NURSING CARE PLACEMENTS,Revenue,"1,942.55",11/11/2014,Social Care & Inclusion
WC50-0512,BLOXWICH COMMUNITY PARTNERSHIP.,Supplies & Services,Other Supplies & Services,62515-MISCELLANEOUS SUPPLIES,Revenue,425.93,19/11/2014,Neighbourhood Services
WC50-0513,BLOXWICH COMMUNITY PARTNERSHIP.,Supplies & Services,Other Supplies & Services,62515-MISCELLANEOUS SUPPLIES,Revenue,"2,432.51",13/11/2014,Neighbourhood Services
WC50-0514,BLOXWICH COMMUNITY PARTNERSHIP.,Third Party Payments,Grants to Other Orgs,66500-GRANTS TO OTHER ORGS,Revenue,"33,936.75",17/11/2014,Childrens
WC50-0515,BLOXWICH RADIO TAXIS,Transport,Hire,52000-WITH DRIVER-HIRE OF VEHICLES,Revenue,724.64,14/11/2014,Childrens
WC50-0516,BLUE GIRAFFE CHILDCARE,Third Party Payments,Grants to Other Orgs,66505-OTHER-GRANTS TO OTHER ORGS,Revenue,"3,426.54",24/11/2014,Childrens
WC50-0517,BNP PARIBAS LEASE GROUP,Supplies & Services,"Equip,Furniture & Materials",60009-LEASING/HIRE/RENTAL-EQUIPMENT,Revenue,479.74,26/11/2014,Social Care & Inclusion
WC50-0518,BOC LTD,Supplies & Services,"Equip,Furniture & Materials",60500-GENERAL MATERIALS,Revenue,276.20,01/11/2014,Neighbourhood Services
WC50-0519,BOLDMERE COURT CARE HOME,Third Party Payments,Private Contractor Fees,73373-RESIDENTIAL & NURSING CARE PLACEMENTS,Revenue,"1,493.20",25/11/2014,Social Care & Inclusion
WC50-0520,BOLDMERE COURT CARE HOME,Third Party Payments,Private Contractor Fees,73373-RESIDENTIAL & NURSING CARE PLACEMENTS,Revenue,"1,494.00",25/11/2014,Social Care & Inclusion
WC50-0521,BOLDMERE COURT CARE HOME,Third Party Payments,Private Contractor Fees,73373-RESIDENTIAL & NURSING CARE PLACEMENTS,Revenue,"1,494.00",25/11/2014,Social Care & Inclusion
WC50-0522,BOLDMERE COURT CARE HOME,Third Party Payments,Private Contractor Fees,73373-RESIDENTIAL & NURSING CARE PLACEMENTS,Revenue,"2,988.00",25/11/2014,Social Care & Inclusion
WC50-0523,BOOTS UK LIMITED,Supplies & Services,Services,63000-PROFESSIONAL FEES AND SERVICES,Revenue,84.13,12/11/2014,Neighbourhood Services
WC50-0524,BOOTS UK LIMITED,Supplies & Services,Services,63000-PROFESSIONAL FEES AND SERVICES,Revenue,185.00,12/11/2014,Neighbourhood Services
WC50-0525,BOOTS UK LIMITED,Supplies & Services,Services,63000-PROFESSIONAL FEES AND SERVICES,Revenue,301.26,11/11/2014,Neighbourhood Services
WC50-0526,BOOTS UK LIMITED,Supplies & Services,Services,63000-PROFESSIONAL FEES AND SERVICES,Revenue,867.30,12/11/2014,Neighbourhood Services
WC50-0527,BOULTON TRAVEL LIMITED,Transport,Hire,52000-WITH DRIVER-HIRE OF VEHICLES,Revenue,"1,830.00",01/11/2014,Childrens
WC50-0528,BOULTON TRAVEL LIMITED,Transport,Hire,52000-WITH DRIVER-HIRE OF VEHICLES,Revenue,"1,921.00",01/11/2014,Childrens
WC50-0529,BOWDEN DERRA PARK,Third Party Payments,Private Contractor Fees,73373-RESIDENTIAL & NURSING CARE PLACEMENTS,Revenue,"10,271.64",25/11/2014,Social Care & Inclusion
WC50-0530,BRADLEY ENVIRONMENTAL,Capital,Capital,01006-SITE WORKS MAIN CONTRACTORS,Capital,"-2,220.00",01/11/2014,Childrens
WC50-0531,BRADLEY ENVIRONMENTAL,Premises,Premises-Repairs & Maintenance,"40000-REPAIRS,ALTERATIONS & MAINTENANCE-PREM",Revenue,601.00,21/11/2014,Regeneration
WC50-0532,BRADLEY ENVIRONMENTAL,Premises,Premises-Repairs & Maintenance,"40000-REPAIRS,ALTERATIONS & MAINTENANCE-PREM",Revenue,675.00,01/11/2014,Regeneration
WC50-0533,BRADLEY ENVIRONMENTAL,Capital,Capital,01006-SITE WORKS MAIN CONTRACTORS,Capital,937.00,12/11/2014,Childrens
WC50-0534,BRADLEY ENVIRONMENTAL,Capital,Capital,01006-SITE WORKS MAIN CONTRACTORS,Capital,"1,093.00",17/11/2014,Childrens
WC50-0535,BRADLEY ENVIRONMENTAL,Capital,Capital,01006-SITE WORKS MAIN CONTRACTORS,Capital,"2,220.00",07/11/2014,Childrens
WC50-0536,BRELMAYNE LTD,Premises,Premises-Repairs & Maintenance,"40000-REPAIRS,ALTERATIONS & MAINTENANCE-PREM",Revenue,258.00,17/11/2014,Regeneration
WC50-0537,BRELMAYNE LTD,Capital,Capital,01006-SITE WORKS MAIN CONTRACTORS,Capital,286.41,03/11/2014,Regeneration
WC50-0538,BRELMAYNE LTD,Premises,Premises-Repairs & Maintenance,"40000-REPAIRS,ALTERATIONS & MAINTENANCE-PREM",Revenue,296.77,20/11/2014,Regeneration
WC50-0539,BRELMAYNE LTD,Premises,Premises-Repairs & Maintenance,"40000-REPAIRS,ALTERATIONS & MAINTENANCE-PREM",Revenue,300.74,20/11/2014,Regeneration
WC50-0540,BRELMAYNE LTD,Premises,Premises-Repairs & Maintenance,"40000-REPAIRS,ALTERATIONS & MAINTENANCE-PREM",Revenue,310.23,05/11/2014,Regeneration
WC50-0541,BRELMAYNE LTD,Premises,Premises-Repairs & Maintenance,"40000-REPAIRS,ALTERATIONS & MAINTENANCE-PREM",Revenue,310.50,19/11/2014,Regeneration
WC50-0542,BRELMAYNE LTD,Third Party Payments,Private Contractor Fees,73025-PROFESSIONAL SERVICES-PRIV CONTRACTOR & OTHER AGENCIES,Revenue,335.40,20/11/2014,Regeneration
WC50-0543,BRELMAYNE LTD,Third Party Payments,Private Contractor Fees,73025-PROFESSIONAL SERVICES-PRIV CONTRACTOR & OTHER AGENCIES,Revenue,344.71,12/11/2014,Regeneration
WC50-0544,BRELMAYNE LTD,Third Party Payments,Private Contractor Fees,73025-PROFESSIONAL SERVICES-PRIV CONTRACTOR & OTHER AGENCIES,Revenue,348.92,18/11/2014,Regeneration
WC50-0545,BRELMAYNE LTD,Premises,Premises-Repairs & Maintenance,"40000-REPAIRS,ALTERATIONS & MAINTENANCE-PREM",Revenue,361.53,26/11/2014,Regeneration
WC50-0546,BRELMAYNE LTD,Premises,Premises-Repairs & Maintenance,"40000-REPAIRS,ALTERATIONS & MAINTENANCE-PREM",Revenue,369.08,19/11/2014,Regeneration
WC50-0547,BRELMAYNE LTD,Premises,Premises-Repairs & Maintenance,"40000-REPAIRS,ALTERATIONS & MAINTENANCE-PREM",Revenue,372.05,01/11/2014,Regeneration
WC50-0548,BRELMAYNE LTD,Supplies & Services,"Equip,Furniture & Materials",60500-GENERAL MATERIALS,Revenue,379.62,17/11/2014,Neighbourhood Services
WC50-0549,BRELMAYNE LTD,Premises,Premises-Repairs & Maintenance,"40000-REPAIRS,ALTERATIONS & MAINTENANCE-PREM",Revenue,409.83,19/11/2014,Regeneration
WC50-0550,BRELMAYNE LTD,Third Party Payments,Private Contractor Fees,73025-PROFESSIONAL SERVICES-PRIV CONTRACTOR & OTHER AGENCIES,Revenue,419.11,12/11/2014,Regeneration
WC50-0551,BRELMAYNE LTD,Premises,Premises-Repairs & Maintenance,"40000-REPAIRS,ALTERATIONS & MAINTENANCE-PREM",Revenue,444.52,21/11/2014,Regeneration
WC50-0552,BRELMAYNE LTD,Third Party Payments,Private Contractor Fees,73025-PROFESSIONAL SERVICES-PRIV CONTRACTOR & OTHER AGENCIES,Revenue,479.88,26/11/2014,Regeneration
WC50-0553,BRELMAYNE LTD,Premises,Premises-Repairs & Maintenance,"40000-REPAIRS,ALTERATIONS & MAINTENANCE-PREM",Revenue,592.74,14/11/2014,Regeneration
WC50-0554,BRELMAYNE LTD,Premises,Premises-Repairs & Maintenance,"40000-REPAIRS,ALTERATIONS & MAINTENANCE-PREM",Revenue,629.40,12/11/2014,Regeneration
WC50-0555,BRELMAYNE LTD,Premises,Premises-Repairs & Maintenance,"40000-REPAIRS,ALTERATIONS & MAINTENANCE-PREM",Revenue,649.12,04/11/2014,Regeneration
WC50-0556,BRELMAYNE LTD,Third Party Payments,Private Contractor Fees,73025-PROFESSIONAL SERVICES-PRIV CONTRACTOR & OTHER AGENCIES,Revenue,653.13,19/11/2014,Regeneration
WC50-0557,BRELMAYNE LTD,Supplies & Services,"Equip,Furniture & Materials",60500-GENERAL MATERIALS,Revenue,721.69,17/11/2014,Neighbourhood Services
WC50-0558,BRELMAYNE LTD,Premises,Premises-Repairs & Maintenance,"40000-REPAIRS,ALTERATIONS & MAINTENANCE-PREM",Revenue,955.97,26/11/2014,Regeneration
WC50-0559,BRELMAYNE LTD,Premises,Premises-Repairs & Maintenance,"40000-REPAIRS,ALTERATIONS & MAINTENANCE-PREM",Revenue,"1,128.65",12/11/2014,Regeneration
WC50-0560,BRELMAYNE LTD,Supplies & Services,"Equip,Furniture & Materials",60008-MAINTENANCE-FURNITURE & EQUIPMENT,Revenue,"1,147.34",24/11/2014,Neighbourhood Services
WC50-0561,BRELMAYNE LTD,Supplies & Services,"Equip,Furniture & Materials",60008-MAINTENANCE-FURNITURE & EQUIPMENT,Revenue,"1,244.83",24/11/2014,Neighbourhood Services
WC50-0562,BRELMAYNE LTD,Premises,Premises-Repairs & Maintenance,"40000-REPAIRS,ALTERATIONS & MAINTENANCE-PREM",Revenue,"1,341.13",05/11/2014,Regeneration
WC50-0563,BRELMAYNE LTD,Third Party Payments,Private Contractor Fees,73025-PROFESSIONAL SERVICES-PRIV CONTRACTOR & OTHER AGENCIES,Revenue,"1,423.20",04/11/2014,Regeneration
WC50-0564,BRELMAYNE LTD,Supplies & Services,"Equip,Furniture & Materials",60008-MAINTENANCE-FURNITURE & EQUIPMENT,Revenue,"2,195.27",24/11/2014,Neighbourhood Services
WC50-0565,BRELMAYNE LTD,Premises,Premises-Repairs & Maintenance,"40000-REPAIRS,ALTERATIONS & MAINTENANCE-PREM",Revenue,"3,608.93",14/11/2014,Regeneration
WC50-0566,REDACTED,Transfer Payments,Transfer Payments,76422-DIRECT PAYMENTS TO SOCIAL SERVICES CLIENTS,Revenue,680.00,11/11/2014,Social Care & Inclusion
WC50-0567,REDACTED,Transfer Payments,Transfer Payments,76422-DIRECT PAYMENTS TO SOCIAL SERVICES CLIENTS,Revenue,440.00,11/11/2014,Social Care & Inclusion
WC50-0568,REDACTED,Transfer Payments,Transfer Payments,76422-DIRECT PAYMENTS TO SOCIAL SERVICES CLIENTS,Revenue,450.00,11/11/2014,Social Care & Inclusion
WC50-0569,REDACTED,Supplies & Services,Other Supplies & Services,62515-MISCELLANEOUS SUPPLIES,Revenue,"1,428.44",10/11/2014,Childrens
WC50-0570,REDACTED,Third Party Payments,Private Contractor Fees,74006-HOLIDAY/CHRISTMAS ALLOWANCE-FOSTER CARERS-OTH AGENCY PROVISION,Revenue,"1,598.50",10/11/2014,Childrens
WC50-0571,REDACTED,Transfer Payments,Transfer Payments,76422-DIRECT PAYMENTS TO SOCIAL SERVICES CLIENTS,Revenue,544.00,11/11/2014,Social Care & Inclusion
WC50-0572,BRENNTAG UK LIMITED,Transport,Other Transport,50301-FUEL-TRANSPORT RUN COSTS,Revenue,711.12,21/11/2014,Neighbourhood Services
WC50-0573,BRENNTAG UK LIMITED,Transport,Other Transport,50301-FUEL-TRANSPORT RUN COSTS,Revenue,711.12,21/11/2014,Neighbourhood Services
WC50-0574,REDACTED,Transfer Payments,Transfer Payments,76422-DIRECT PAYMENTS TO SOCIAL SERVICES CLIENTS,Revenue,493.20,18/11/2014,Social Care & Inclusion
WC50-0575,REDACTED,Transfer Payments,Transfer Payments,76422-DIRECT PAYMENTS TO SOCIAL SERVICES CLIENTS,Revenue,"1,294.80",11/11/2014,Social Care & Inclusion
WC50-0576,REDACTED,Transfer Payments,Transfer Payments,76422-DIRECT PAYMENTS TO SOCIAL SERVICES CLIENTS,Revenue,517.92,11/11/2014,Social Care & Inclusion
WC50-0577,BRIDGEWOOD HEALTH CARE LTD,Third Party Payments,Private Contractor Fees,73373-RESIDENTIAL & NURSING CARE PLACEMENTS,Revenue,"5,058.44",04/11/2014,Social Care & Inclusion
WC50-0578,REDACTED,Transfer Payments,Transfer Payments,76422-DIRECT PAYMENTS TO SOCIAL SERVICES CLIENTS,Revenue,"1,039.78",11/11/2014,Social Care & Inclusion
WC50-0579,BRISTOW & SUTOR,Supplies & Services,Services,63102-CONSULTANTS FEES - CORPORATE,Revenue,310.00,05/11/2014,Resources
WC50-0580,BRISTOW & SUTOR,Supplies & Services,Services,63102-CONSULTANTS FEES - CORPORATE,Revenue,324.16,25/11/2014,Resources
WC50-0581,BRISTOW & SUTOR,Supplies & Services,Services,63102-CONSULTANTS FEES - CORPORATE,Revenue,513.05,05/11/2014,Resources
WC50-0582,BRISTOW & SUTOR,Supplies & Services,Services,63102-CONSULTANTS FEES - CORPORATE,Revenue,685.48,05/11/2014,Resources
WC50-0583,BRITISH GAS BUSINESS,Premises,Utilities,42000-GAS-ENERGY COSTS,Revenue,"3,161.78",04/11/2014,Childrens
WC50-0584,BRITISH GAS BUSINESS,Premises,Utilities,42000-GAS-ENERGY COSTS,Revenue,"22,645.65",20/11/2014,Regeneration
WC50-0585,BRITISH RED CROSS,Supplies & Services,Other Supplies & Services,62523-EVENTS,Revenue,"1,350.00",21/11/2014,Neighbourhood Services
WC50-0586,BROADOAK CARE,Third Party Payments,Private Contractor Fees,73373-RESIDENTIAL & NURSING CARE PLACEMENTS,Revenue,732.50,21/11/2014,Social Care & Inclusion
WC50-0587,BROADOAK CARE,Third Party Payments,Private Contractor Fees,73373-RESIDENTIAL & NURSING CARE PLACEMENTS,Revenue,937.04,21/11/2014,Social Care & Inclusion
WC50-0588,BROADOAK CARE,Third Party Payments,Private Contractor Fees,73373-RESIDENTIAL & NURSING CARE PLACEMENTS,Revenue,961.16,21/11/2014,Social Care & Inclusion
WC50-0589,BROADOAK CARE,Third Party Payments,Private Contractor Fees,73373-RESIDENTIAL & NURSING CARE PLACEMENTS,Revenue,962.36,21/11/2014,Social Care & Inclusion
WC50-0590,BROADOAK CARE,Third Party Payments,Private Contractor Fees,73373-RESIDENTIAL & NURSING CARE PLACEMENTS,Revenue,981.36,21/11/2014,Social Care & Inclusion
WC50-0591,BROADOAK CARE,Third Party Payments,Private Contractor Fees,73373-RESIDENTIAL & NURSING CARE PLACEMENTS,Revenue,"1,027.40",21/11/2014,Social Care & Inclusion
WC50-0592,BROADOAK CARE,Third Party Payments,Private Contractor Fees,73373-RESIDENTIAL & NURSING CARE PLACEMENTS,Revenue,"1,033.52",21/11/2014,Social Care & Inclusion
WC50-0593,BROADOAK CARE,Third Party Payments,Private Contractor Fees,73373-RESIDENTIAL & NURSING CARE PLACEMENTS,Revenue,"1,038.28",21/11/2014,Social Care & Inclusion
WC50-0594,BROADOAK CARE,Third Party Payments,Private Contractor Fees,73373-RESIDENTIAL & NURSING CARE PLACEMENTS,Revenue,"1,048.00",21/11/2014,Social Care & Inclusion
WC50-0595,BROADOAK CARE,Third Party Payments,Private Contractor Fees,73373-RESIDENTIAL & NURSING CARE PLACEMENTS,Revenue,"1,048.08",21/11/2014,Social Care & Inclusion
WC50-0596,BROADOAK CARE,Third Party Payments,Private Contractor Fees,73373-RESIDENTIAL & NURSING CARE PLACEMENTS,Revenue,"1,048.08",21/11/2014,Social Care & Inclusion
WC50-0597,BROADOAK CARE,Third Party Payments,Private Contractor Fees,73373-RESIDENTIAL & NURSING CARE PLACEMENTS,Revenue,"1,057.28",21/11/2014,Social Care & Inclusion
WC50-0598,BROADOAK CARE,Third Party Payments,Private Contractor Fees,73373-RESIDENTIAL & NURSING CARE PLACEMENTS,Revenue,"1,115.28",21/11/2014,Social Care & Inclusion
WC50-0599,BROADOAK CARE,Third Party Payments,Private Contractor Fees,73373-RESIDENTIAL & NURSING CARE PLACEMENTS,Revenue,"1,118.48",21/11/2014,Social Care & Inclusion
WC50-0600,BROADOAK CARE,Third Party Payments,Private Contractor Fees,73373-RESIDENTIAL & NURSING CARE PLACEMENTS,Revenue,"1,534.08",21/11/2014,Social Care & Inclusion
WC50-0601,BROADOAK CARE,Third Party Payments,Private Contractor Fees,73373-RESIDENTIAL & NURSING CARE PLACEMENTS,Revenue,"1,534.08",21/11/2014,Social Care & Inclusion
WC50-0602,BROADOAK CARE,Third Party Payments,Private Contractor Fees,73373-RESIDENTIAL & NURSING CARE PLACEMENTS,Revenue,"1,534.08",21/11/2014,Social Care & Inclusion
WC50-0603,BROADOAK CARE,Third Party Payments,Private Contractor Fees,73373-RESIDENTIAL & NURSING CARE PLACEMENTS,Revenue,"1,534.08",21/11/2014,Social Care & Inclusion
WC50-0604,BROADOAK CARE,Third Party Payments,Private Contractor Fees,73373-RESIDENTIAL & NURSING CARE PLACEMENTS,Revenue,"1,534.08",21/11/2014,Social Care & Inclusion
WC50-0605,BROADWAY PHARMACY,Supplies & Services,Services,63000-PROFESSIONAL FEES AND SERVICES,Revenue,79.04,11/11/2014,Neighbourhood Services
WC50-0606,BROADWAY PHARMACY,Supplies & Services,Services,63000-PROFESSIONAL FEES AND SERVICES,Revenue,175.01,11/11/2014,Neighbourhood Services
WC50-0607,BROADWAY PHARMACY,Supplies & Services,Services,63000-PROFESSIONAL FEES AND SERVICES,Revenue,310.49,11/11/2014,Neighbourhood Services
WC50-0608,BROADWAY TRAVEL CONNECTIONS,Transport,Hire,52000-WITH DRIVER-HIRE OF VEHICLES,Revenue,665.00,01/11/2014,Childrens
WC50-0609,BROADWAY TRAVEL CONNECTIONS,Transport,Hire,52000-WITH DRIVER-HIRE OF VEHICLES,Revenue,"1,600.00",25/11/2014,Childrens
WC50-0610,BROOK YOUNG PEOPLE,Supplies & Services,Services,63000-PROFESSIONAL FEES AND SERVICES,Revenue,"5,933.50",19/11/2014,Neighbourhood Services
WC50-0611,BROPEL TECHNICAL WELDING LIMITED,Premises,Premises-Repairs & Maintenance,40413-NON PMI MTCE,Revenue,305.80,17/11/2014,Neighbourhood Services
WC50-0612,BROWNE JACOBSON SOLICITORS,Supplies & Services,Other Supplies & Services,67001-MISC INSURANCES - PAYMENT OF CLAIMS,Revenue,"9,578.40",12/11/2014,Holding Accounts
WC50-0613,BROWNHILLS ASPHALT TARMACADAM,Premises,Premises-Repairs & Maintenance,"40000-REPAIRS,ALTERATIONS & MAINTENANCE-PREM",Revenue,250.00,19/11/2014,Neighbourhood Services
WC50-0614,BROWNHILLS ASPHALT TARMACADAM,Third Party Payments,Private Contractor Fees,73025-PROFESSIONAL SERVICES-PRIV CONTRACTOR & OTHER AGENCIES,Revenue,276.00,06/11/2014,Regeneration
WC50-0615,BROWNHILLS ASPHALT TARMACADAM,Third Party Payments,Private Contractor Fees,73025-PROFESSIONAL SERVICES-PRIV CONTRACTOR & OTHER AGENCIES,Revenue,336.00,01/11/2014,Regeneration
WC50-0616,BROWNHILLS ASPHALT TARMACADAM,Capital,Capital,01006-SITE WORKS MAIN CONTRACTORS,Capital,350.00,05/11/2014,Childrens
WC50-0617,BROWNHILLS ASPHALT TARMACADAM,Supplies & Services,"Equip,Furniture & Materials",60006-NEW-FURNITURE & EQUIPMENT,Revenue,350.00,25/11/2014,Neighbourhood Services
WC50-0618,BROWNHILLS ASPHALT TARMACADAM,Premises,Premises-Repairs & Maintenance,"40000-REPAIRS,ALTERATIONS & MAINTENANCE-PREM",Revenue,450.00,26/11/2014,Regeneration
WC50-0619,BROWNHILLS ASPHALT TARMACADAM,Premises,Premises-Repairs & Maintenance,"40000-REPAIRS,ALTERATIONS & MAINTENANCE-PREM",Revenue,456.00,25/11/2014,Regeneration
WC50-0620,BROWNHILLS ASPHALT TARMACADAM,Third Party Payments,Private Contractor Fees,73025-PROFESSIONAL SERVICES-PRIV CONTRACTOR & OTHER AGENCIES,Revenue,924.00,13/11/2014,Neighbourhood Services
WC50-0621,BROWNHILLS ASPHALT TARMACADAM,Third Party Payments,Private Contractor Fees,73025-PROFESSIONAL SERVICES-PRIV CONTRACTOR & OTHER AGENCIES,Revenue,"1,137.00",06/11/2014,Regeneration
WC50-0622,BROWNHILLS ASPHALT TARMACADAM,Premises,Premises-Repairs & Maintenance,"40000-REPAIRS,ALTERATIONS & MAINTENANCE-PREM",Revenue,"1,138.00",21/11/2014,Regeneration
WC50-0623,BROWNHILLS ASPHALT TARMACADAM,Capital,Capital,01006-SITE WORKS MAIN CONTRACTORS,Capital,"1,500.00",03/11/2014,Childrens
WC50-0624,BROWNHILLS ASPHALT TARMACADAM,Third Party Payments,Private Contractor Fees,73025-PROFESSIONAL SERVICES-PRIV CONTRACTOR & OTHER AGENCIES,Revenue,"1,730.00",17/11/2014,Regeneration
WC50-0625,BROWNHILLS ASPHALT TARMACADAM,Third Party Payments,Private Contractor Fees,73025-PROFESSIONAL SERVICES-PRIV CONTRACTOR & OTHER AGENCIES,Revenue,"1,740.00",25/11/2014,Neighbourhood Services
WC50-0626,BROWNHILLS ASPHALT TARMACADAM,Third Party Payments,Private Contractor Fees,73025-PROFESSIONAL SERVICES-PRIV CONTRACTOR & OTHER AGENCIES,Revenue,"1,775.00",03/11/2014,Regeneration
WC50-0627,BROWNHILLS ASPHALT TARMACADAM,Capital,Capital,01006-SITE WORKS MAIN CONTRACTORS,Capital,"2,000.00",03/11/2014,Childrens
WC50-0628,BROWNHILLS ASPHALT TARMACADAM,Premises,Premises-Repairs & Maintenance,"40000-REPAIRS,ALTERATIONS & MAINTENANCE-PREM",Revenue,"2,098.00",12/11/2014,Neighbourhood Services
WC50-0629,BROWNHILLS ASPHALT TARMACADAM,Third Party Payments,Private Contractor Fees,73025-PROFESSIONAL SERVICES-PRIV CONTRACTOR & OTHER AGENCIES,Revenue,"2,440.00",06/11/2014,Regeneration
WC50-0630,BROWNHILLS ASPHALT TARMACADAM,Capital,Capital,01006-SITE WORKS MAIN CONTRACTORS,Capital,"2,500.00",05/11/2014,Childrens
WC50-0631,BROWNHILLS ASPHALT TARMACADAM,Supplies & Services,"Equip,Furniture & Materials",60008-MAINTENANCE-FURNITURE & EQUIPMENT,Revenue,"2,818.00",25/11/2014,Neighbourhood Services
WC50-0632,BROWNHILLS ASPHALT TARMACADAM,Capital,Capital,01006-SITE WORKS MAIN CONTRACTORS,Capital,"5,000.00",19/11/2014,Regeneration
WC50-0633,BROWNHILLS ASPHALT TARMACADAM,Capital,Capital,01006-SITE WORKS MAIN CONTRACTORS,Capital,"7,692.40",19/11/2014,Childrens
WC50-0634,BROWNHILLS ASPHALT TARMACADAM,Capital,Capital,01006-SITE WORKS MAIN CONTRACTORS,Capital,"9,960.00",19/11/2014,Childrens
WC50-0635,BROWNHILLS ASPHALT TARMACADAM,Capital,Capital,01006-SITE WORKS MAIN CONTRACTORS,Capital,"11,985.00",03/11/2014,Regeneration
WC50-0636,BROWNHILLS ASPHALT TARMACADAM,Capital,Capital,01006-SITE WORKS MAIN CONTRACTORS,Capital,"21,506.00",19/11/2014,Childrens
WC50-0637,BROWNHILLS COMMUNITY ASSOCIATION,Supplies & Services,Other Supplies & Services,62515-MISCELLANEOUS SUPPLIES,Revenue,588.07,24/11/2014,Neighbourhood Services
WC50-0638,BROWNHILLS COMMUNITY ASSOCIATION,Third Party Payments,Grants to Other Orgs,66505-OTHER-GRANTS TO OTHER ORGS,Revenue,943.54,24/11/2014,Childrens
WC50-0639,REDACTED,Transfer Payments,Transfer Payments,76422-DIRECT PAYMENTS TO SOCIAL SERVICES CLIENTS,Revenue,"1,445.00",11/11/2014,Social Care & Inclusion
WC50-0640,REDACTED,Premises,Premises-Repairs & Maintenance,"40000-REPAIRS,ALTERATIONS & MAINTENANCE-PREM",Revenue,300.00,21/11/2014,Regeneration
WC50-0641,REDACTED,Supplies & Services,Services,63000-PROFESSIONAL FEES AND SERVICES,Revenue,"2,081.25",21/11/2014,Neighbourhood Services
WC50-0642,B-SURE SECURITY SERVICES LTD,Premises,Premises-Repairs & Maintenance,"40000-REPAIRS,ALTERATIONS & MAINTENANCE-PREM",Revenue,536.00,19/11/2014,Regeneration
WC50-0643,BT,Supplies & Services,Communications & Computing,63601-COSTS (NOT INTERNAL RECHARGES)-TELEPHONES,Revenue,"4,363.83",10/11/2014,Resources
WC50-0644,BT PLC,Supplies & Services,Communications & Computing,63602-COST OF RENTAL-TELEPHONES,Revenue,348.29,20/11/2014,Childrens
WC50-0645,BT PLC,Supplies & Services,Communications & Computing,63603-COST OF CALLS-TELEPHONES,Revenue,994.00,14/11/2014,Resources
WC50-0646,BT PLC,Supplies & Services,Communications & Computing,63601-COSTS (NOT INTERNAL RECHARGES)-TELEPHONES,Revenue,"2,126.98",04/11/2014,Resources
WC50-0647,BT PLC,Supplies & Services,Communications & Computing,63807-COMMS LINKS-COMPUTER,Revenue,"5,525.80",26/11/2014,Resources
WC50-0648,BT PLC,Supplies & Services,Communications & Computing,63601-COSTS (NOT INTERNAL RECHARGES)-TELEPHONES,Revenue,"18,228.52",17/11/2014,Resources
WC50-0649,BUCHANAN COMPUTING,Third Party Payments,Private Contractor Fees,73025-PROFESSIONAL SERVICES-PRIV CONTRACTOR & OTHER AGENCIES,Revenue,"2,713.00",03/11/2014,Neighbourhood Services
WC50-0650,BUDS LTD T/A CATHERINE HOUSE DAY NURSERY SCHOOLS,Third Party Payments,Grants to Other Orgs,66505-OTHER-GRANTS TO OTHER ORGS,Revenue,572.13,27/11/2014,Childrens
WC50-0651,BUFFET EXPRESS LTD,Supplies & Services,Provisions,61305-CATERING,Revenue,384.00,18/11/2014,Childrens
WC50-0652,BUPA CARE HOMES (CFHCARE) LTD,Third Party Payments,Private Contractor Fees,73373-RESIDENTIAL & NURSING CARE PLACEMENTS,Revenue,"1,458.00",11/11/2014,Social Care & Inclusion
WC50-0653,BUPA CARE HOMES (CFHCARE) LTD,Third Party Payments,Private Contractor Fees,73373-RESIDENTIAL & NURSING CARE PLACEMENTS,Revenue,"1,494.00",11/11/2014,Social Care & Inclusion
WC50-0654,BUPA CARE HOMES (CFHCARE) LTD,Third Party Payments,Private Contractor Fees,73373-RESIDENTIAL & NURSING CARE PLACEMENTS,Revenue,"1,544.44",11/11/2014,Social Care & Inclusion
WC50-0655,BUPA CARE HOMES (CFHCARE) LTD,Third Party Payments,Private Contractor Fees,73373-RESIDENTIAL & NURSING CARE PLACEMENTS,Revenue,"1,708.84",11/11/2014,Social Care & Inclusion
WC50-0656,BUPA CARE HOMES (CFHCARE) LTD,Third Party Payments,Private Contractor Fees,73373-RESIDENTIAL & NURSING CARE PLACEMENTS,Revenue,"3,060.92",11/11/2014,Social Care & Inclusion
WC50-0657,BUPA HOME HEALTHCARE,Supplies & Services,Services,63000-PROFESSIONAL FEES AND SERVICES,Revenue,"1,351.28",24/11/2014,Childrens
WC50-0658,BUPA HOME HEALTHCARE,Supplies & Services,Services,63000-PROFESSIONAL FEES AND SERVICES,Revenue,"1,391.92",24/11/2014,Childrens
WC50-0659,BUSH HOME LTD,Third Party Payments,Private Contractor Fees,73373-RESIDENTIAL & NURSING CARE PLACEMENTS,Revenue,"1,406.08",19/11/2014,Social Care & Inclusion
WC50-0660,BUSH HOME LTD,Third Party Payments,Private Contractor Fees,73373-RESIDENTIAL & NURSING CARE PLACEMENTS,Revenue,"1,406.08",19/11/2014,Social Care & Inclusion
WC50-0661,BUSH HOME LTD,Third Party Payments,Private Contractor Fees,73373-RESIDENTIAL & NURSING CARE PLACEMENTS,Revenue,"1,406.08",19/11/2014,Social Care & Inclusion
WC50-0662,BUSH HOME LTD,Third Party Payments,Private Contractor Fees,73373-RESIDENTIAL & NURSING CARE PLACEMENTS,Revenue,"1,408.24",19/11/2014,Social Care & Inclusion
WC50-0663,BUSH HOME LTD,Third Party Payments,Private Contractor Fees,73373-RESIDENTIAL & NURSING CARE PLACEMENTS,Revenue,"1,408.25",19/11/2014,Social Care & Inclusion
WC50-0664,BUSH HOME LTD,Third Party Payments,Private Contractor Fees,73373-RESIDENTIAL & NURSING CARE PLACEMENTS,Revenue,"1,459.58",19/11/2014,Social Care & Inclusion
WC50-0665,BUSH HOME LTD,Third Party Payments,Private Contractor Fees,73373-RESIDENTIAL & NURSING CARE PLACEMENTS,Revenue,"1,459.58",19/11/2014,Social Care & Inclusion
WC50-0666,BUSH HOME LTD,Third Party Payments,Private Contractor Fees,73373-RESIDENTIAL & NURSING CARE PLACEMENTS,Revenue,"1,479.33",19/11/2014,Social Care & Inclusion
WC50-0667,BUSH HOME LTD,Third Party Payments,Private Contractor Fees,73373-RESIDENTIAL & NURSING CARE PLACEMENTS,Revenue,"1,479.33",19/11/2014,Social Care & Inclusion
WC50-0668,BUSH HOME LTD,Third Party Payments,Private Contractor Fees,73373-RESIDENTIAL & NURSING CARE PLACEMENTS,Revenue,"1,479.33",19/11/2014,Social Care & Inclusion
WC50-0669,BUSH HOME LTD,Third Party Payments,Private Contractor Fees,73373-RESIDENTIAL & NURSING CARE PLACEMENTS,Revenue,"1,479.33",19/11/2014,Social Care & Inclusion
WC50-0670,BUSH HOME LTD,Third Party Payments,Private Contractor Fees,73373-RESIDENTIAL & NURSING CARE PLACEMENTS,Revenue,"1,479.33",19/11/2014,Social Care & Inclusion
WC50-0671,BUSH HOME LTD,Third Party Payments,Private Contractor Fees,73373-RESIDENTIAL & NURSING CARE PLACEMENTS,Revenue,"1,479.33",19/11/2014,Social Care & Inclusion
WC50-0672,BUSH HOME LTD,Third Party Payments,Private Contractor Fees,73373-RESIDENTIAL & NURSING CARE PLACEMENTS,Revenue,"1,479.33",19/11/2014,Social Care & Inclusion
WC50-0673,BUSH HOME LTD,Third Party Payments,Private Contractor Fees,73373-RESIDENTIAL & NURSING CARE PLACEMENTS,Revenue,"1,501.97",19/11/2014,Social Care & Inclusion
WC50-0674,BUSY BEES AT ST MATTHEWS,Third Party Payments,Grants to Other Orgs,66505-OTHER-GRANTS TO OTHER ORGS,Revenue,286.07,27/11/2014,Childrens
WC50-0675,BUSY BEES CHILDCARE LTD,Third Party Payments,Grants to Other Orgs,66505-OTHER-GRANTS TO OTHER ORGS,Revenue,"3,103.75",24/11/2014,Childrens
WC50-0676,BY THE BRIDGE,Third Party Payments,Private Contractor Fees,74037-INDEPENDENT FOSTER CARE-OTH AGENCY PROVISION,Revenue,"4,157.14",17/11/2014,Childrens
WC50-0677,C & D BUSINESS SOLUTIONS LTD,Supplies & Services,Services,63000-PROFESSIONAL FEES AND SERVICES,Revenue,720.00,17/11/2014,Childrens
WC50-0678,C & V ORCHARD RESIDENTIAL LTD,Third Party Payments,Private Contractor Fees,73373-RESIDENTIAL & NURSING CARE PLACEMENTS,Revenue,"1,458.16",25/11/2014,Social Care & Inclusion
WC50-0679,C & V ORCHARD RESIDENTIAL LTD,Third Party Payments,Private Contractor Fees,73373-RESIDENTIAL & NURSING CARE PLACEMENTS,Revenue,"1,458.16",25/11/2014,Social Care & Inclusion
WC50-0680,C & V ORCHARD RESIDENTIAL LTD,Third Party Payments,Private Contractor Fees,73373-RESIDENTIAL & NURSING CARE PLACEMENTS,Revenue,"1,460.40",25/11/2014,Social Care & Inclusion
WC50-0681,C & V ORCHARD RESIDENTIAL LTD,Third Party Payments,Private Contractor Fees,73373-RESIDENTIAL & NURSING CARE PLACEMENTS,Revenue,"1,531.00",25/11/2014,Social Care & Inclusion
WC50-0682,C & V ORCHARD RESIDENTIAL LTD,Third Party Payments,Private Contractor Fees,73373-RESIDENTIAL & NURSING CARE PLACEMENTS,Revenue,"1,531.76",25/11/2014,Social Care & Inclusion
WC50-0683,C & V ORCHARD RESIDENTIAL LTD,Third Party Payments,Private Contractor Fees,73373-RESIDENTIAL & NURSING CARE PLACEMENTS,Revenue,"1,531.76",25/11/2014,Social Care & Inclusion
WC50-0684,C & V ORCHARD RESIDENTIAL LTD,Third Party Payments,Private Contractor Fees,73373-RESIDENTIAL & NURSING CARE PLACEMENTS,Revenue,"1,531.76",25/11/2014,Social Care & Inclusion
WC50-0685,C & V ORCHARD RESIDENTIAL LTD,Third Party Payments,Private Contractor Fees,73373-RESIDENTIAL & NURSING CARE PLACEMENTS,Revenue,"1,531.80",25/11/2014,Social Care & Inclusion
WC50-0686,C & V ORCHARD RESIDENTIAL LTD,Third Party Payments,Private Contractor Fees,73373-RESIDENTIAL & NURSING CARE PLACEMENTS,Revenue,"1,534.12",25/11/2014,Social Care & Inclusion
WC50-0687,C & V ORCHARD RESIDENTIAL LTD,Third Party Payments,Private Contractor Fees,73373-RESIDENTIAL & NURSING CARE PLACEMENTS,Revenue,"1,534.12",25/11/2014,Social Care & Inclusion
WC50-0688,C & V ORCHARD RESIDENTIAL LTD,Third Party Payments,Private Contractor Fees,73373-RESIDENTIAL & NURSING CARE PLACEMENTS,Revenue,"1,534.12",25/11/2014,Social Care & Inclusion
WC50-0689,C & V ORCHARD RESIDENTIAL LTD,Third Party Payments,Private Contractor Fees,73373-RESIDENTIAL & NURSING CARE PLACEMENTS,Revenue,"1,534.12",25/11/2014,Social Care & Inclusion
WC50-0690,C & V ORCHARD RESIDENTIAL LTD,Third Party Payments,Private Contractor Fees,73373-RESIDENTIAL & NURSING CARE PLACEMENTS,Revenue,"1,534.12",25/11/2014,Social Care & Inclusion
WC50-0691,C ART ART TRANSPORT LTD,Supplies & Services,Services,63000-PROFESSIONAL FEES AND SERVICES,Revenue,510.00,26/11/2014,Neighbourhood Services
WC50-0692,C ART ART TRANSPORT LTD,Third Party Payments,Private Contractor Fees,73032-TRANSPORTATION-PRIV CONTRACTOR FEES,Revenue,845.00,25/11/2014,Neighbourhood Services
WC50-0693,C ART ART TRANSPORT LTD,Third Party Payments,Private Contractor Fees,73032-TRANSPORTATION-PRIV CONTRACTOR FEES,Revenue,"1,312.42",26/11/2014,Neighbourhood Services
WC50-0694,REDACTED,Supplies & Services,Other Supplies & Services,62515-MISCELLANEOUS SUPPLIES,Revenue,"4,267.08",10/11/2014,Childrens
WC50-0695,REDACTED,Third Party Payments,Private Contractor Fees,74006-HOLIDAY/CHRISTMAS ALLOWANCE-FOSTER CARERS-OTH AGENCY PROVISION,Revenue,"5,482.25",10/11/2014,Childrens
WC50-0696,REDACTED,Supplies & Services,Other Supplies & Services,62515-MISCELLANEOUS SUPPLIES,Revenue,"1,589.26",10/11/2014,Childrens
WC50-0697,REDACTED,Third Party Payments,Private Contractor Fees,74006-HOLIDAY/CHRISTMAS ALLOWANCE-FOSTER CARERS-OTH AGENCY PROVISION,Revenue,"1,794.25",10/11/2014,Childrens
WC50-0698,C P DAVIDSON & SONS LTD,Supplies & Services,"Equip,Furniture & Materials",60514-MATERIALS TO STORES,Revenue,337.30,04/11/2014,Neighbourhood Services
WC50-0699,C P DAVIDSON & SONS LTD,Third Party Payments,Private Contractor Fees,73025-PROFESSIONAL SERVICES-PRIV CONTRACTOR & OTHER AGENCIES,Revenue,379.56,19/11/2014,Neighbourhood Services
WC50-0700,C P DAVIDSON & SONS LTD,Supplies & Services,"Equip,Furniture & Materials",60514-MATERIALS TO STORES,Revenue,539.39,19/11/2014,Neighbourhood Services
WC50-0701,C P DAVIDSON & SONS LTD,Supplies & Services,"Equip,Furniture & Materials",60514-MATERIALS TO STORES,Revenue,"1,610.52",07/11/2014,Neighbourhood Services
WC50-0702,C P DAVIDSON & SONS LTD,Supplies & Services,"Equip,Furniture & Materials",60500-GENERAL MATERIALS,Revenue,"1,781.04",19/11/2014,Neighbourhood Services
WC50-0703,C P DAVIDSON & SONS LTD,Third Party Payments,Private Contractor Fees,73025-PROFESSIONAL SERVICES-PRIV CONTRACTOR & OTHER AGENCIES,Revenue,"5,577.28",05/11/2014,Neighbourhood Services
WC50-0704,CADLINE LTD,Supplies & Services,Communications & Computing,63820-RECHARGE FOR MAINTENANCE/APPLICATION COSTS-COMPUTER,Revenue,"22,434.00",14/11/2014,Resources
WC50-0705,CAFCASS,Supplies & Services,Services,63000-PROFESSIONAL FEES AND SERVICES,Revenue,287.55,03/11/2014,Childrens
WC50-0706,CAFCASS,Supplies & Services,Services,63000-PROFESSIONAL FEES AND SERVICES,Revenue,328.85,03/11/2014,Childrens
WC50-0707,CALDMORE AREA HOUSING ASS LTD,Third Party Payments,Private Contractor Fees,73373-RESIDENTIAL & NURSING CARE PLACEMENTS,Revenue,265.43,26/11/2014,Social Care & Inclusion
WC50-0708,CALDMORE AREA HOUSING ASS LTD,Third Party Payments,Private Contractor Fees,73373-RESIDENTIAL & NURSING CARE PLACEMENTS,Revenue,353.90,26/11/2014,Social Care & Inclusion
WC50-0709,CALDMORE AREA HOUSING ASS LTD,Third Party Payments,Private Contractor Fees,73373-RESIDENTIAL & NURSING CARE PLACEMENTS,Revenue,619.33,25/11/2014,Social Care & Inclusion
WC50-0710,CALDMORE AREA HOUSING ASS LTD,Third Party Payments,Private Contractor Fees,73373-RESIDENTIAL & NURSING CARE PLACEMENTS,Revenue,707.81,11/11/2014,Social Care & Inclusion
WC50-0711,CALDMORE AREA HOUSING ASS LTD,Third Party Payments,Private Contractor Fees,73374-SUPPORTED & OTHER ACCOMMODATION,Revenue,721.00,01/11/2014,Social Care & Inclusion
WC50-0712,CALDMORE AREA HOUSING ASS LTD,Third Party Payments,Private Contractor Fees,73374-SUPPORTED & OTHER ACCOMMODATION,Revenue,721.00,01/11/2014,Social Care & Inclusion
WC50-0713,CALDMORE AREA HOUSING ASS LTD,Third Party Payments,Private Contractor Fees,73374-SUPPORTED & OTHER ACCOMMODATION,Revenue,721.00,01/11/2014,Social Care & Inclusion
WC50-0714,CALDMORE AREA HOUSING ASS LTD,Third Party Payments,Private Contractor Fees,73374-SUPPORTED & OTHER ACCOMMODATION,Revenue,721.00,01/11/2014,Social Care & Inclusion
WC50-0715,CALDMORE AREA HOUSING ASS LTD,Third Party Payments,Private Contractor Fees,73374-SUPPORTED & OTHER ACCOMMODATION,Revenue,721.00,01/11/2014,Social Care & Inclusion
WC50-0716,CALDMORE AREA HOUSING ASS LTD,Third Party Payments,Private Contractor Fees,73374-SUPPORTED & OTHER ACCOMMODATION,Revenue,721.00,01/11/2014,Social Care & Inclusion
WC50-0717,CALDMORE AREA HOUSING ASS LTD,Third Party Payments,Private Contractor Fees,73374-SUPPORTED & OTHER ACCOMMODATION,Revenue,721.00,01/11/2014,Social Care & Inclusion
WC50-0718,CALDMORE AREA HOUSING ASS LTD,Third Party Payments,Private Contractor Fees,73374-SUPPORTED & OTHER ACCOMMODATION,Revenue,721.00,01/11/2014,Social Care & Inclusion
WC50-0719,CALDMORE AREA HOUSING ASS LTD,Third Party Payments,Private Contractor Fees,73374-SUPPORTED & OTHER ACCOMMODATION,Revenue,721.00,12/11/2014,Social Care & Inclusion
WC50-0720,CALDMORE AREA HOUSING ASS LTD,Third Party Payments,Private Contractor Fees,73374-SUPPORTED & OTHER ACCOMMODATION,Revenue,721.00,12/11/2014,Social Care & Inclusion
WC50-0721,CALDMORE AREA HOUSING ASS LTD,Third Party Payments,Private Contractor Fees,73373-RESIDENTIAL & NURSING CARE PLACEMENTS,Revenue,884.76,25/11/2014,Social Care & Inclusion
WC50-0722,CALDMORE AREA HOUSING ASS LTD,Third Party Payments,Private Contractor Fees,73373-RESIDENTIAL & NURSING CARE PLACEMENTS,Revenue,"1,592.56",25/11/2014,Social Care & Inclusion
WC50-0723,CALDMORE AREA HOUSING ASS LTD,Third Party Payments,Private Contractor Fees,73373-RESIDENTIAL & NURSING CARE PLACEMENTS,Revenue,"2,477.32",19/11/2014,Social Care & Inclusion
WC50-0724,CALDMORE AREA HOUSING ASS LTD,Third Party Payments,Private Contractor Fees,73373-RESIDENTIAL & NURSING CARE PLACEMENTS,Revenue,"2,477.32",19/11/2014,Social Care & Inclusion
WC50-0725,CALDMORE AREA HOUSING ASS LTD,Third Party Payments,Private Contractor Fees,73373-RESIDENTIAL & NURSING CARE PLACEMENTS,Revenue,"2,477.32",19/11/2014,Social Care & Inclusion
WC50-0726,CALDMORE AREA HOUSING ASS LTD,Third Party Payments,Private Contractor Fees,73373-RESIDENTIAL & NURSING CARE PLACEMENTS,Revenue,"2,477.32",19/11/2014,Social Care & Inclusion
WC50-0727,CALDMORE AREA HOUSING ASS LTD,Third Party Payments,Private Contractor Fees,73373-RESIDENTIAL & NURSING CARE PLACEMENTS,Revenue,"2,477.32",19/11/2014,Social Care & Inclusion
WC50-0728,CALDMORE AREA HOUSING ASS LTD,Third Party Payments,Private Contractor Fees,73373-RESIDENTIAL & NURSING CARE PLACEMENTS,Revenue,"2,477.32",19/11/2014,Social Care & Inclusion
WC50-0729,CALDMORE AREA HOUSING ASS LTD,Third Party Payments,Private Contractor Fees,73373-RESIDENTIAL & NURSING CARE PLACEMENTS,Revenue,"2,477.32",19/11/2014,Social Care & Inclusion
WC50-0730,CALDMORE AREA HOUSING ASS LTD,Third Party Payments,Private Contractor Fees,73373-RESIDENTIAL & NURSING CARE PLACEMENTS,Revenue,"2,477.32",19/11/2014,Social Care & Inclusion
WC50-0731,CALDMORE AREA HOUSING ASS LTD,Third Party Payments,Private Contractor Fees,73373-RESIDENTIAL & NURSING CARE PLACEMENTS,Revenue,"2,477.32",19/11/2014,Social Care & Inclusion
WC50-0732,CALDMORE AREA HOUSING ASS LTD,Third Party Payments,Private Contractor Fees,73373-RESIDENTIAL & NURSING CARE PLACEMENTS,Revenue,"3,096.65",19/11/2014,Social Care & Inclusion
WC50-0733,CALDMORE AREA HOUSING ASS LTD,Third Party Payments,Private Contractor Fees,73373-RESIDENTIAL & NURSING CARE PLACEMENTS,Revenue,"3,096.65",25/11/2014,Social Care & Inclusion
WC50-0734,REDACTED,Third Party Payments,Private Contractor Fees,74006-HOLIDAY/CHRISTMAS ALLOWANCE-FOSTER CARERS-OTH AGENCY PROVISION,Revenue,373.60,24/11/2014,Childrens
WC50-0735,REDACTED,Transfer Payments,Transfer Payments,76422-DIRECT PAYMENTS TO SOCIAL SERVICES CLIENTS,Revenue,287.70,11/11/2014,Childrens
WC50-0736,CAMBIAN LEARNING DISABILITES MIDLANDS LIMITED,Third Party Payments,Private Contractor Fees,73375-IN PATIENT BEDS,Revenue,"10,557.00",07/11/2014,Social Care & Inclusion
WC50-0737,CAMPBELL INSTALLATIONS LTD,Supplies & Services,"Equip,Furniture & Materials",60008-MAINTENANCE-FURNITURE & EQUIPMENT,Revenue,385.00,26/11/2014,Neighbourhood Services
WC50-0738,CANAL & RIVER TRUST,Third Party Payments,Private Contractor Fees,73025-PROFESSIONAL SERVICES-PRIV CONTRACTOR & OTHER AGENCIES,Revenue,672.50,21/11/2014,Neighbourhood Services
WC50-0739,CAPITA BUSINESS SERVICES LTD 001,Supplies & Services,Services,63000-PROFESSIONAL FEES AND SERVICES,Revenue,92.79,21/11/2014,Childrens
WC50-0740,CAPITA BUSINESS SERVICES LTD 001,Supplies & Services,Services,63000-PROFESSIONAL FEES AND SERVICES,Revenue,92.79,21/11/2014,Childrens
WC50-0741,CAPITA BUSINESS SERVICES LTD 001,Supplies & Services,Services,63000-PROFESSIONAL FEES AND SERVICES,Revenue,92.79,21/11/2014,Childrens
WC50-0742,CAPITA BUSINESS SERVICES LTD 001,Supplies & Services,Services,63000-PROFESSIONAL FEES AND SERVICES,Revenue,92.79,21/11/2014,Neighbourhood Services
WC50-0743,CAPITA BUSINESS SERVICES LTD 001,Employees,Training,30030-EXTERNAL TRAINING,Revenue,399.00,10/11/2014,Childrens
WC50-0744,CAPITA SPECIALIST INSURANCE SOLUTIONS,Supplies & Services,Other Supplies & Services,89012-TEACHERS SICKNESS SCHEME PREMIUM INSURANCE POLICY,Revenue,600.70,13/11/2014,Holding Accounts
WC50-0745,CAPITAL HAIR & BEAUTY LTD,Supplies & Services,Other Supplies & Services,63115-HIRE OF ROOM (duplicate please use 63128)-SERVICES-FEES,Revenue,800.00,05/11/2014,Neighbourhood Services
WC50-0746,CAPSTONE FOSTER CARE (SOUTH EAST) LIMITED,Third Party Payments,Private Contractor Fees,74037-INDEPENDENT FOSTER CARE-OTH AGENCY PROVISION,Revenue,"3,658.16",25/11/2014,Childrens
WC50-0747,CARE 2 U LIMITED,Third Party Payments,Private Contractor Fees,73372-DOMICILIARY CARE,Revenue,"9,277.35",11/11/2014,Social Care & Inclusion
WC50-0748,CARE 2 U LIMITED,Third Party Payments,Private Contractor Fees,73372-DOMICILIARY CARE,Revenue,"9,749.23",10/11/2014,Social Care & Inclusion
WC50-0749,CARE 2 U LIMITED,Third Party Payments,Private Contractor Fees,73372-DOMICILIARY CARE,Revenue,"11,350.11",17/11/2014,Social Care & Inclusion
WC50-0750,CARE 2 U LIMITED,Third Party Payments,Private Contractor Fees,73372-DOMICILIARY CARE,Revenue,"31,250.65",11/11/2014,Social Care & Inclusion
WC50-0751,CARE AVENUES LTD,Third Party Payments,Private Contractor Fees,73372-DOMICILIARY CARE,Revenue,"3,915.09",12/11/2014,Social Care & Inclusion
WC50-0752,CARE AVENUES LTD,Third Party Payments,Private Contractor Fees,73372-DOMICILIARY CARE,Revenue,"3,915.09",12/11/2014,Social Care & Inclusion
WC50-0753,CARE AVENUES LTD,Third Party Payments,Private Contractor Fees,73372-DOMICILIARY CARE,Revenue,"5,273.17",12/11/2014,Social Care & Inclusion
WC50-0754,CARE FIRST CARE HOMES LTD,Third Party Payments,Private Contractor Fees,73373-RESIDENTIAL & NURSING CARE PLACEMENTS,Revenue,426.86,19/11/2014,Social Care & Inclusion
WC50-0755,CARE FIRST CARE HOMES LTD,Third Party Payments,Private Contractor Fees,73373-RESIDENTIAL & NURSING CARE PLACEMENTS,Revenue,533.57,19/11/2014,Social Care & Inclusion
WC50-0756,CARE FIRST MANAGEMENT SERVICES LTD,Third Party Payments,Private Contractor Fees,73372-DOMICILIARY CARE,Revenue,780.00,13/11/2014,Social Care & Inclusion
WC50-0757,CARE LEAVERS,Supplies & Services,Other Supplies & Services,63114-OTHER FEES & LICENCES-SERVICES-FEES,Revenue,86.25,26/11/2014,Childrens
WC50-0758,CARE LEAVERS,Supplies & Services,Other Supplies & Services,63114-OTHER FEES & LICENCES-SERVICES-FEES,Revenue,167.50,19/11/2014,Childrens
WC50-0759,CARE LEAVERS,Third Party Payments,Private Contractor Fees,74500-CARE LEAVERS MTCE PAYMENTS,Revenue,350.00,06/11/2014,Childrens
WC50-0760,CARE LEAVERS,Third Party Payments,Private Contractor Fees,74500-CARE LEAVERS MTCE PAYMENTS,Revenue,715.49,26/11/2014,Childrens
WC50-0761,CARE LEAVERS,Transfer Payments,Transfer Payments,76400-RESIDENTS PERSONAL EXPENSES-ALLOWANCES TO S/S CLIENTS,Revenue,745.55,26/11/2014,Childrens
WC50-0762,CARE LEAVERS,Supplies & Services,Other Supplies & Services,64002-OTHER EXPENSES-EXPENSES,Revenue,"1,458.50",19/11/2014,Childrens
WC50-0763,CARE LEAVERS,Transfer Payments,Transfer Payments,76010-ACCOMMODATION AND RELATED COSTS-ASSISTANCE TO S/S CLIENTS,Revenue,"1,539.40",19/11/2014,Childrens
WC50-0764,CARE LEAVERS,Supplies & Services,Other Supplies & Services,64002-OTHER EXPENSES-EXPENSES,Revenue,"1,696.18",06/11/2014,Childrens
WC50-0765,CARE LEAVERS,Third Party Payments,Private Contractor Fees,74500-CARE LEAVERS MTCE PAYMENTS,Revenue,"1,923.14",19/11/2014,Childrens
WC50-0766,CARE LEAVERS,Transfer Payments,Transfer Payments,76400-RESIDENTS PERSONAL EXPENSES-ALLOWANCES TO S/S CLIENTS,Revenue,"2,202.48",06/11/2014,Childrens
WC50-0767,CARE LEAVERS,Transfer Payments,Transfer Payments,76400-RESIDENTS PERSONAL EXPENSES-ALLOWANCES TO S/S CLIENTS,Revenue,"2,698.48",19/11/2014,Childrens
WC50-0768,CARE LEAVERS,Transfer Payments,Transfer Payments,76000-TRANSFER PAYMENTS - SOCIAL SERVICES CLIENTS,Revenue,"3,683.90",06/11/2014,Childrens
WC50-0769,CARE LEAVERS,Supplies & Services,Other Supplies & Services,64002-OTHER EXPENSES-EXPENSES,Revenue,"4,233.99",26/11/2014,Childrens
WC50-0770,CARE LEAVERS,Transfer Payments,Transfer Payments,76000-TRANSFER PAYMENTS - SOCIAL SERVICES CLIENTS,Revenue,"4,447.61",19/11/2014,Childrens
WC50-0771,CARE LEAVERS,Transfer Payments,Transfer Payments,76010-ACCOMMODATION AND RELATED COSTS-ASSISTANCE TO S/S CLIENTS,Revenue,"5,464.30",06/11/2014,Childrens
WC50-0772,CARE LEAVERS,Transfer Payments,Transfer Payments,76010-ACCOMMODATION AND RELATED COSTS-ASSISTANCE TO S/S CLIENTS,Revenue,"10,504.26",26/11/2014,Childrens
WC50-0773,CARE SHOP,Supplies & Services,"Equip,Furniture & Materials",60520-HEALTH & SAFETY-MATERIALS,Revenue,255.08,13/11/2014,Social Care & Inclusion
WC50-0774,CARE SHOP,Supplies & Services,"Equip,Furniture & Materials",60520-HEALTH & SAFETY-MATERIALS,Revenue,654.86,13/11/2014,Social Care & Inclusion
WC50-0775,CARE TODAY CHILDRENS SERVICES,Third Party Payments,Private Contractor Fees,74036-EXTERNAL RESIDENTIAL CARE-OTH AGENCY PROVISION,Revenue,"10,500.32",17/11/2014,Childrens
WC50-0776,CARETECH COMMUNITY SERVICE,Third Party Payments,Private Contractor Fees,73374-SUPPORTED & OTHER ACCOMMODATION,Revenue,"1,171.37",21/11/2014,Social Care & Inclusion
WC50-0777,CARETECH COMMUNITY SERVICE,Third Party Payments,Private Contractor Fees,73374-SUPPORTED & OTHER ACCOMMODATION,Revenue,"1,954.29",26/11/2014,Social Care & Inclusion
WC50-0778,CARETECH COMMUNITY SERVICE,Third Party Payments,Private Contractor Fees,73374-SUPPORTED & OTHER ACCOMMODATION,Revenue,"4,118.83",21/11/2014,Social Care & Inclusion
WC50-0779,CARETECH COMMUNITY SERVICE,Third Party Payments,Private Contractor Fees,73374-SUPPORTED & OTHER ACCOMMODATION,Revenue,"4,885.71",26/11/2014,Social Care & Inclusion
WC50-0780,CARETECH COMMUNITY SERVICE,Third Party Payments,Private Contractor Fees,73374-SUPPORTED & OTHER ACCOMMODATION,Revenue,"5,048.57",26/11/2014,Social Care & Inclusion
WC50-0781,CAREVIEW SERVICES LTD,Third Party Payments,Private Contractor Fees,73373-RESIDENTIAL & NURSING CARE PLACEMENTS,Revenue,"6,438.51",11/11/2014,Social Care & Inclusion
WC50-0782,CARILLION COMMUNICATIONS LIMITED,Supplies & Services,"Equip,Furniture & Materials",60512-LOOSE TOOLS & CONSUMABLES,Revenue,149.00,04/11/2014,Neighbourhood Services
WC50-0783,CARILLION COMMUNICATIONS LIMITED,Supplies & Services,"Equip,Furniture & Materials",60000-FURNITURE & EQUIPMENT,Revenue,"1,127.00",20/11/2014,Neighbourhood Services
WC50-0784,CARILLION COMMUNICATIONS LIMITED,Supplies & Services,"Equip,Furniture & Materials",60006-NEW-FURNITURE & EQUIPMENT,Revenue,"2,781.00",04/11/2014,Neighbourhood Services
WC50-0785,CARING CARE LIMITED,Third Party Payments,Private Contractor Fees,73372-DOMICILIARY CARE,Revenue,839.06,25/11/2014,Social Care & Inclusion
WC50-0786,CARING CARE LIMITED,Third Party Payments,Private Contractor Fees,73372-DOMICILIARY CARE,Revenue,"1,884.44",25/11/2014,Social Care & Inclusion
WC50-0787,CARING CARE LIMITED,Third Party Payments,Private Contractor Fees,73372-DOMICILIARY CARE,Revenue,"37,482.60",11/11/2014,Social Care & Inclusion
WC50-0788,REDACTED,Transfer Payments,Transfer Payments,76422-DIRECT PAYMENTS TO SOCIAL SERVICES CLIENTS,Revenue,450.00,11/11/2014,Social Care & Inclusion
WC50-0789,REDACTED,Supplies & Services,Other Supplies & Services,62515-MISCELLANEOUS SUPPLIES,Revenue,533.96,10/11/2014,Childrens
WC50-0790,REDACTED,Third Party Payments,Private Contractor Fees,74006-HOLIDAY/CHRISTMAS ALLOWANCE-FOSTER CARERS-OTH AGENCY PROVISION,Revenue,"1,097.07",10/11/2014,Childrens
WC50-0791,REDACTED,Third Party Payments,Private Contractor Fees,74006-HOLIDAY/CHRISTMAS ALLOWANCE-FOSTER CARERS-OTH AGENCY PROVISION,Revenue,592.94,24/11/2014,Childrens
WC50-0792,CARPENTERS TRIBUTE SHOW,Supplies & Services,Services,63000-PROFESSIONAL FEES AND SERVICES,Revenue,300.00,11/11/2014,Neighbourhood Services
WC50-0793,CARTER SYNERGY LTD,Supplies & Services,Services,63000-PROFESSIONAL FEES AND SERVICES,Revenue,891.00,01/11/2014,Neighbourhood Services
WC50-0794,CARTER SYNERGY LTD,Premises,Premises-Repairs & Maintenance,"40000-REPAIRS,ALTERATIONS & MAINTENANCE-PREM",Revenue,"1,102.17",18/11/2014,Neighbourhood Services
WC50-0795,CARTER SYNERGY LTD,Premises,Premises-Repairs & Maintenance,"40000-REPAIRS,ALTERATIONS & MAINTENANCE-PREM",Revenue,"1,428.50",01/11/2014,Neighbourhood Services
WC50-0796,CARTER SYNERGY LTD,Premises,Premises-Repairs & Maintenance,40011-SECURITY SYSTEM-OP MTCE,Revenue,"1,506.45",18/11/2014,Neighbourhood Services
WC50-0797,CARTER SYNERGY LTD,Premises,Premises-Repairs & Maintenance,"40000-REPAIRS,ALTERATIONS & MAINTENANCE-PREM",Revenue,"5,290.00",01/11/2014,Neighbourhood Services
WC50-0798,CARTER SYNERGY LTD,Premises,Premises-Repairs & Maintenance,40013-LIFTS-OP MTCE,Revenue,"8,185.00",05/11/2014,Neighbourhood Services
WC50-0799,CARTER SYNERGY LTD,Premises,Premises-Repairs & Maintenance,40216-OTHER-PLAN MTCE,Revenue,"9,939.41",25/11/2014,Neighbourhood Services
WC50-0800,CARTER SYNERGY LTD,Premises,Premises-Repairs & Maintenance,"40000-REPAIRS,ALTERATIONS & MAINTENANCE-PREM",Revenue,"21,634.70",10/11/2014,Neighbourhood Services
WC50-0801,CARTER SYNERGY LTD,Premises,Premises-Repairs & Maintenance,40013-LIFTS-OP MTCE,Revenue,"23,925.50",04/11/2014,Neighbourhood Services
WC50-0802,CARTER SYNERGY LTD,Premises,Premises-Repairs & Maintenance,"40000-REPAIRS,ALTERATIONS & MAINTENANCE-PREM",Revenue,"28,846.28",18/11/2014,Neighbourhood Services
WC50-0803,CASHFRIDAY,Third Party Payments,Private Contractor Fees,73372-DOMICILIARY CARE,Revenue,254.50,05/11/2014,Social Care & Inclusion
WC50-0804,CASHFRIDAY,Third Party Payments,Private Contractor Fees,73372-DOMICILIARY CARE,Revenue,288.00,01/11/2014,Social Care & Inclusion
WC50-0805,CASHFRIDAY,Third Party Payments,Private Contractor Fees,73372-DOMICILIARY CARE,Revenue,294.00,01/11/2014,Social Care & Inclusion
WC50-0806,CASHFRIDAY,Third Party Payments,Private Contractor Fees,73372-DOMICILIARY CARE,Revenue,294.00,05/11/2014,Social Care & Inclusion
WC50-0807,CASHFRIDAY,Third Party Payments,Private Contractor Fees,73372-DOMICILIARY CARE,Revenue,299.00,01/11/2014,Social Care & Inclusion
WC50-0808,CASHFRIDAY,Third Party Payments,Private Contractor Fees,73372-DOMICILIARY CARE,Revenue,323.25,01/11/2014,Social Care & Inclusion
WC50-0809,CASHFRIDAY,Third Party Payments,Private Contractor Fees,73372-DOMICILIARY CARE,Revenue,343.00,05/11/2014,Social Care & Inclusion
WC50-0810,CASHFRIDAY,Third Party Payments,Private Contractor Fees,73372-DOMICILIARY CARE,Revenue,349.00,04/11/2014,Social Care & Inclusion
WC50-0811,CASHFRIDAY,Third Party Payments,Private Contractor Fees,73372-DOMICILIARY CARE,Revenue,383.25,05/11/2014,Social Care & Inclusion
WC50-0812,CASHFRIDAY,Third Party Payments,Private Contractor Fees,73372-DOMICILIARY CARE,Revenue,410.75,05/11/2014,Social Care & Inclusion
WC50-0813,CASHFRIDAY,Third Party Payments,Private Contractor Fees,73372-DOMICILIARY CARE,Revenue,434.00,01/11/2014,Social Care & Inclusion
WC50-0814,CASHFRIDAY,Third Party Payments,Private Contractor Fees,73372-DOMICILIARY CARE,Revenue,434.00,03/11/2014,Social Care & Inclusion
WC50-0815,CASHFRIDAY,Third Party Payments,Private Contractor Fees,73372-DOMICILIARY CARE,Revenue,434.00,04/11/2014,Social Care & Inclusion
WC50-0816,CASHFRIDAY,Third Party Payments,Private Contractor Fees,73372-DOMICILIARY CARE,Revenue,444.50,05/11/2014,Social Care & Inclusion
WC50-0817,CASHFRIDAY,Third Party Payments,Private Contractor Fees,73372-DOMICILIARY CARE,Revenue,476.00,01/11/2014,Social Care & Inclusion
WC50-0818,CASHFRIDAY,Third Party Payments,Private Contractor Fees,73372-DOMICILIARY CARE,Revenue,479.00,01/11/2014,Social Care & Inclusion
WC50-0819,CASHFRIDAY,Third Party Payments,Private Contractor Fees,73374-SUPPORTED & OTHER ACCOMMODATION,Revenue,489.00,01/11/2014,Social Care & Inclusion
WC50-0820,CASHFRIDAY,Third Party Payments,Private Contractor Fees,73372-DOMICILIARY CARE,Revenue,490.00,01/11/2014,Social Care & Inclusion
WC50-0821,CASHFRIDAY,Third Party Payments,Private Contractor Fees,73372-DOMICILIARY CARE,Revenue,509.00,01/11/2014,Social Care & Inclusion
WC50-0822,CASHFRIDAY,Third Party Payments,Private Contractor Fees,73372-DOMICILIARY CARE,Revenue,553.00,01/11/2014,Social Care & Inclusion
WC50-0823,CASHFRIDAY,Third Party Payments,Private Contractor Fees,73372-DOMICILIARY CARE,Revenue,567.50,13/11/2014,Social Care & Inclusion
WC50-0824,CASHFRIDAY,Third Party Payments,Private Contractor Fees,73372-DOMICILIARY CARE,Revenue,586.00,26/11/2014,Social Care & Inclusion
WC50-0825,CASHFRIDAY,Third Party Payments,Private Contractor Fees,73372-DOMICILIARY CARE,Revenue,588.00,01/11/2014,Social Care & Inclusion
WC50-0826,CASHFRIDAY,Third Party Payments,Private Contractor Fees,73372-DOMICILIARY CARE,Revenue,588.25,26/11/2014,Social Care & Inclusion
WC50-0827,CASHFRIDAY,Third Party Payments,Private Contractor Fees,73372-DOMICILIARY CARE,Revenue,698.00,01/11/2014,Social Care & Inclusion
WC50-0828,CASHFRIDAY,Third Party Payments,Private Contractor Fees,73372-DOMICILIARY CARE,Revenue,766.50,01/11/2014,Social Care & Inclusion
WC50-0829,CASHFRIDAY,Third Party Payments,Private Contractor Fees,73372-DOMICILIARY CARE,Revenue,784.00,13/11/2014,Social Care & Inclusion
WC50-0830,CASHFRIDAY,Third Party Payments,Private Contractor Fees,73372-DOMICILIARY CARE,Revenue,806.38,19/11/2014,Social Care & Inclusion
WC50-0831,CASHFRIDAY,Third Party Payments,Private Contractor Fees,73372-DOMICILIARY CARE,Revenue,868.00,01/11/2014,Social Care & Inclusion
WC50-0832,CASHFRIDAY,Third Party Payments,Private Contractor Fees,73372-DOMICILIARY CARE,Revenue,889.00,01/11/2014,Social Care & Inclusion
WC50-0833,CASHFRIDAY,Third Party Payments,Private Contractor Fees,73372-DOMICILIARY CARE,Revenue,889.00,01/11/2014,Social Care & Inclusion
WC50-0834,CASHFRIDAY,Third Party Payments,Private Contractor Fees,73372-DOMICILIARY CARE,Revenue,"1,206.50",01/11/2014,Social Care & Inclusion
WC50-0835,CASHFRIDAY,Third Party Payments,Private Contractor Fees,73372-DOMICILIARY CARE,Revenue,"1,312.00",05/11/2014,Social Care & Inclusion
WC50-0836,CASTLE BUSINESS AND ENTERPRISE COLLEGE,Supplies & Services,Services,63000-PROFESSIONAL FEES AND SERVICES,Revenue,"1,239.43",21/11/2014,Childrens
WC50-0837,CASTLE BUSINESS AND ENTERPRISE COLLEGE,Supplies & Services,Services,63000-PROFESSIONAL FEES AND SERVICES,Revenue,"8,388.37",21/11/2014,Childrens
WC50-0838,REDACTED,Third Party Payments,Private Contractor Fees,73014-LEGAL FEES-PRIV CONTRACTOR FEES,Revenue,"1,769.25",24/11/2014,Childrens
WC50-0839,REDACTED,Transfer Payments,Transfer Payments,76422-DIRECT PAYMENTS TO SOCIAL SERVICES CLIENTS,Revenue,622.68,11/11/2014,Social Care & Inclusion
WC50-0840,REDACTED,Transfer Payments,Transfer Payments,76422-DIRECT PAYMENTS TO SOCIAL SERVICES CLIENTS,Revenue,690.48,11/11/2014,Social Care & Inclusion
WC50-0841,REDACTED,Third Party Payments,Private Contractor Fees,74006-HOLIDAY/CHRISTMAS ALLOWANCE-FOSTER CARERS-OTH AGENCY PROVISION,Revenue,417.56,24/11/2014,Childrens
WC50-0842,REDACTED,Transfer Payments,Transfer Payments,76422-DIRECT PAYMENTS TO SOCIAL SERVICES CLIENTS,Revenue,388.40,11/11/2014,Social Care & Inclusion
WC50-0843,REDACTED,Transfer Payments,Transfer Payments,76422-DIRECT PAYMENTS TO SOCIAL SERVICES CLIENTS,Revenue,"1,014.26",11/11/2014,Childrens
WC50-0844,REDACTED,Third Party Payments,Private Contractor Fees,74006-HOLIDAY/CHRISTMAS ALLOWANCE-FOSTER CARERS-OTH AGENCY PROVISION,Revenue,417.56,24/11/2014,Childrens
WC50-0845,CCS MEDIA LTD,Supplies & Services,Communications & Computing,63800-COMPUTER EQUIPMENT AND SUPPLIES,Revenue,293.00,21/11/2014,Resources
WC50-0846,CCS MEDIA LTD,Supplies & Services,Communications & Computing,63800-COMPUTER EQUIPMENT AND SUPPLIES,Revenue,"1,070.00",21/11/2014,Resources
WC50-0847,CE RISK SAFETY AND SECURITY LTD,Third Party Payments,Private Contractor Fees,73025-PROFESSIONAL SERVICES-PRIV CONTRACTOR & OTHER AGENCIES,Revenue,"1,260.00",05/11/2014,Regeneration
WC50-0848,CE RISK SAFETY AND SECURITY LTD,Third Party Payments,Private Contractor Fees,73002-SECURITY-PRIV CONTRACTOR FEES,Revenue,"7,653.77",11/11/2014,Regeneration
WC50-0849,CEDER LODGE NURSING HOME,Third Party Payments,Private Contractor Fees,73373-RESIDENTIAL & NURSING CARE PLACEMENTS,Revenue,"2,071.24",25/11/2014,Social Care & Inclusion
WC50-0850,CENTRAL BUSES,Transport,Hire,52000-WITH DRIVER-HIRE OF VEHICLES,Revenue,522.00,25/11/2014,Childrens
WC50-0851,CENTRO WMPTA,Transport,Hire,52000-WITH DRIVER-HIRE OF VEHICLES,Revenue,"-1,107.60",20/11/2014,Childrens
WC50-0852,CENTRO WMPTA,Transfer Payments,Transfer Payments,76000-TRANSFER PAYMENTS - SOCIAL SERVICES CLIENTS,Revenue,"1,065.00",03/11/2014,Social Care & Inclusion
WC50-0853,CENTRO WMPTA,Transfer Payments,Transfer Payments,76000-TRANSFER PAYMENTS - SOCIAL SERVICES CLIENTS,Revenue,"2,130.00",24/11/2014,Social Care & Inclusion
WC50-0854,CENTRO WMPTA,Transport,Hire,52000-WITH DRIVER-HIRE OF VEHICLES,Revenue,"22,060.50",19/11/2014,Childrens
WC50-0855,REDACTED,Supplies & Services,Services,63000-PROFESSIONAL FEES AND SERVICES,Revenue,250.00,03/11/2014,Neighbourhood Services
WC50-0856,REDACTED,Supplies & Services,Services,63000-PROFESSIONAL FEES AND SERVICES,Revenue,250.00,26/11/2014,Neighbourhood Services
WC50-0857,REDACTED,Third Party Payments,Private Contractor Fees,74006-HOLIDAY/CHRISTMAS ALLOWANCE-FOSTER CARERS-OTH AGENCY PROVISION,Revenue,"1,001.65",24/11/2014,Childrens
WC50-0858,CERTAS ENERGY UK LIMITED,Transport,Other Transport,50301-FUEL-TRANSPORT RUN COSTS,Revenue,549.05,12/11/2014,Neighbourhood Services
WC50-0859,CERTAS ENERGY UK LIMITED,Transport,Other Transport,50301-FUEL-TRANSPORT RUN COSTS,Revenue,752.65,03/11/2014,Neighbourhood Services
WC50-0860,CERTAS ENERGY UK LIMITED,Transport,Other Transport,50301-FUEL-TRANSPORT RUN COSTS,Revenue,"1,640.40",21/11/2014,Neighbourhood Services
WC50-0861,CERTAS ENERGY UK LIMITED,Transport,Other Transport,50301-FUEL-TRANSPORT RUN COSTS,Revenue,"10,059.00",21/11/2014,Neighbourhood Services
WC50-0862,CERTAS ENERGY UK LIMITED,Transport,Other Transport,50301-FUEL-TRANSPORT RUN COSTS,Revenue,"20,156.00",12/11/2014,Neighbourhood Services
WC50-0863,CEXC LIMITED,Supplies & Services,Communications & Computing,63800-COMPUTER EQUIPMENT AND SUPPLIES,Revenue,"6,500.00",19/11/2014,Resources
WC50-0864,CF ASSET FINANCE LIMITED,Supplies & Services,"Equip,Furniture & Materials",60009-LEASING/HIRE/RENTAL-EQUIPMENT,Revenue,-347.18,17/11/2014,Resources
WC50-0865,CF ASSET FINANCE LIMITED,Supplies & Services,"Equip,Furniture & Materials",60009-LEASING/HIRE/RENTAL-EQUIPMENT,Revenue,254.64,03/11/2014,Resources
WC50-0866,CF ASSET FINANCE LIMITED,Supplies & Services,"Equip,Furniture & Materials",60009-LEASING/HIRE/RENTAL-EQUIPMENT,Revenue,272.86,13/11/2014,Childrens
WC50-0867,CF ASSET FINANCE LIMITED,Supplies & Services,"Equip,Furniture & Materials",60009-LEASING/HIRE/RENTAL-EQUIPMENT,Revenue,272.86,18/11/2014,Resources
WC50-0868,CF ASSET FINANCE LIMITED,Supplies & Services,"Equip,Furniture & Materials",60009-LEASING/HIRE/RENTAL-EQUIPMENT,Revenue,318.83,18/11/2014,Social Care & Inclusion
WC50-0869,CF ASSET FINANCE LIMITED,Supplies & Services,"Equip,Furniture & Materials",60009-LEASING/HIRE/RENTAL-EQUIPMENT,Revenue,330.32,03/11/2014,Resources
WC50-0870,CF ASSET FINANCE LIMITED,Supplies & Services,"Equip,Furniture & Materials",60009-LEASING/HIRE/RENTAL-EQUIPMENT,Revenue,330.80,10/11/2014,Social Care & Inclusion
WC50-0871,CF ASSET FINANCE LIMITED,Supplies & Services,"Equip,Furniture & Materials",60009-LEASING/HIRE/RENTAL-EQUIPMENT,Revenue,347.18,17/11/2014,Resources
WC50-0872,CF CORPORATE FINANCE LTD,Supplies & Services,"Equip,Furniture & Materials",60009-LEASING/HIRE/RENTAL-EQUIPMENT,Revenue,255.00,26/11/2014,Childrens
WC50-0873,CF CORPORATE FINANCE LTD,Supplies & Services,"Equip,Furniture & Materials",60009-LEASING/HIRE/RENTAL-EQUIPMENT,Revenue,"1,290.34",04/11/2014,Childrens
WC50-0874,CHANGE POINT LTD,Employees,Training,30030-EXTERNAL TRAINING,Revenue,"2,625.00",01/11/2014,Social Care & Inclusion
WC50-0875,REDACTED,Transfer Payments,Transfer Payments,76422-DIRECT PAYMENTS TO SOCIAL SERVICES CLIENTS,Revenue,748.00,11/11/2014,Social Care & Inclusion
WC50-0876,REDACTED,Third Party Payments,Private Contractor Fees,74006-HOLIDAY/CHRISTMAS ALLOWANCE-FOSTER CARERS-OTH AGENCY PROVISION,Revenue,799.25,24/11/2014,Childrens
WC50-0877,CHARLIE CATERPILLAR'S DAY NURSERY,Employees,Agency,34305-AGENCY STAFF-EMPLOYEES,Revenue,341.00,20/11/2014,Childrens
WC50-0878,CHARLIE CATERPILLAR'S DAY NURSERY,Employees,Other Staff Costs,32000-MISC FEES AND EXPENSES,Revenue,546.00,06/11/2014,Childrens
WC50-0879,CHARLIE CATERPILLAR'S DAY NURSERY,Employees,Agency,34305-AGENCY STAFF-EMPLOYEES,Revenue,"1,074.08",07/11/2014,Childrens
WC50-0880,CHARLIE CATERPILLAR'S DAY NURSERY,Supplies & Services,Other Supplies & Services,63120-CRECHE FACILITIES-SERVICES-FEES,Revenue,"1,188.00",07/11/2014,Childrens
WC50-0881,CHARLIE CATERPILLAR'S DAY NURSERY,Supplies & Services,Other Supplies & Services,63120-CRECHE FACILITIES-SERVICES-FEES,Revenue,"1,320.00",07/11/2014,Childrens
WC50-0882,CHARLIE CATERPILLAR'S DAY NURSERY,Employees,Agency,34305-AGENCY STAFF-EMPLOYEES,Revenue,"1,656.12",20/11/2014,Childrens
WC50-0883,CHARLIE CATERPILLAR'S DAY NURSERY,Third Party Payments,Grants to Other Orgs,66505-OTHER-GRANTS TO OTHER ORGS,Revenue,"2,011.23",24/11/2014,Childrens
WC50-0884,CHARTER CARE,Third Party Payments,Private Contractor Fees,73372-DOMICILIARY CARE,Revenue,"32,275.94",11/11/2014,Social Care & Inclusion
WC50-0885,CHASE CARE LTD T/A HONEYBUNS,Third Party Payments,Grants to Other Orgs,66505-OTHER-GRANTS TO OTHER ORGS,Revenue,"1,687.05",27/11/2014,Childrens
WC50-0886,CHASE HOUSE AND PARTNER,Third Party Payments,Private Contractor Fees,73373-RESIDENTIAL & NURSING CARE PLACEMENTS,Revenue,"4,445.68",11/11/2014,Social Care & Inclusion
WC50-0887,CHASE HOUSE AND PARTNER,Third Party Payments,Private Contractor Fees,73373-RESIDENTIAL & NURSING CARE PLACEMENTS,Revenue,"4,455.44",11/11/2014,Social Care & Inclusion
WC50-0888,CHASE HOUSE AND PARTNER,Third Party Payments,Private Contractor Fees,73373-RESIDENTIAL & NURSING CARE PLACEMENTS,Revenue,"4,562.48",11/11/2014,Social Care & Inclusion
WC50-0889,CHASE HOUSE AND PARTNER,Third Party Payments,Private Contractor Fees,73373-RESIDENTIAL & NURSING CARE PLACEMENTS,Revenue,"4,753.76",11/11/2014,Social Care & Inclusion
WC50-0890,CHASEVIEW CARE HOME,Third Party Payments,Private Contractor Fees,73373-RESIDENTIAL & NURSING CARE PLACEMENTS,Revenue,"1,600.71",19/11/2014,Social Care & Inclusion
WC50-0891,CHERISH HOME CARE,Third Party Payments,Private Contractor Fees,73372-DOMICILIARY CARE,Revenue,"1,300.68",10/11/2014,Social Care & Inclusion
WC50-0892,CHERISH HOME CARE,Third Party Payments,Private Contractor Fees,73372-DOMICILIARY CARE,Revenue,"1,314.40",19/11/2014,Social Care & Inclusion
WC50-0893,CHERISH HOME CARE,Third Party Payments,Private Contractor Fees,73372-DOMICILIARY CARE,Revenue,"1,835.86",10/11/2014,Social Care & Inclusion
WC50-0894,CHERISH HOME CARE,Third Party Payments,Private Contractor Fees,73372-DOMICILIARY CARE,Revenue,"1,846.48",10/11/2014,Social Care & Inclusion
WC50-0895,CHERISH HOME CARE,Third Party Payments,Private Contractor Fees,73372-DOMICILIARY CARE,Revenue,"1,857.10",10/11/2014,Social Care & Inclusion
WC50-0896,CHERISH HOME CARE,Third Party Payments,Private Contractor Fees,73372-DOMICILIARY CARE,Revenue,"1,862.40",10/11/2014,Social Care & Inclusion
WC50-0897,REDACTED,Transfer Payments,Transfer Payments,76422-DIRECT PAYMENTS TO SOCIAL SERVICES CLIENTS,Revenue,"1,601.60",11/11/2014,Social Care & Inclusion
WC50-0898,CHILDCARE BUREAU LTD,Third Party Payments,Private Contractor Fees,74037-INDEPENDENT FOSTER CARE-OTH AGENCY PROVISION,Revenue,"3,733.52",24/11/2014,Childrens
WC50-0899,CHILDLINK,Supplies & Services,Other Supplies & Services,63128-HIRE OF ROOM-SERVICES-FEES,Revenue,3.13,17/11/2014,Childrens
WC50-0900,CHILDLINK,Supplies & Services,Other Supplies & Services,63128-HIRE OF ROOM-SERVICES-FEES,Revenue,3.13,25/11/2014,Childrens
WC50-0901,CHILDLINK,Supplies & Services,Other Supplies & Services,63128-HIRE OF ROOM-SERVICES-FEES,Revenue,3.34,03/11/2014,Childrens
WC50-0902,CHILDLINK,Transfer Payments,Transfer Payments,76408-OUTINGS-ALLOWANCES TO S/S CLIENTS,Revenue,10.75,03/11/2014,Childrens
WC50-0903,CHILDLINK,Supplies & Services,Other Supplies & Services,63128-HIRE OF ROOM-SERVICES-FEES,Revenue,15.32,06/11/2014,Childrens
WC50-0904,CHILDLINK,Supplies & Services,Other Supplies & Services,63128-HIRE OF ROOM-SERVICES-FEES,Revenue,15.35,17/11/2014,Childrens
WC50-0905,CHILDLINK,Transfer Payments,Transfer Payments,76408-OUTINGS-ALLOWANCES TO S/S CLIENTS,Revenue,15.86,06/11/2014,Childrens
WC50-0906,CHILDLINK,Supplies & Services,Other Supplies & Services,63128-HIRE OF ROOM-SERVICES-FEES,Revenue,16.01,06/11/2014,Childrens
WC50-0907,CHILDLINK,Supplies & Services,Other Supplies & Services,63128-HIRE OF ROOM-SERVICES-FEES,Revenue,16.83,03/11/2014,Childrens
WC50-0908,CHILDLINK,Supplies & Services,Other Supplies & Services,63128-HIRE OF ROOM-SERVICES-FEES,Revenue,16.83,06/11/2014,Childrens
WC50-0909,CHILDLINK,Supplies & Services,Other Supplies & Services,63128-HIRE OF ROOM-SERVICES-FEES,Revenue,17.08,17/11/2014,Childrens
WC50-0910,CHILDLINK,Supplies & Services,Other Supplies & Services,63128-HIRE OF ROOM-SERVICES-FEES,Revenue,17.08,26/11/2014,Childrens
WC50-0911,CHILDLINK,Supplies & Services,Other Supplies & Services,63128-HIRE OF ROOM-SERVICES-FEES,Revenue,17.32,01/11/2014,Childrens
WC50-0912,CHILDLINK,Transfer Payments,Transfer Payments,76408-OUTINGS-ALLOWANCES TO S/S CLIENTS,Revenue,17.70,03/11/2014,Childrens
WC50-0913,CHILDLINK,Supplies & Services,Other Supplies & Services,63128-HIRE OF ROOM-SERVICES-FEES,Revenue,18.10,01/11/2014,Childrens
WC50-0914,CHILDLINK,Supplies & Services,Other Supplies & Services,63128-HIRE OF ROOM-SERVICES-FEES,Revenue,19.02,11/11/2014,Childrens
WC50-0915,CHILDLINK,Supplies & Services,Other Supplies & Services,63128-HIRE OF ROOM-SERVICES-FEES,Revenue,19.11,01/11/2014,Childrens
WC50-0916,CHILDLINK,Supplies & Services,Other Supplies & Services,63128-HIRE OF ROOM-SERVICES-FEES,Revenue,19.16,17/11/2014,Childrens
WC50-0917,CHILDLINK,Supplies & Services,Other Supplies & Services,63128-HIRE OF ROOM-SERVICES-FEES,Revenue,19.24,17/11/2014,Childrens
WC50-0918,CHILDLINK,Supplies & Services,Other Supplies & Services,63128-HIRE OF ROOM-SERVICES-FEES,Revenue,19.31,06/11/2014,Childrens
WC50-0919,CHILDLINK,Supplies & Services,Other Supplies & Services,63128-HIRE OF ROOM-SERVICES-FEES,Revenue,23.65,26/11/2014,Childrens
WC50-0920,CHILDLINK,Supplies & Services,Other Supplies & Services,63128-HIRE OF ROOM-SERVICES-FEES,Revenue,24.36,01/11/2014,Childrens
WC50-0921,CHILDLINK,Transport,Car Allowances,53001-OTHER/VOLUNTEERS-CAR ALLOWANCES,Revenue,25.28,03/11/2014,Childrens
WC50-0922,CHILDLINK,Transport,Car Allowances,53001-OTHER/VOLUNTEERS-CAR ALLOWANCES,Revenue,25.74,06/11/2014,Childrens
WC50-0923,CHILDLINK,Transport,Car Allowances,53001-OTHER/VOLUNTEERS-CAR ALLOWANCES,Revenue,25.74,17/11/2014,Childrens
WC50-0924,CHILDLINK,Transport,Car Allowances,53001-OTHER/VOLUNTEERS-CAR ALLOWANCES,Revenue,25.91,25/11/2014,Childrens
WC50-0925,CHILDLINK,Supplies & Services,Other Supplies & Services,63128-HIRE OF ROOM-SERVICES-FEES,Revenue,29.80,06/11/2014,Childrens
WC50-0926,CHILDLINK,Supplies & Services,Other Supplies & Services,63128-HIRE OF ROOM-SERVICES-FEES,Revenue,31.41,05/11/2014,Childrens
WC50-0927,CHILDLINK,Supplies & Services,Other Supplies & Services,63128-HIRE OF ROOM-SERVICES-FEES,Revenue,31.90,03/11/2014,Childrens
WC50-0928,CHILDLINK,Supplies & Services,Other Supplies & Services,63128-HIRE OF ROOM-SERVICES-FEES,Revenue,31.90,06/11/2014,Childrens
WC50-0929,CHILDLINK,Supplies & Services,Other Supplies & Services,63128-HIRE OF ROOM-SERVICES-FEES,Revenue,31.90,17/11/2014,Childrens
WC50-0930,CHILDLINK,Supplies & Services,Other Supplies & Services,63128-HIRE OF ROOM-SERVICES-FEES,Revenue,31.90,26/11/2014,Childrens
WC50-0931,CHILDLINK,Transport,Car Allowances,53001-OTHER/VOLUNTEERS-CAR ALLOWANCES,Revenue,36.37,03/11/2014,Childrens
WC50-0932,CHILDLINK,Transport,Car Allowances,53001-OTHER/VOLUNTEERS-CAR ALLOWANCES,Revenue,36.37,06/11/2014,Childrens
WC50-0933,CHILDLINK,Transport,Car Allowances,53001-OTHER/VOLUNTEERS-CAR ALLOWANCES,Revenue,36.37,17/11/2014,Childrens
WC50-0934,CHILDLINK,Transport,Car Allowances,53001-OTHER/VOLUNTEERS-CAR ALLOWANCES,Revenue,36.37,26/11/2014,Childrens
WC50-0935,CHILDLINK,Supplies & Services,Other Supplies & Services,63128-HIRE OF ROOM-SERVICES-FEES,Revenue,40.45,06/11/2014,Childrens
WC50-0936,CHILDLINK,Transport,Car Allowances,53001-OTHER/VOLUNTEERS-CAR ALLOWANCES,Revenue,40.90,03/11/2014,Childrens
WC50-0937,CHILDLINK,Transport,Car Allowances,53003-OTHER-TRAVEL ALLOWANCES,Revenue,41.47,03/11/2014,Childrens
WC50-0938,CHILDLINK,Transport,Car Allowances,53003-OTHER-TRAVEL ALLOWANCES,Revenue,41.47,06/11/2014,Childrens
WC50-0939,CHILDLINK,Transport,Car Allowances,53003-OTHER-TRAVEL ALLOWANCES,Revenue,41.47,17/11/2014,Childrens
WC50-0940,CHILDLINK,Transport,Car Allowances,53003-OTHER-TRAVEL ALLOWANCES,Revenue,41.47,26/11/2014,Childrens
WC50-0941,CHILDLINK,Supplies & Services,Other Supplies & Services,63128-HIRE OF ROOM-SERVICES-FEES,Revenue,41.61,06/11/2014,Childrens
WC50-0942,CHILDLINK,Transport,Car Allowances,53001-OTHER/VOLUNTEERS-CAR ALLOWANCES,Revenue,41.85,06/11/2014,Childrens
WC50-0943,CHILDLINK,Transport,Car Allowances,53003-OTHER-TRAVEL ALLOWANCES,Revenue,42.00,06/11/2014,Childrens
WC50-0944,CHILDLINK,Transport,Car Allowances,53001-OTHER/VOLUNTEERS-CAR ALLOWANCES,Revenue,42.64,03/11/2014,Childrens
WC50-0945,CHILDLINK,Transport,Car Allowances,53001-OTHER/VOLUNTEERS-CAR ALLOWANCES,Revenue,42.64,06/11/2014,Childrens
WC50-0946,CHILDLINK,Transport,Car Allowances,53003-OTHER-TRAVEL ALLOWANCES,Revenue,43.05,06/11/2014,Childrens
WC50-0947,CHILDLINK,Transport,Car Allowances,53001-OTHER/VOLUNTEERS-CAR ALLOWANCES,Revenue,43.26,17/11/2014,Childrens
WC50-0948,CHILDLINK,Transport,Car Allowances,53001-OTHER/VOLUNTEERS-CAR ALLOWANCES,Revenue,43.26,26/11/2014,Childrens
WC50-0949,CHILDLINK,Transport,Car Allowances,53001-OTHER/VOLUNTEERS-CAR ALLOWANCES,Revenue,43.56,06/11/2014,Childrens
WC50-0950,CHILDLINK,Transport,Car Allowances,53001-OTHER/VOLUNTEERS-CAR ALLOWANCES,Revenue,43.66,17/11/2014,Childrens
WC50-0951,CHILDLINK,Transport,Car Allowances,53001-OTHER/VOLUNTEERS-CAR ALLOWANCES,Revenue,43.70,06/11/2014,Childrens
WC50-0952,CHILDLINK,Supplies & Services,Other Supplies & Services,63128-HIRE OF ROOM-SERVICES-FEES,Revenue,43.82,17/11/2014,Childrens
WC50-0953,CHILDLINK,Transport,Car Allowances,53001-OTHER/VOLUNTEERS-CAR ALLOWANCES,Revenue,43.87,01/11/2014,Childrens
WC50-0954,CHILDLINK,Transport,Car Allowances,53001-OTHER/VOLUNTEERS-CAR ALLOWANCES,Revenue,44.35,03/11/2014,Childrens
WC50-0955,CHILDLINK,Transport,Car Allowances,53001-OTHER/VOLUNTEERS-CAR ALLOWANCES,Revenue,44.35,06/11/2014,Childrens
WC50-0956,CHILDLINK,Transport,Car Allowances,53001-OTHER/VOLUNTEERS-CAR ALLOWANCES,Revenue,44.49,17/11/2014,Childrens
WC50-0957,CHILDLINK,Transport,Car Allowances,53003-OTHER-TRAVEL ALLOWANCES,Revenue,44.78,11/11/2014,Childrens
WC50-0958,CHILDLINK,Supplies & Services,Other Supplies & Services,63128-HIRE OF ROOM-SERVICES-FEES,Revenue,44.91,26/11/2014,Childrens
WC50-0959,CHILDLINK,Transport,Car Allowances,53003-OTHER-TRAVEL ALLOWANCES,Revenue,45.25,17/11/2014,Childrens
WC50-0960,CHILDLINK,Transport,Car Allowances,53001-OTHER/VOLUNTEERS-CAR ALLOWANCES,Revenue,45.53,06/11/2014,Childrens
WC50-0961,CHILDLINK,Transport,Car Allowances,53001-OTHER/VOLUNTEERS-CAR ALLOWANCES,Revenue,45.85,01/11/2014,Childrens
WC50-0962,CHILDLINK,Transport,Car Allowances,53001-OTHER/VOLUNTEERS-CAR ALLOWANCES,Revenue,47.12,05/11/2014,Childrens
WC50-0963,CHILDLINK,Transport,Car Allowances,53003-OTHER-TRAVEL ALLOWANCES,Revenue,47.26,25/11/2014,Childrens
WC50-0964,CHILDLINK,Transfer Payments,Transfer Payments,76408-OUTINGS-ALLOWANCES TO S/S CLIENTS,Revenue,48.01,03/11/2014,Childrens
WC50-0965,CHILDLINK,Transport,Car Allowances,53001-OTHER/VOLUNTEERS-CAR ALLOWANCES,Revenue,48.42,01/11/2014,Childrens
WC50-0966,CHILDLINK,Transport,Car Allowances,53003-OTHER-TRAVEL ALLOWANCES,Revenue,55.58,03/11/2014,Childrens
WC50-0967,CHILDLINK,Transport,Car Allowances,53001-OTHER/VOLUNTEERS-CAR ALLOWANCES,Revenue,61.25,17/11/2014,Childrens
WC50-0968,CHILDLINK,Transport,Car Allowances,53001-OTHER/VOLUNTEERS-CAR ALLOWANCES,Revenue,61.25,26/11/2014,Childrens
WC50-0969,CHILDLINK,Transport,Car Allowances,53001-OTHER/VOLUNTEERS-CAR ALLOWANCES,Revenue,61.76,11/11/2014,Childrens
WC50-0970,CHILDLINK,Transport,Car Allowances,53003-OTHER-TRAVEL ALLOWANCES,Revenue,61.81,11/11/2014,Childrens
WC50-0971,CHILDLINK,Transport,Car Allowances,53001-OTHER/VOLUNTEERS-CAR ALLOWANCES,Revenue,62.41,06/11/2014,Childrens
WC50-0972,CHILDLINK,Transport,Car Allowances,53003-OTHER-TRAVEL ALLOWANCES,Revenue,62.54,17/11/2014,Childrens
WC50-0973,CHILDLINK,Transport,Car Allowances,53001-OTHER/VOLUNTEERS-CAR ALLOWANCES,Revenue,64.30,17/11/2014,Childrens
WC50-0974,CHILDLINK,Transport,Car Allowances,53001-OTHER/VOLUNTEERS-CAR ALLOWANCES,Revenue,64.30,25/11/2014,Childrens
WC50-0975,CHILDLINK,Transport,Car Allowances,53001-OTHER/VOLUNTEERS-CAR ALLOWANCES,Revenue,65.73,17/11/2014,Childrens
WC50-0976,CHILDLINK,Transport,Car Allowances,53001-OTHER/VOLUNTEERS-CAR ALLOWANCES,Revenue,67.36,26/11/2014,Childrens
WC50-0977,CHILDLINK,Transport,Car Allowances,53001-OTHER/VOLUNTEERS-CAR ALLOWANCES,Revenue,67.83,03/11/2014,Childrens
WC50-0978,CHILDLINK,Transport,Car Allowances,53001-OTHER/VOLUNTEERS-CAR ALLOWANCES,Revenue,68.61,03/11/2014,Childrens
WC50-0979,CHILDLINK,Transport,Car Allowances,53001-OTHER/VOLUNTEERS-CAR ALLOWANCES,Revenue,69.08,17/11/2014,Childrens
WC50-0980,CHILDLINK,Transport,Car Allowances,53001-OTHER/VOLUNTEERS-CAR ALLOWANCES,Revenue,69.42,11/11/2014,Childrens
WC50-0981,CHILDLINK,Transport,Car Allowances,53001-OTHER/VOLUNTEERS-CAR ALLOWANCES,Revenue,70.00,17/11/2014,Childrens
WC50-0982,CHILDLINK,Transport,Car Allowances,53001-OTHER/VOLUNTEERS-CAR ALLOWANCES,Revenue,70.23,17/11/2014,Childrens
WC50-0983,CHILDLINK,Transport,Car Allowances,53001-OTHER/VOLUNTEERS-CAR ALLOWANCES,Revenue,72.75,03/11/2014,Childrens
WC50-0984,CHILDLINK,Transport,Car Allowances,53003-OTHER-TRAVEL ALLOWANCES,Revenue,76.86,26/11/2014,Childrens
WC50-0985,CHILDLINK,Transport,Car Allowances,53001-OTHER/VOLUNTEERS-CAR ALLOWANCES,Revenue,77.47,05/11/2014,Childrens
WC50-0986,CHILDLINK,Transport,Car Allowances,53001-OTHER/VOLUNTEERS-CAR ALLOWANCES,Revenue,79.02,06/11/2014,Childrens
WC50-0987,CHILDLINK,Transport,Car Allowances,53001-OTHER/VOLUNTEERS-CAR ALLOWANCES,Revenue,80.80,05/11/2014,Childrens
WC50-0988,CHILDLINK,Transport,Car Allowances,53001-OTHER/VOLUNTEERS-CAR ALLOWANCES,Revenue,81.74,05/11/2014,Childrens
WC50-0989,CHILDLINK,Transport,Car Allowances,53003-OTHER-TRAVEL ALLOWANCES,Revenue,82.16,03/11/2014,Childrens
WC50-0990,CHILDLINK,Transport,Car Allowances,53003-OTHER-TRAVEL ALLOWANCES,Revenue,83.66,06/11/2014,Childrens
WC50-0991,CHILDLINK,Transport,Car Allowances,53003-OTHER-TRAVEL ALLOWANCES,Revenue,83.66,17/11/2014,Childrens
WC50-0992,CHILDLINK,Transport,Car Allowances,53003-OTHER-TRAVEL ALLOWANCES,Revenue,84.22,25/11/2014,Childrens
WC50-0993,CHILDLINK,Transport,Car Allowances,53003-OTHER-TRAVEL ALLOWANCES,Revenue,84.32,17/11/2014,Childrens
WC50-0994,CHILDLINK,Transport,Car Allowances,53003-OTHER-TRAVEL ALLOWANCES,Revenue,84.32,25/11/2014,Childrens
WC50-0995,CHILDLINK,Third Party Payments,Private Contractor Fees,76003-SECTION 34 (CONTACT),Revenue,85.29,03/11/2014,Childrens
WC50-0996,CHILDLINK,Transport,Car Allowances,53003-OTHER-TRAVEL ALLOWANCES,Revenue,85.31,03/11/2014,Childrens
WC50-0997,CHILDLINK,Transport,Car Allowances,53001-OTHER/VOLUNTEERS-CAR ALLOWANCES,Revenue,86.32,26/11/2014,Childrens
WC50-0998,CHILDLINK,Third Party Payments,Private Contractor Fees,76003-SECTION 34 (CONTACT),Revenue,86.58,03/11/2014,Childrens
WC50-0999,CHILDLINK,Transport,Car Allowances,53001-OTHER/VOLUNTEERS-CAR ALLOWANCES,Revenue,87.10,03/11/2014,Childrens
WC50-1000,CHILDLINK,Transport,Car Allowances,53001-OTHER/VOLUNTEERS-CAR ALLOWANCES,Revenue,87.57,11/11/2014,Childrens
WC50-1001,CHILDLINK,Transport,Car Allowances,53001-OTHER/VOLUNTEERS-CAR ALLOWANCES,Revenue,87.81,01/11/2014,Childrens
WC50-1002,CHILDLINK,Third Party Payments,Private Contractor Fees,76003-SECTION 34 (CONTACT),Revenue,88.37,03/11/2014,Childrens
WC50-1003,CHILDLINK,Transport,Car Allowances,53001-OTHER/VOLUNTEERS-CAR ALLOWANCES,Revenue,88.48,17/11/2014,Childrens
WC50-1004,CHILDLINK,Transport,Car Allowances,53003-OTHER-TRAVEL ALLOWANCES,Revenue,89.97,03/11/2014,Childrens
WC50-1005,CHILDLINK,Transport,Car Allowances,53001-OTHER/VOLUNTEERS-CAR ALLOWANCES,Revenue,92.42,25/11/2014,Childrens
WC50-1006,CHILDLINK,Third Party Payments,Private Contractor Fees,76003-SECTION 34 (CONTACT),Revenue,99.35,17/11/2014,Childrens
WC50-1007,CHILDLINK,Third Party Payments,Private Contractor Fees,76003-SECTION 34 (CONTACT),Revenue,99.35,25/11/2014,Childrens
WC50-1008,CHILDLINK,Transport,Car Allowances,53003-OTHER-TRAVEL ALLOWANCES,Revenue,101.68,03/11/2014,Childrens
WC50-1009,CHILDLINK,Transport,Car Allowances,53003-OTHER-TRAVEL ALLOWANCES,Revenue,102.09,05/11/2014,Childrens
WC50-1010,CHILDLINK,Transport,Car Allowances,53003-OTHER-TRAVEL ALLOWANCES,Revenue,104.48,03/11/2014,Childrens
WC50-1011,CHILDLINK,Transport,Car Allowances,53003-OTHER-TRAVEL ALLOWANCES,Revenue,104.48,06/11/2014,Childrens
WC50-1012,CHILDLINK,Transport,Car Allowances,53003-OTHER-TRAVEL ALLOWANCES,Revenue,104.81,17/11/2014,Childrens
WC50-1013,CHILDLINK,Transport,Car Allowances,53003-OTHER-TRAVEL ALLOWANCES,Revenue,104.98,03/11/2014,Childrens
WC50-1014,CHILDLINK,Third Party Payments,Private Contractor Fees,76003-SECTION 34 (CONTACT),Revenue,105.98,03/11/2014,Childrens
WC50-1015,CHILDLINK,Transport,Car Allowances,53001-OTHER/VOLUNTEERS-CAR ALLOWANCES,Revenue,107.43,06/11/2014,Childrens
WC50-1016,CHILDLINK,Third Party Payments,Private Contractor Fees,76003-SECTION 34 (CONTACT),Revenue,114.17,03/11/2014,Childrens
WC50-1017,CHILDLINK,Third Party Payments,Private Contractor Fees,76003-SECTION 34 (CONTACT),Revenue,114.17,06/11/2014,Childrens
WC50-1018,CHILDLINK,Transport,Car Allowances,53001-OTHER/VOLUNTEERS-CAR ALLOWANCES,Revenue,117.81,03/11/2014,Childrens
WC50-1019,CHILDLINK,Transport,Car Allowances,53001-OTHER/VOLUNTEERS-CAR ALLOWANCES,Revenue,117.81,17/11/2014,Childrens
WC50-1020,CHILDLINK,Transport,Car Allowances,53001-OTHER/VOLUNTEERS-CAR ALLOWANCES,Revenue,119.19,25/11/2014,Childrens
WC50-1021,CHILDLINK,Third Party Payments,Private Contractor Fees,76003-SECTION 34 (CONTACT),Revenue,126.71,03/11/2014,Childrens
WC50-1022,CHILDLINK,Transport,Car Allowances,53001-OTHER/VOLUNTEERS-CAR ALLOWANCES,Revenue,134.91,06/11/2014,Childrens
WC50-1023,CHILDLINK,Transport,Car Allowances,53003-OTHER-TRAVEL ALLOWANCES,Revenue,135.15,17/11/2014,Childrens
WC50-1024,CHILDLINK,Transport,Car Allowances,53003-OTHER-TRAVEL ALLOWANCES,Revenue,135.23,06/11/2014,Childrens
WC50-1025,CHILDLINK,Third Party Payments,Private Contractor Fees,76003-SECTION 34 (CONTACT),Revenue,139.04,03/11/2014,Childrens
WC50-1026,CHILDLINK,Third Party Payments,Private Contractor Fees,76003-SECTION 34 (CONTACT),Revenue,139.04,17/11/2014,Childrens
WC50-1027,CHILDLINK,Transport,Car Allowances,53001-OTHER/VOLUNTEERS-CAR ALLOWANCES,Revenue,140.27,03/11/2014,Childrens
WC50-1028,CHILDLINK,Third Party Payments,Private Contractor Fees,76003-SECTION 34 (CONTACT),Revenue,140.66,25/11/2014,Childrens
WC50-1029,CHILDLINK,Transport,Car Allowances,53003-OTHER-TRAVEL ALLOWANCES,Revenue,142.42,17/11/2014,Childrens
WC50-1030,CHILDLINK,Transport,Car Allowances,53003-OTHER-TRAVEL ALLOWANCES,Revenue,145.94,26/11/2014,Childrens
WC50-1031,CHILDLINK,Transport,Car Allowances,53003-OTHER-TRAVEL ALLOWANCES,Revenue,149.57,05/11/2014,Childrens
WC50-1032,CHILDLINK,Third Party Payments,Private Contractor Fees,76003-SECTION 34 (CONTACT),Revenue,150.96,03/11/2014,Childrens
WC50-1033,CHILDLINK,Third Party Payments,Private Contractor Fees,76003-SECTION 34 (CONTACT),Revenue,150.96,06/11/2014,Childrens
WC50-1034,CHILDLINK,Third Party Payments,Private Contractor Fees,76003-SECTION 34 (CONTACT),Revenue,150.96,17/11/2014,Childrens
WC50-1035,CHILDLINK,Third Party Payments,Private Contractor Fees,76003-SECTION 34 (CONTACT),Revenue,150.96,26/11/2014,Childrens
WC50-1036,CHILDLINK,Third Party Payments,Private Contractor Fees,76003-SECTION 34 (CONTACT),Revenue,152.05,17/11/2014,Childrens
WC50-1037,CHILDLINK,Transport,Car Allowances,53003-OTHER-TRAVEL ALLOWANCES,Revenue,152.56,06/11/2014,Childrens
WC50-1038,CHILDLINK,Third Party Payments,Private Contractor Fees,76003-SECTION 34 (CONTACT),Revenue,152.94,06/11/2014,Childrens
WC50-1039,CHILDLINK,Transport,Car Allowances,53003-OTHER-TRAVEL ALLOWANCES,Revenue,156.00,05/11/2014,Childrens
WC50-1040,CHILDLINK,Third Party Payments,Private Contractor Fees,76003-SECTION 34 (CONTACT),Revenue,157.23,17/11/2014,Childrens
WC50-1041,CHILDLINK,Transport,Car Allowances,53003-OTHER-TRAVEL ALLOWANCES,Revenue,157.82,05/11/2014,Childrens
WC50-1042,CHILDLINK,Third Party Payments,Private Contractor Fees,76003-SECTION 34 (CONTACT),Revenue,159.21,06/11/2014,Childrens
WC50-1043,CHILDLINK,Third Party Payments,Private Contractor Fees,76003-SECTION 34 (CONTACT),Revenue,164.11,03/11/2014,Childrens
WC50-1044,CHILDLINK,Third Party Payments,Private Contractor Fees,76003-SECTION 34 (CONTACT),Revenue,164.11,06/11/2014,Childrens
WC50-1045,CHILDLINK,Transport,Car Allowances,53003-OTHER-TRAVEL ALLOWANCES,Revenue,164.12,03/11/2014,Childrens
WC50-1046,CHILDLINK,Transport,Car Allowances,53003-OTHER-TRAVEL ALLOWANCES,Revenue,164.12,06/11/2014,Childrens
WC50-1047,CHILDLINK,Transport,Car Allowances,53003-OTHER-TRAVEL ALLOWANCES,Revenue,166.48,17/11/2014,Childrens
WC50-1048,CHILDLINK,Third Party Payments,Private Contractor Fees,76003-SECTION 34 (CONTACT),Revenue,166.48,17/11/2014,Childrens
WC50-1049,CHILDLINK,Transport,Car Allowances,53003-OTHER-TRAVEL ALLOWANCES,Revenue,166.48,26/11/2014,Childrens
WC50-1050,CHILDLINK,Third Party Payments,Private Contractor Fees,76003-SECTION 34 (CONTACT),Revenue,166.48,26/11/2014,Childrens
WC50-1051,CHILDLINK,Third Party Payments,Private Contractor Fees,76003-SECTION 34 (CONTACT),Revenue,168.26,05/11/2014,Childrens
WC50-1052,CHILDLINK,Third Party Payments,Private Contractor Fees,76003-SECTION 34 (CONTACT),Revenue,168.85,01/11/2014,Childrens
WC50-1053,CHILDLINK,Transport,Car Allowances,53003-OTHER-TRAVEL ALLOWANCES,Revenue,168.86,01/11/2014,Childrens
WC50-1054,CHILDLINK,Third Party Payments,Private Contractor Fees,76003-SECTION 34 (CONTACT),Revenue,171.62,06/11/2014,Childrens
WC50-1055,CHILDLINK,Third Party Payments,Private Contractor Fees,76003-SECTION 34 (CONTACT),Revenue,171.82,03/11/2014,Childrens
WC50-1056,CHILDLINK,Third Party Payments,Private Contractor Fees,76003-SECTION 34 (CONTACT),Revenue,172.00,06/11/2014,Childrens
WC50-1057,CHILDLINK,Third Party Payments,Private Contractor Fees,76003-SECTION 34 (CONTACT),Revenue,174.95,11/11/2014,Childrens
WC50-1058,CHILDLINK,Third Party Payments,Private Contractor Fees,76003-SECTION 34 (CONTACT),Revenue,175.50,05/11/2014,Childrens
WC50-1059,CHILDLINK,Third Party Payments,Private Contractor Fees,76003-SECTION 34 (CONTACT),Revenue,176.47,01/11/2014,Childrens
WC50-1060,CHILDLINK,Transport,Car Allowances,53003-OTHER-TRAVEL ALLOWANCES,Revenue,176.48,01/11/2014,Childrens
WC50-1061,CHILDLINK,Third Party Payments,Private Contractor Fees,76003-SECTION 34 (CONTACT),Revenue,176.77,17/11/2014,Childrens
WC50-1062,CHILDLINK,Third Party Payments,Private Contractor Fees,76003-SECTION 34 (CONTACT),Revenue,177.54,05/11/2014,Childrens
WC50-1063,CHILDLINK,Transport,Car Allowances,53003-OTHER-TRAVEL ALLOWANCES,Revenue,177.71,17/11/2014,Childrens
WC50-1064,CHILDLINK,Transport,Car Allowances,53003-OTHER-TRAVEL ALLOWANCES,Revenue,177.71,26/11/2014,Childrens
WC50-1065,CHILDLINK,Transport,Car Allowances,53003-OTHER-TRAVEL ALLOWANCES,Revenue,179.20,11/11/2014,Childrens
WC50-1066,CHILDLINK,Transport,Car Allowances,53001-OTHER/VOLUNTEERS-CAR ALLOWANCES,Revenue,181.86,03/11/2014,Childrens
WC50-1067,CHILDLINK,Transport,Car Allowances,53001-OTHER/VOLUNTEERS-CAR ALLOWANCES,Revenue,181.86,06/11/2014,Childrens
WC50-1068,CHILDLINK,Third Party Payments,Private Contractor Fees,76003-SECTION 34 (CONTACT),Revenue,184.62,25/11/2014,Childrens
WC50-1069,CHILDLINK,Transport,Car Allowances,53003-OTHER-TRAVEL ALLOWANCES,Revenue,186.33,01/11/2014,Childrens
WC50-1070,CHILDLINK,Third Party Payments,Private Contractor Fees,76003-SECTION 34 (CONTACT),Revenue,186.34,01/11/2014,Childrens
WC50-1071,CHILDLINK,Transport,Car Allowances,53003-OTHER-TRAVEL ALLOWANCES,Revenue,197.77,03/11/2014,Childrens
WC50-1072,CHILDLINK,Transport,Car Allowances,53003-OTHER-TRAVEL ALLOWANCES,Revenue,197.77,06/11/2014,Childrens
WC50-1073,CHILDLINK,Third Party Payments,Private Contractor Fees,76003-SECTION 34 (CONTACT),Revenue,199.87,01/11/2014,Childrens
WC50-1074,CHILDLINK,Third Party Payments,Private Contractor Fees,76003-SECTION 34 (CONTACT),Revenue,204.18,05/11/2014,Childrens
WC50-1075,CHILDLINK,Transport,Car Allowances,53003-OTHER-TRAVEL ALLOWANCES,Revenue,222.75,03/11/2014,Childrens
WC50-1076,CHILDLINK,Transport,Car Allowances,53003-OTHER-TRAVEL ALLOWANCES,Revenue,222.75,17/11/2014,Childrens
WC50-1077,CHILDLINK,Transport,Car Allowances,53003-OTHER-TRAVEL ALLOWANCES,Revenue,225.35,25/11/2014,Childrens
WC50-1078,CHILDLINK,Third Party Payments,Private Contractor Fees,76003-SECTION 34 (CONTACT),Revenue,244.51,06/11/2014,Childrens
WC50-1079,CHILDLINK,Third Party Payments,Private Contractor Fees,76003-SECTION 34 (CONTACT),Revenue,246.46,03/11/2014,Childrens
WC50-1080,CHILDLINK,Third Party Payments,Private Contractor Fees,76003-SECTION 34 (CONTACT),Revenue,251.00,06/11/2014,Childrens
WC50-1081,CHILDLINK,Third Party Payments,Private Contractor Fees,76003-SECTION 34 (CONTACT),Revenue,251.00,17/11/2014,Childrens
WC50-1082,CHILDLINK,Third Party Payments,Private Contractor Fees,76003-SECTION 34 (CONTACT),Revenue,252.67,25/11/2014,Childrens
WC50-1083,CHILDLINK,Transport,Car Allowances,53003-OTHER-TRAVEL ALLOWANCES,Revenue,255.08,06/11/2014,Childrens
WC50-1084,CHILDLINK,Third Party Payments,Private Contractor Fees,76003-SECTION 34 (CONTACT),Revenue,270.45,06/11/2014,Childrens
WC50-1085,CHILDLINK,Third Party Payments,Private Contractor Fees,76003-SECTION 34 (CONTACT),Revenue,280.24,06/11/2014,Childrens
WC50-1086,CHILDLINK,Third Party Payments,Private Contractor Fees,76003-SECTION 34 (CONTACT),Revenue,280.89,17/11/2014,Childrens
WC50-1087,CHILDLINK,Third Party Payments,Private Contractor Fees,76003-SECTION 34 (CONTACT),Revenue,284.83,17/11/2014,Childrens
WC50-1088,CHILDLINK,Third Party Payments,Private Contractor Fees,76003-SECTION 34 (CONTACT),Revenue,291.89,26/11/2014,Childrens
WC50-1089,CHILDLINK,Third Party Payments,Private Contractor Fees,76003-SECTION 34 (CONTACT),Revenue,292.88,06/11/2014,Childrens
WC50-1090,CHILDLINK,Transport,Car Allowances,53003-OTHER-TRAVEL ALLOWANCES,Revenue,349.73,17/11/2014,Childrens
WC50-1091,CHILDLINK,Transport,Car Allowances,53003-OTHER-TRAVEL ALLOWANCES,Revenue,352.88,06/11/2014,Childrens
WC50-1092,CHILDLINK,Transport,Car Allowances,53003-OTHER-TRAVEL ALLOWANCES,Revenue,353.70,17/11/2014,Childrens
WC50-1093,CHILDLINK,Third Party Payments,Private Contractor Fees,76003-SECTION 34 (CONTACT),Revenue,360.55,11/11/2014,Childrens
WC50-1094,CHILDLINK,Third Party Payments,Private Contractor Fees,76003-SECTION 34 (CONTACT),Revenue,364.79,17/11/2014,Childrens
WC50-1095,CHILDLINK,Third Party Payments,Private Contractor Fees,76003-SECTION 34 (CONTACT),Revenue,367.77,03/11/2014,Childrens
WC50-1096,CHILDLINK,Third Party Payments,Private Contractor Fees,76003-SECTION 34 (CONTACT),Revenue,367.77,06/11/2014,Childrens
WC50-1097,CHILDLINK,Transport,Car Allowances,53003-OTHER-TRAVEL ALLOWANCES,Revenue,368.78,06/11/2014,Childrens
WC50-1098,CHILDLINK,Third Party Payments,Private Contractor Fees,76003-SECTION 34 (CONTACT),Revenue,368.90,17/11/2014,Childrens
WC50-1099,CHILDLINK,Transport,Car Allowances,53003-OTHER-TRAVEL ALLOWANCES,Revenue,407.02,03/11/2014,Childrens
WC50-1100,CHILDLINK,Third Party Payments,Private Contractor Fees,76003-SECTION 34 (CONTACT),Revenue,429.44,17/11/2014,Childrens
WC50-1101,CHILDLINK,Third Party Payments,Private Contractor Fees,76003-SECTION 34 (CONTACT),Revenue,429.44,26/11/2014,Childrens
WC50-1102,CHILDLINK,Third Party Payments,Private Contractor Fees,76003-SECTION 34 (CONTACT),Revenue,433.04,11/11/2014,Childrens
WC50-1103,CHILDLINK,Transport,Car Allowances,53003-OTHER-TRAVEL ALLOWANCES,Revenue,444.56,01/11/2014,Childrens
WC50-1104,CHILDLINK,Third Party Payments,Private Contractor Fees,76003-SECTION 34 (CONTACT),Revenue,448.37,26/11/2014,Childrens
WC50-1105,CHILDLINK,Third Party Payments,Private Contractor Fees,76003-SECTION 34 (CONTACT),Revenue,469.35,03/11/2014,Childrens
WC50-1106,CHILDLINK,Transport,Car Allowances,53003-OTHER-TRAVEL ALLOWANCES,Revenue,543.86,06/11/2014,Childrens
WC50-1107,CHILDLINK,Third Party Payments,Private Contractor Fees,76003-SECTION 34 (CONTACT),Revenue,692.74,06/11/2014,Childrens
WC50-1108,CHILDLINK,Third Party Payments,Private Contractor Fees,76003-SECTION 34 (CONTACT),Revenue,773.10,03/11/2014,Childrens
WC50-1109,CHILDREN UNITED LIMITED,Third Party Payments,Grants to Other Orgs,66505-OTHER-GRANTS TO OTHER ORGS,Revenue,286.07,27/11/2014,Childrens
WC50-1110,CHILDRENS RESIDENTIAL SERVS,Supplies & Services,Provisions,61014-GENERAL PROVISIONS-PROVISIONS,Revenue,1.98,11/11/2014,Childrens
WC50-1111,CHILDRENS RESIDENTIAL SERVS,Supplies & Services,"Equip,Furniture & Materials",60500-GENERAL MATERIALS,Revenue,2.49,17/11/2014,Childrens
WC50-1112,CHILDRENS RESIDENTIAL SERVS,Supplies & Services,Services,63000-PROFESSIONAL FEES AND SERVICES,Revenue,6.40,17/11/2014,Childrens
WC50-1113,CHILDRENS RESIDENTIAL SERVS,Transport,Car Allowances,53000-OFFICERS/STAFF-CAR ALLOWANCES,Revenue,7.07,24/11/2014,Childrens
WC50-1114,CHILDRENS RESIDENTIAL SERVS,Transport,Car Allowances,53000-OFFICERS/STAFF-CAR ALLOWANCES,Revenue,7.17,17/11/2014,Childrens
WC50-1115,CHILDRENS RESIDENTIAL SERVS,Transport,Car Allowances,53000-OFFICERS/STAFF-CAR ALLOWANCES,Revenue,8.00,17/11/2014,Childrens
WC50-1116,CHILDRENS RESIDENTIAL SERVS,Transport,Car Allowances,53000-OFFICERS/STAFF-CAR ALLOWANCES,Revenue,8.33,24/11/2014,Childrens
WC50-1117,CHILDRENS RESIDENTIAL SERVS,Premises,Premises-Repairs & Maintenance,"40000-REPAIRS,ALTERATIONS & MAINTENANCE-PREM",Revenue,9.10,24/11/2014,Childrens
WC50-1118,CHILDRENS RESIDENTIAL SERVS,Transport,Car Allowances,53000-OFFICERS/STAFF-CAR ALLOWANCES,Revenue,10.67,11/11/2014,Childrens
WC50-1119,CHILDRENS RESIDENTIAL SERVS,Supplies & Services,Provisions,61014-GENERAL PROVISIONS-PROVISIONS,Revenue,16.97,24/11/2014,Childrens
WC50-1120,CHILDRENS RESIDENTIAL SERVS,Premises,Premises-Repairs & Maintenance,"40000-REPAIRS,ALTERATIONS & MAINTENANCE-PREM",Revenue,20.00,11/11/2014,Childrens
WC50-1121,CHILDRENS RESIDENTIAL SERVS,Supplies & Services,Provisions,61014-GENERAL PROVISIONS-PROVISIONS,Revenue,28.00,24/11/2014,Childrens
WC50-1122,CHILDRENS RESIDENTIAL SERVS,Premises,Cleaning & Caretaking,46000-EQUIP NEW-CLEANING,Revenue,30.00,24/11/2014,Childrens
WC50-1123,CHILDRENS RESIDENTIAL SERVS,Supplies & Services,"Equip,Furniture & Materials",60000-FURNITURE & EQUIPMENT,Revenue,31.00,11/11/2014,Childrens
WC50-1124,CHILDRENS RESIDENTIAL SERVS,Transport,Car Allowances,53000-OFFICERS/STAFF-CAR ALLOWANCES,Revenue,35.57,11/11/2014,Childrens
WC50-1125,CHILDRENS RESIDENTIAL SERVS,Third Party Payments,Private Contractor Fees,76002-SUPPORT UNDER SECTION 23 OF THE CHILDRENS ACT,Revenue,46.00,24/11/2014,Childrens
WC50-1126,CHILDRENS RESIDENTIAL SERVS,Premises,Premises-Repairs & Maintenance,"40000-REPAIRS,ALTERATIONS & MAINTENANCE-PREM",Revenue,50.00,17/11/2014,Childrens
WC50-1127,CHILDRENS RESIDENTIAL SERVS,Supplies & Services,Provisions,61014-GENERAL PROVISIONS-PROVISIONS,Revenue,51.60,17/11/2014,Childrens
WC50-1128,CHILDRENS RESIDENTIAL SERVS,Supplies & Services,Provisions,61014-GENERAL PROVISIONS-PROVISIONS,Revenue,75.44,11/11/2014,Childrens
WC50-1129,CHILDRENS RESIDENTIAL SERVS,Third Party Payments,Private Contractor Fees,76002-SUPPORT UNDER SECTION 23 OF THE CHILDRENS ACT,Revenue,92.00,11/11/2014,Childrens
WC50-1130,CHILDRENS RESIDENTIAL SERVS,Supplies & Services,Provisions,61014-GENERAL PROVISIONS-PROVISIONS,Revenue,128.24,17/11/2014,Childrens
WC50-1131,CHILDRENS RESIDENTIAL SERVS,Supplies & Services,Provisions,61014-GENERAL PROVISIONS-PROVISIONS,Revenue,135.54,17/11/2014,Childrens
WC50-1132,CHILDRENS RESIDENTIAL SERVS,Third Party Payments,Private Contractor Fees,76002-SUPPORT UNDER SECTION 23 OF THE CHILDRENS ACT,Revenue,138.00,17/11/2014,Childrens
WC50-1133,CHILDRENS RESIDENTIAL SERVS,Transfer Payments,Transfer Payments,76400-RESIDENTS PERSONAL EXPENSES-ALLOWANCES TO S/S CLIENTS,Revenue,156.20,17/11/2014,Childrens
WC50-1134,CHILDRENS RESIDENTIAL SERVS,Transfer Payments,Transfer Payments,76400-RESIDENTS PERSONAL EXPENSES-ALLOWANCES TO S/S CLIENTS,Revenue,214.49,11/11/2014,Childrens
WC50-1135,CHILDRENS RESIDENTIAL SERVS,Transfer Payments,Transfer Payments,76400-RESIDENTS PERSONAL EXPENSES-ALLOWANCES TO S/S CLIENTS,Revenue,237.18,24/11/2014,Childrens
WC50-1136,CHILDRENS RESIDENTIAL SERVS,Transfer Payments,Transfer Payments,76400-RESIDENTS PERSONAL EXPENSES-ALLOWANCES TO S/S CLIENTS,Revenue,258.97,24/11/2014,Childrens
WC50-1137,CHILDRENS RESIDENTIAL SERVS,Transfer Payments,Transfer Payments,76400-RESIDENTS PERSONAL EXPENSES-ALLOWANCES TO S/S CLIENTS,Revenue,420.93,17/11/2014,Childrens
WC50-1138,CHILDRENS RESIDENTIAL SERVS,Transfer Payments,Transfer Payments,76400-RESIDENTS PERSONAL EXPENSES-ALLOWANCES TO S/S CLIENTS,Revenue,751.86,11/11/2014,Childrens
WC50-1139,REDACTED,Transfer Payments,Transfer Payments,76422-DIRECT PAYMENTS TO SOCIAL SERVICES CLIENTS,Revenue,"1,489.62",11/11/2014,Social Care & Inclusion
WC50-1140,REDACTED,Transfer Payments,Transfer Payments,76422-DIRECT PAYMENTS TO SOCIAL SERVICES CLIENTS,Revenue,755.30,11/11/2014,Social Care & Inclusion
WC50-1141,REDACTED,Transfer Payments,Transfer Payments,76422-DIRECT PAYMENTS TO SOCIAL SERVICES CLIENTS,Revenue,489.60,11/11/2014,Social Care & Inclusion
WC50-1142,REDACTED,Transfer Payments,Transfer Payments,76422-DIRECT PAYMENTS TO SOCIAL SERVICES CLIENTS,Revenue,630.80,11/11/2014,Social Care & Inclusion
WC50-1143,REDACTED,Transfer Payments,Transfer Payments,76422-DIRECT PAYMENTS TO SOCIAL SERVICES CLIENTS,Revenue,"1,125.97",11/11/2014,Social Care & Inclusion
WC50-1144,REDACTED,Third Party Payments,Private Contractor Fees,74006-HOLIDAY/CHRISTMAS ALLOWANCE-FOSTER CARERS-OTH AGENCY PROVISION,Revenue,643.20,24/11/2014,Childrens
WC50-1145,REDACTED,Transfer Payments,Transfer Payments,76422-DIRECT PAYMENTS TO SOCIAL SERVICES CLIENTS,Revenue,276.00,18/11/2014,Social Care & Inclusion
WC50-1146,REDACTED,Transfer Payments,Transfer Payments,76422-DIRECT PAYMENTS TO SOCIAL SERVICES CLIENTS,Revenue,822.16,11/11/2014,Social Care & Inclusion
WC50-1147,REDACTED,Transfer Payments,Transfer Payments,76422-DIRECT PAYMENTS TO SOCIAL SERVICES CLIENTS,Revenue,588.00,11/11/2014,Social Care & Inclusion
WC50-1148,CHUBB ELECTRONIC SECURITY SYSTEMS LTD,Capital,Capital,01006-SITE WORKS MAIN CONTRACTORS,Capital,395.16,18/11/2014,Childrens
WC50-1149,CHUBB FIRE & SECURITY LTD,Third Party Payments,Private Contractor Fees,73025-PROFESSIONAL SERVICES-PRIV CONTRACTOR & OTHER AGENCIES,Revenue,-918.42,25/11/2014,Regeneration
WC50-1150,CHUBB FIRE & SECURITY LTD,Premises,Premises-Repairs & Maintenance,"40000-REPAIRS,ALTERATIONS & MAINTENANCE-PREM",Revenue,273.74,01/11/2014,Childrens
WC50-1151,CHUBB FIRE & SECURITY LTD,Third Party Payments,Private Contractor Fees,73002-SECURITY-PRIV CONTRACTOR FEES,Revenue,352.00,12/11/2014,Regeneration
WC50-1152,CHUBB FIRE & SECURITY LTD,Supplies & Services,"Equip,Furniture & Materials",60008-MAINTENANCE-FURNITURE & EQUIPMENT,Revenue,860.82,01/11/2014,Childrens
WC50-1153,CHUBB FIRE & SECURITY LTD,Supplies & Services,"Equip,Furniture & Materials",60008-MAINTENANCE-FURNITURE & EQUIPMENT,Revenue,877.01,24/11/2014,Childrens
WC50-1154,CHUBB FIRE & SECURITY LTD,Premises,Premises-Repairs & Maintenance,"40000-REPAIRS,ALTERATIONS & MAINTENANCE-PREM",Revenue,877.99,01/11/2014,Regeneration
WC50-1155,CHUBB FIRE & SECURITY LTD,Third Party Payments,Private Contractor Fees,73025-PROFESSIONAL SERVICES-PRIV CONTRACTOR & OTHER AGENCIES,Revenue,918.42,25/11/2014,Regeneration
WC50-1156,CHUBB FIRE & SECURITY LTD,Third Party Payments,Private Contractor Fees,73002-SECURITY-PRIV CONTRACTOR FEES,Revenue,"1,525.00",12/11/2014,Regeneration
WC50-1157,CHURCH OF ASCENSION C OF E,Transfer Payments,Transfer Payments,77300-ISB-FORMULA ALLOCATION,Revenue,652.25,12/11/2014,Childrens
WC50-1158,CHURCH OF ASCENSION C OF E,Transfer Payments,Transfer Payments,77300-ISB-FORMULA ALLOCATION,Revenue,809.25,12/11/2014,Childrens
WC50-1159,CIPFA 001,Central,Internal Recharges,82028-MISC-ONE OFF ITEMS-INTERNAL RECHARGES,Revenue,420.79,05/11/2014,Regeneration
WC50-1160,CITY & GUILDS,Supplies & Services,Other Supplies & Services,63013-EXAMINATIONS-SERVICES,Revenue,-540.00,19/11/2014,Neighbourhood Services
WC50-1161,CITY & GUILDS,Supplies & Services,Other Supplies & Services,63013-EXAMINATIONS-SERVICES,Revenue,665.00,05/11/2014,Neighbourhood Services
WC50-1162,CITY & GUILDS,Supplies & Services,Other Supplies & Services,63013-EXAMINATIONS-SERVICES,Revenue,700.00,19/11/2014,Neighbourhood Services
WC50-1163,CITY & GUILDS,Supplies & Services,Other Supplies & Services,63013-EXAMINATIONS-SERVICES,Revenue,753.00,19/11/2014,Neighbourhood Services
WC50-1164,CITY & GUILDS,Supplies & Services,Other Supplies & Services,63013-EXAMINATIONS-SERVICES,Revenue,"1,500.00",05/11/2014,Neighbourhood Services
WC50-1165,CITY ELECTRICAL FACTORS LTD (BIRMINGHAM & NORTH WALES),Supplies & Services,"Equip,Furniture & Materials",60000-FURNITURE & EQUIPMENT,Revenue,257.28,03/11/2014,Regeneration
WC50-1166,CITY ELECTRICAL FACTORS LTD (BIRMINGHAM & NORTH WALES),Supplies & Services,"Equip,Furniture & Materials",60000-FURNITURE & EQUIPMENT,Revenue,537.26,26/11/2014,Regeneration
WC50-1167,CITY ELECTRICAL FACTORS LTD (BIRMINGHAM & NORTH WALES),Premises,Premises-Repairs & Maintenance,"40000-REPAIRS,ALTERATIONS & MAINTENANCE-PREM",Revenue,"1,045.00",18/11/2014,Regeneration
WC50-1168,CIVICARE MIDLANDS LTD,Third Party Payments,Private Contractor Fees,73374-SUPPORTED & OTHER ACCOMMODATION,Revenue,443.52,12/11/2014,Social Care & Inclusion
WC50-1169,CIVICARE MIDLANDS LTD,Third Party Payments,Private Contractor Fees,73374-SUPPORTED & OTHER ACCOMMODATION,Revenue,443.52,13/11/2014,Social Care & Inclusion
WC50-1170,CIVICARE MIDLANDS LTD,Third Party Payments,Private Contractor Fees,73374-SUPPORTED & OTHER ACCOMMODATION,Revenue,443.52,24/11/2014,Social Care & Inclusion
WC50-1171,CIVICARE MIDLANDS LTD,Third Party Payments,Private Contractor Fees,73372-DOMICILIARY CARE,Revenue,594.16,13/11/2014,Social Care & Inclusion
WC50-1172,CIVICARE MIDLANDS LTD,Third Party Payments,Private Contractor Fees,73372-DOMICILIARY CARE,Revenue,"1,372.08",01/11/2014,Social Care & Inclusion
WC50-1173,CIVICARE MIDLANDS LTD,Third Party Payments,Private Contractor Fees,73372-DOMICILIARY CARE,Revenue,"18,655.78",12/11/2014,Social Care & Inclusion
WC50-1174,REDACTED,Supplies & Services,Services,63000-PROFESSIONAL FEES AND SERVICES,Revenue,351.00,25/11/2014,Neighbourhood Services
WC50-1175,REDACTED,Transfer Payments,Transfer Payments,76422-DIRECT PAYMENTS TO SOCIAL SERVICES CLIENTS,Revenue,"1,088.00",11/11/2014,Social Care & Inclusion
WC50-1176,REDACTED,Transfer Payments,Transfer Payments,76422-DIRECT PAYMENTS TO SOCIAL SERVICES CLIENTS,Revenue,909.80,11/11/2014,Social Care & Inclusion
WC50-1177,REDACTED,Transfer Payments,Transfer Payments,76422-DIRECT PAYMENTS TO SOCIAL SERVICES CLIENTS,Revenue,504.90,11/11/2014,Social Care & Inclusion
WC50-1178,CLAPHAM TERRACE COMMUNITY PRIMARY SCHOOL,Third Party Payments,Grants to Other Orgs,66502-TOP UP FUNDING -GRANTS TO SCHOOLS,Revenue,"18,912.00",17/11/2014,Childrens
WC50-1179,CLARKEPRINT LTD,Supplies & Services,"Printing, Stationery & Office Exp",62008-OUTWORK-PRINT ROOM,Revenue,300.00,17/11/2014,Resources
WC50-1180,CLEANEVENT GROUP LTD,Third Party Payments,Private Contractor Fees,73025-PROFESSIONAL SERVICES-PRIV CONTRACTOR & OTHER AGENCIES,Revenue,"1,000.00",19/11/2014,Regeneration
WC50-1181,CLEANEVENT GROUP LTD,Third Party Payments,Private Contractor Fees,73025-PROFESSIONAL SERVICES-PRIV CONTRACTOR & OTHER AGENCIES,Revenue,"1,200.00",19/11/2014,Regeneration
WC50-1182,CLEANEVENT GROUP LTD,Third Party Payments,Private Contractor Fees,73025-PROFESSIONAL SERVICES-PRIV CONTRACTOR & OTHER AGENCIES,Revenue,"1,260.00",01/11/2014,Regeneration
WC50-1183,CLEANEVENT GROUP LTD,Third Party Payments,Private Contractor Fees,73002-SECURITY-PRIV CONTRACTOR FEES,Revenue,"4,684.80",18/11/2014,Resources
WC50-1184,CLEANEVENT GROUP LTD,Third Party Payments,Private Contractor Fees,73002-SECURITY-PRIV CONTRACTOR FEES,Revenue,"5,124.00",13/11/2014,Resources
WC50-1185,CLEANEVENT GROUP LTD,Third Party Payments,Private Contractor Fees,73002-SECURITY-PRIV CONTRACTOR FEES,Revenue,"5,203.30",14/11/2014,Resources
WC50-1186,CLIFFORD HOUSE FOSTERING LTD,Third Party Payments,Private Contractor Fees,74037-INDEPENDENT FOSTER CARE-OTH AGENCY PROVISION,Revenue,"2,265.20",20/11/2014,Childrens
WC50-1187,CLIFFORD HOUSE FOSTERING LTD,Third Party Payments,Private Contractor Fees,74037-INDEPENDENT FOSTER CARE-OTH AGENCY PROVISION,Revenue,"2,265.20",20/11/2014,Childrens
WC50-1188,CLIFFORD HOUSE FOSTERING LTD,Third Party Payments,Private Contractor Fees,74037-INDEPENDENT FOSTER CARE-OTH AGENCY PROVISION,Revenue,"2,265.20",20/11/2014,Childrens
WC50-1189,CLIFFORD HOUSE FOSTERING LTD,Third Party Payments,Private Contractor Fees,74037-INDEPENDENT FOSTER CARE-OTH AGENCY PROVISION,Revenue,"2,388.40",20/11/2014,Childrens
WC50-1190,CLIFFORD HOUSE FOSTERING LTD,Third Party Payments,Private Contractor Fees,74037-INDEPENDENT FOSTER CARE-OTH AGENCY PROVISION,Revenue,"2,522.80",17/11/2014,Childrens
WC50-1191,CLIFFORD HOUSE FOSTERING LTD,Third Party Payments,Private Contractor Fees,74037-INDEPENDENT FOSTER CARE-OTH AGENCY PROVISION,Revenue,"2,949.56",17/11/2014,Childrens
WC50-1192,CLIFFORD HOUSE FOSTERING LTD,Third Party Payments,Private Contractor Fees,74037-INDEPENDENT FOSTER CARE-OTH AGENCY PROVISION,Revenue,"3,006.00",17/11/2014,Childrens
WC50-1193,CLIFFORD HOUSE FOSTERING LTD,Third Party Payments,Private Contractor Fees,74037-INDEPENDENT FOSTER CARE-OTH AGENCY PROVISION,Revenue,"3,152.00",20/11/2014,Childrens
WC50-1194,CLIFFORD HOUSE FOSTERING LTD,Third Party Payments,Private Contractor Fees,74037-INDEPENDENT FOSTER CARE-OTH AGENCY PROVISION,Revenue,"3,604.00",25/11/2014,Childrens
WC50-1195,CLIFFORD HOUSE FOSTERING LTD,Third Party Payments,Private Contractor Fees,74037-INDEPENDENT FOSTER CARE-OTH AGENCY PROVISION,Revenue,"3,604.00",25/11/2014,Childrens
WC50-1196,CLIFFORD HOUSE FOSTERING LTD,Third Party Payments,Private Contractor Fees,74037-INDEPENDENT FOSTER CARE-OTH AGENCY PROVISION,Revenue,"3,604.00",25/11/2014,Childrens
WC50-1197,REDACTED,Transfer Payments,Transfer Payments,76422-DIRECT PAYMENTS TO SOCIAL SERVICES CLIENTS,Revenue,572.94,11/11/2014,Social Care & Inclusion
WC50-1198,CMS HIRE LTD,Transport,Hire,52001-HIRE OF VEHICLES,Revenue,"3,450.00",07/11/2014,Neighbourhood Services
WC50-1199,CMS HIRE LTD,Central,Leasing,52003-OPERATING LEASES-VEHICLES,Revenue,"3,450.00",13/11/2014,Neighbourhood Services
WC50-1200,CMS HIRE LTD,Central,Leasing,52003-OPERATING LEASES-VEHICLES,Revenue,"3,450.00",13/11/2014,Neighbourhood Services
WC50-1201,CMS HIRE LTD,Central,Leasing,52003-OPERATING LEASES-VEHICLES,Revenue,"3,450.00",13/11/2014,Neighbourhood Services
WC50-1202,CMS HIRE LTD,Central,Leasing,52003-OPERATING LEASES-VEHICLES,Revenue,"3,450.00",13/11/2014,Neighbourhood Services
WC50-1203,COACHWISE LIMITED,Employees,Training,30030-EXTERNAL TRAINING,Revenue,359.71,05/11/2014,Neighbourhood Services
WC50-1204,COIN A DRINK LTD,Supplies & Services,Provisions,61305-CATERING,Revenue,371.45,12/11/2014,Neighbourhood Services
WC50-1205,REDACTED,Third Party Payments,Private Contractor Fees,74006-HOLIDAY/CHRISTMAS ALLOWANCE-FOSTER CARERS-OTH AGENCY PROVISION,Revenue,"3,392.75",24/11/2014,Childrens
WC50-1206,COMMERCIAL & DOMESTIC,Premises,Premises-Repairs & Maintenance,40705-TESTING-ELEC SERVICES,Revenue,1.00,10/11/2014,Regeneration
WC50-1207,COMMERCIAL & DOMESTIC,Premises,Premises-Repairs & Maintenance,40705-TESTING-ELEC SERVICES,Revenue,1.00,10/11/2014,Regeneration
WC50-1208,COMMERCIAL & DOMESTIC,Premises,Premises-Repairs & Maintenance,40705-TESTING-ELEC SERVICES,Revenue,1.00,10/11/2014,Regeneration
WC50-1209,COMMERCIAL & DOMESTIC,Premises,Premises-Repairs & Maintenance,40705-TESTING-ELEC SERVICES,Revenue,1.00,10/11/2014,Regeneration
WC50-1210,COMMERCIAL & DOMESTIC,Premises,Premises-Repairs & Maintenance,40705-TESTING-ELEC SERVICES,Revenue,1.00,10/11/2014,Regeneration
WC50-1211,COMMERCIAL & DOMESTIC,Premises,Premises-Repairs & Maintenance,40705-TESTING-ELEC SERVICES,Revenue,1.00,10/11/2014,Regeneration
WC50-1212,COMMERCIAL & DOMESTIC,Premises,Premises-Repairs & Maintenance,40705-TESTING-ELEC SERVICES,Revenue,1.00,10/11/2014,Regeneration
WC50-1213,COMMERCIAL & DOMESTIC,Premises,Premises-Repairs & Maintenance,40705-TESTING-ELEC SERVICES,Revenue,1.00,10/11/2014,Regeneration
WC50-1214,COMMERCIAL & DOMESTIC,Premises,Premises-Repairs & Maintenance,40705-TESTING-ELEC SERVICES,Revenue,1.00,10/11/2014,Regeneration
WC50-1215,COMMERCIAL & DOMESTIC,Premises,Premises-Repairs & Maintenance,40705-TESTING-ELEC SERVICES,Revenue,1.00,10/11/2014,Regeneration
WC50-1216,COMMERCIAL & DOMESTIC,Premises,Premises-Repairs & Maintenance,40705-TESTING-ELEC SERVICES,Revenue,1.00,10/11/2014,Regeneration
WC50-1217,COMMERCIAL & DOMESTIC,Premises,Premises-Repairs & Maintenance,40705-TESTING-ELEC SERVICES,Revenue,1.00,10/11/2014,Regeneration
WC50-1218,COMMERCIAL & DOMESTIC,Premises,Premises-Repairs & Maintenance,40705-TESTING-ELEC SERVICES,Revenue,1.00,10/11/2014,Regeneration
WC50-1219,COMMERCIAL & DOMESTIC,Premises,Premises-Repairs & Maintenance,40705-TESTING-ELEC SERVICES,Revenue,1.00,10/11/2014,Regeneration
WC50-1220,COMMERCIAL & DOMESTIC,Premises,Premises-Repairs & Maintenance,40705-TESTING-ELEC SERVICES,Revenue,1.00,10/11/2014,Regeneration
WC50-1221,COMMERCIAL & DOMESTIC,Premises,Premises-Repairs & Maintenance,40705-TESTING-ELEC SERVICES,Revenue,1.00,10/11/2014,Regeneration
WC50-1222,COMMERCIAL & DOMESTIC,Premises,Premises-Repairs & Maintenance,40705-TESTING-ELEC SERVICES,Revenue,1.00,10/11/2014,Regeneration
WC50-1223,COMMERCIAL & DOMESTIC,Premises,Premises-Repairs & Maintenance,40705-TESTING-ELEC SERVICES,Revenue,2.00,10/11/2014,Regeneration
WC50-1224,COMMERCIAL & DOMESTIC,Premises,Premises-Repairs & Maintenance,40705-TESTING-ELEC SERVICES,Revenue,2.00,10/11/2014,Regeneration
WC50-1225,COMMERCIAL & DOMESTIC,Premises,Premises-Repairs & Maintenance,40705-TESTING-ELEC SERVICES,Revenue,2.00,10/11/2014,Regeneration
WC50-1226,COMMERCIAL & DOMESTIC,Premises,Premises-Repairs & Maintenance,40705-TESTING-ELEC SERVICES,Revenue,2.00,10/11/2014,Regeneration
WC50-1227,COMMERCIAL & DOMESTIC,Premises,Premises-Repairs & Maintenance,40705-TESTING-ELEC SERVICES,Revenue,2.00,10/11/2014,Regeneration
WC50-1228,COMMERCIAL & DOMESTIC,Premises,Premises-Repairs & Maintenance,40705-TESTING-ELEC SERVICES,Revenue,2.00,10/11/2014,Regeneration
WC50-1229,COMMERCIAL & DOMESTIC,Premises,Premises-Repairs & Maintenance,40705-TESTING-ELEC SERVICES,Revenue,2.00,10/11/2014,Regeneration
WC50-1230,COMMERCIAL & DOMESTIC,Premises,Premises-Repairs & Maintenance,40705-TESTING-ELEC SERVICES,Revenue,3.00,10/11/2014,Regeneration
WC50-1231,COMMERCIAL & DOMESTIC,Premises,Premises-Repairs & Maintenance,40705-TESTING-ELEC SERVICES,Revenue,5.00,10/11/2014,Regeneration
WC50-1232,COMMERCIAL & DOMESTIC,Supplies & Services,"Equip,Furniture & Materials",60007-REPAIR OF EQUIPMENT-EQUIPMENT,Revenue,15.00,10/11/2014,Regeneration
WC50-1233,COMMERCIAL & DOMESTIC,Supplies & Services,"Equip,Furniture & Materials",60007-REPAIR OF EQUIPMENT-EQUIPMENT,Revenue,15.00,10/11/2014,Regeneration
WC50-1234,COMMERCIAL & DOMESTIC,Supplies & Services,"Equip,Furniture & Materials",60007-REPAIR OF EQUIPMENT-EQUIPMENT,Revenue,15.00,10/11/2014,Regeneration
WC50-1235,COMMERCIAL & DOMESTIC,Supplies & Services,"Equip,Furniture & Materials",60007-REPAIR OF EQUIPMENT-EQUIPMENT,Revenue,15.00,10/11/2014,Regeneration
WC50-1236,COMMERCIAL & DOMESTIC,Supplies & Services,"Equip,Furniture & Materials",60007-REPAIR OF EQUIPMENT-EQUIPMENT,Revenue,15.00,10/11/2014,Regeneration
WC50-1237,COMMERCIAL & DOMESTIC,Supplies & Services,"Equip,Furniture & Materials",60007-REPAIR OF EQUIPMENT-EQUIPMENT,Revenue,15.00,10/11/2014,Regeneration
WC50-1238,COMMERCIAL & DOMESTIC,Supplies & Services,"Equip,Furniture & Materials",60007-REPAIR OF EQUIPMENT-EQUIPMENT,Revenue,15.00,10/11/2014,Regeneration
WC50-1239,COMMERCIAL & DOMESTIC,Supplies & Services,"Equip,Furniture & Materials",60007-REPAIR OF EQUIPMENT-EQUIPMENT,Revenue,15.00,10/11/2014,Regeneration
WC50-1240,COMMERCIAL & DOMESTIC,Supplies & Services,"Equip,Furniture & Materials",60007-REPAIR OF EQUIPMENT-EQUIPMENT,Revenue,20.00,10/11/2014,Regeneration
WC50-1241,COMMERCIAL & DOMESTIC,Supplies & Services,"Equip,Furniture & Materials",60007-REPAIR OF EQUIPMENT-EQUIPMENT,Revenue,20.00,10/11/2014,Regeneration
WC50-1242,COMMERCIAL & DOMESTIC,Supplies & Services,"Equip,Furniture & Materials",60007-REPAIR OF EQUIPMENT-EQUIPMENT,Revenue,20.00,10/11/2014,Regeneration
WC50-1243,COMMERCIAL & DOMESTIC,Supplies & Services,"Equip,Furniture & Materials",60007-REPAIR OF EQUIPMENT-EQUIPMENT,Revenue,20.00,10/11/2014,Regeneration
WC50-1244,COMMERCIAL & DOMESTIC,Supplies & Services,"Equip,Furniture & Materials",60007-REPAIR OF EQUIPMENT-EQUIPMENT,Revenue,20.00,10/11/2014,Regeneration
WC50-1245,COMMERCIAL & DOMESTIC,Supplies & Services,"Equip,Furniture & Materials",60007-REPAIR OF EQUIPMENT-EQUIPMENT,Revenue,20.00,10/11/2014,Regeneration
WC50-1246,COMMERCIAL & DOMESTIC,Supplies & Services,"Equip,Furniture & Materials",60007-REPAIR OF EQUIPMENT-EQUIPMENT,Revenue,20.00,10/11/2014,Regeneration
WC50-1247,COMMERCIAL & DOMESTIC,Supplies & Services,"Equip,Furniture & Materials",60007-REPAIR OF EQUIPMENT-EQUIPMENT,Revenue,20.00,10/11/2014,Regeneration
WC50-1248,COMMERCIAL & DOMESTIC,Supplies & Services,"Equip,Furniture & Materials",60007-REPAIR OF EQUIPMENT-EQUIPMENT,Revenue,20.00,10/11/2014,Regeneration
WC50-1249,COMMERCIAL & DOMESTIC,Supplies & Services,"Equip,Furniture & Materials",60007-REPAIR OF EQUIPMENT-EQUIPMENT,Revenue,20.00,10/11/2014,Regeneration
WC50-1250,COMMERCIAL & DOMESTIC,Supplies & Services,"Equip,Furniture & Materials",60007-REPAIR OF EQUIPMENT-EQUIPMENT,Revenue,20.00,10/11/2014,Regeneration
WC50-1251,COMMERCIAL & DOMESTIC,Supplies & Services,"Equip,Furniture & Materials",60007-REPAIR OF EQUIPMENT-EQUIPMENT,Revenue,30.00,10/11/2014,Regeneration
WC50-1252,COMMERCIAL & DOMESTIC,Supplies & Services,"Equip,Furniture & Materials",60007-REPAIR OF EQUIPMENT-EQUIPMENT,Revenue,30.00,10/11/2014,Regeneration
WC50-1253,COMMERCIAL & DOMESTIC,Supplies & Services,"Equip,Furniture & Materials",60007-REPAIR OF EQUIPMENT-EQUIPMENT,Revenue,30.00,10/11/2014,Regeneration
WC50-1254,COMMERCIAL & DOMESTIC,Supplies & Services,"Equip,Furniture & Materials",60007-REPAIR OF EQUIPMENT-EQUIPMENT,Revenue,40.00,10/11/2014,Regeneration
WC50-1255,COMMERCIAL & DOMESTIC,Supplies & Services,"Equip,Furniture & Materials",60007-REPAIR OF EQUIPMENT-EQUIPMENT,Revenue,40.00,10/11/2014,Regeneration
WC50-1256,COMMERCIAL & DOMESTIC,Supplies & Services,"Equip,Furniture & Materials",60007-REPAIR OF EQUIPMENT-EQUIPMENT,Revenue,40.00,10/11/2014,Regeneration
WC50-1257,COMMERCIAL & DOMESTIC,Supplies & Services,"Equip,Furniture & Materials",60007-REPAIR OF EQUIPMENT-EQUIPMENT,Revenue,40.00,10/11/2014,Regeneration
WC50-1258,COMMERCIAL & DOMESTIC,Supplies & Services,"Equip,Furniture & Materials",60007-REPAIR OF EQUIPMENT-EQUIPMENT,Revenue,50.00,10/11/2014,Regeneration
WC50-1259,COMMERCIAL & DOMESTIC,Supplies & Services,"Equip,Furniture & Materials",60007-REPAIR OF EQUIPMENT-EQUIPMENT,Revenue,55.00,10/11/2014,Regeneration
WC50-1260,COMMERCIAL & DOMESTIC,Supplies & Services,"Equip,Furniture & Materials",60007-REPAIR OF EQUIPMENT-EQUIPMENT,Revenue,95.00,10/11/2014,Regeneration
WC50-1261,COMPASS FOSTERING,Third Party Payments,Private Contractor Fees,74037-INDEPENDENT FOSTER CARE-OTH AGENCY PROVISION,Revenue,"-1,526.25",01/11/2014,Childrens
WC50-1262,COMPASS FOSTERING,Third Party Payments,Private Contractor Fees,74037-INDEPENDENT FOSTER CARE-OTH AGENCY PROVISION,Revenue,525.00,03/11/2014,Childrens
WC50-1263,COMPASS FOSTERING,Third Party Payments,Private Contractor Fees,74037-INDEPENDENT FOSTER CARE-OTH AGENCY PROVISION,Revenue,"4,162.50",01/11/2014,Childrens
WC50-1264,COMPASS FOSTERING,Third Party Payments,Private Contractor Fees,74037-INDEPENDENT FOSTER CARE-OTH AGENCY PROVISION,Revenue,"4,301.25",01/11/2014,Childrens
WC50-1265,COMPASS FOSTERING,Third Party Payments,Private Contractor Fees,74037-INDEPENDENT FOSTER CARE-OTH AGENCY PROVISION,Revenue,"4,301.25",01/11/2014,Childrens
WC50-1266,COMPASS FOSTERING,Third Party Payments,Private Contractor Fees,74037-INDEPENDENT FOSTER CARE-OTH AGENCY PROVISION,Revenue,"4,301.25",01/11/2014,Childrens
WC50-1267,COMPLETE CARE SERVICES,Third Party Payments,Private Contractor Fees,73372-DOMICILIARY CARE,Revenue,"61,840.93",06/11/2014,Social Care & Inclusion
WC50-1268,COMPLETE POOL CONTROLS LIMITED,Supplies & Services,"Equip,Furniture & Materials",60500-GENERAL MATERIALS,Revenue,289.25,13/11/2014,Neighbourhood Services
WC50-1269,COMPLETE SOUND SERVICE,Third Party Payments,Private Contractor Fees,73025-PROFESSIONAL SERVICES-PRIV CONTRACTOR & OTHER AGENCIES,Revenue,"1,230.00",25/11/2014,Resources
WC50-1270,COMPUTERWORLD BUSINESS SOLUTIONS,Supplies & Services,"Printing, Stationery & Office Exp",63500-POSTAGES AND COURIER SERVICES,Revenue,190.00,03/11/2014,Resources
WC50-1271,COMPUTERWORLD BUSINESS SOLUTIONS,Supplies & Services,Communications & Computing,63800-COMPUTER EQUIPMENT AND SUPPLIES,Revenue,690.00,03/11/2014,Resources
WC50-1272,CONCEPT ELEVATORS (MIDLANDS)  LIMITED,Premises,Premises-Repairs & Maintenance,"40000-REPAIRS,ALTERATIONS & MAINTENANCE-PREM",Revenue,48.00,01/11/2014,Regeneration
WC50-1273,CONCEPT ELEVATORS (MIDLANDS)  LIMITED,Premises,Premises-Repairs & Maintenance,"40000-REPAIRS,ALTERATIONS & MAINTENANCE-PREM",Revenue,356.00,01/11/2014,Regeneration
WC50-1274,CONCEPT ELEVATORS (MIDLANDS)  LIMITED,Premises,Premises-Repairs & Maintenance,"40000-REPAIRS,ALTERATIONS & MAINTENANCE-PREM",Revenue,369.00,05/11/2014,Regeneration
WC50-1275,CONCEPT ELEVATORS (MIDLANDS)  LIMITED,Premises,Premises-Repairs & Maintenance,"40000-REPAIRS,ALTERATIONS & MAINTENANCE-PREM",Revenue,516.00,01/11/2014,Regeneration
WC50-1276,CONCEPT ELEVATORS (MIDLANDS)  LIMITED,Premises,Premises-Repairs & Maintenance,"40000-REPAIRS,ALTERATIONS & MAINTENANCE-PREM",Revenue,584.00,10/11/2014,Regeneration
WC50-1277,CONCEPT ELEVATORS (MIDLANDS)  LIMITED,Premises,Premises-Repairs & Maintenance,"40000-REPAIRS,ALTERATIONS & MAINTENANCE-PREM",Revenue,720.00,01/11/2014,Regeneration
WC50-1278,CONCEPT ELEVATORS (MIDLANDS)  LIMITED,Premises,Premises-Repairs & Maintenance,"40000-REPAIRS,ALTERATIONS & MAINTENANCE-PREM",Revenue,"1,232.00",01/11/2014,Regeneration
WC50-1279,CONDOVER COLLEGE LTD,Third Party Payments,Private Contractor Fees,73373-RESIDENTIAL & NURSING CARE PLACEMENTS,Revenue,"7,206.04",11/11/2014,Social Care & Inclusion
WC50-1280,CONDOVER COLLEGE LTD,Third Party Payments,Private Contractor Fees,73373-RESIDENTIAL & NURSING CARE PLACEMENTS,Revenue,"7,779.60",11/11/2014,Social Care & Inclusion
WC50-1281,CONNOLLY MUSICAL INSTRUMENT REPAIRS,Supplies & Services,"Equip,Furniture & Materials",60008-MAINTENANCE-FURNITURE & EQUIPMENT,Revenue,440.00,26/11/2014,Neighbourhood Services
WC50-1282,COOGEE NURSERY SCHOOL,Third Party Payments,Grants to Other Orgs,66505-OTHER-GRANTS TO OTHER ORGS,Revenue,"1,173.60",27/11/2014,Childrens
WC50-1283,COOPER MOBILE SERVICES LTD,Supplies & Services,Other Supplies & Services,67001-MISC INSURANCES - PAYMENT OF CLAIMS,Revenue,297.00,01/11/2014,Holding Accounts
WC50-1284,CO-OPERATIVE FUNERAL SERVICES,Supplies & Services,Other Supplies & Services,63110-BURIAL & CREMATION-SERVICES-FEES,Revenue,650.00,05/11/2014,Neighbourhood Services
WC50-1285,COPELAND WEDGE ASSOCIATES LTD,Capital,Capital,01007-ARCHITECTS ASSISTANTS TIME,Capital,"5,000.00",06/11/2014,Childrens
WC50-1286,COPPERDOWN RESIDENTIAL CARE HOME,Third Party Payments,Private Contractor Fees,73373-RESIDENTIAL & NURSING CARE PLACEMENTS,Revenue,"1,495.44",19/11/2014,Social Care & Inclusion
WC50-1287,CORE ASSETS CONSULTANCY & RESOURCING,Supplies & Services,Services,63102-CONSULTANTS FEES - CORPORATE,Revenue,740.00,03/11/2014,Childrens
WC50-1288,CORY ENVIRONMENTAL (CENTRAL) LTD,Third Party Payments,Private Contractor Fees,73005-LANDFILL PTYS-PRIV CONTRACTOR FEES,Revenue,343.64,05/11/2014,Neighbourhood Services
WC50-1289,CORY ENVIRONMENTAL (CENTRAL) LTD,Third Party Payments,Private Contractor Fees,73039-LANDFILL TAX-PRIV CONTRACTOR FEES,Revenue,"1,875.20",05/11/2014,Neighbourhood Services
WC50-1290,CORY ENVIRONMENTAL (CENTRAL) LTD,Third Party Payments,Private Contractor Fees,73005-LANDFILL PTYS-PRIV CONTRACTOR FEES,Revenue,"2,845.48",17/11/2014,Neighbourhood Services
WC50-1291,COUCH PERRY & WILKES LLP,Capital,Capital,01007-ARCHITECTS ASSISTANTS TIME,Capital,"5,000.00",19/11/2014,Childrens
WC50-1292,COUNTRYSIDE TRAINING AND TREE MANAGEMENT,Employees,Training,30030-EXTERNAL TRAINING,Revenue,"1,200.00",06/11/2014,Neighbourhood Services
WC50-1293,COUNTRYSIDE TRAINING AND TREE MANAGEMENT,Employees,Training,30030-EXTERNAL TRAINING,Revenue,"1,200.00",06/11/2014,Neighbourhood Services
WC50-1294,COUNTRYSIDE TRAINING AND TREE MANAGEMENT,Employees,Training,30030-EXTERNAL TRAINING,Revenue,"1,470.00",03/11/2014,Neighbourhood Services
WC50-1295,COVERGOLD,Premises,Premises-Repairs & Maintenance,"40000-REPAIRS,ALTERATIONS & MAINTENANCE-PREM",Revenue,349.00,11/11/2014,Regeneration
WC50-1296,CRAEGMOOR,Third Party Payments,Private Contractor Fees,73373-RESIDENTIAL & NURSING CARE PLACEMENTS,Revenue,"7,645.03",11/11/2014,Social Care & Inclusion
WC50-1297,CREATIVITY TEAM LIMITED,Supplies & Services,Services,63000-PROFESSIONAL FEES AND SERVICES,Revenue,250.00,01/11/2014,Neighbourhood Services
WC50-1298,CRH FENCING & SECURITY GROUP UK LTD T/A DARFEN DURAFENCING,Premises,Premises-Repairs & Maintenance,"40000-REPAIRS,ALTERATIONS & MAINTENANCE-PREM",Revenue,300.00,19/11/2014,Regeneration
WC50-1299,CROMWELL HOUSE,Third Party Payments,Private Contractor Fees,73373-RESIDENTIAL & NURSING CARE PLACEMENTS,Revenue,"5,903.44",11/11/2014,Social Care & Inclusion
WC50-1300,CROSSWAYS RESIDENTIAL HOME,Third Party Payments,Private Contractor Fees,73373-RESIDENTIAL & NURSING CARE PLACEMENTS,Revenue,"1,314.96",25/11/2014,Social Care & Inclusion
WC50-1301,CROW LANE PRIMARY SCHOOL,Transfer Payments,Transfer Payments,77300-ISB-FORMULA ALLOCATION,Revenue,510.02,27/11/2014,Childrens
WC50-1302,CROW LANE PRIMARY SCHOOL,Transfer Payments,Transfer Payments,77300-ISB-FORMULA ALLOCATION,Revenue,"4,000.00",27/11/2014,Childrens
WC50-1303,CRUCKTON HALL SCHOOL (SHREWS.) LTD,Third Party Payments,Grants to Other Orgs,66502-TOP UP FUNDING -GRANTS TO SCHOOLS,Revenue,"29,458.33",10/11/2014,Childrens
WC50-1304,CRYOSERVICE LTD T/A AIR PRODUCTS CRYOEASE SERVICES,Supplies & Services,"Equip,Furniture & Materials",60500-GENERAL MATERIALS,Revenue,267.12,21/11/2014,Neighbourhood Services
WC50-1305,CS COMMUNICATION SERVICES LTD,Supplies & Services,Communications & Computing,63602-COST OF RENTAL-TELEPHONES,Revenue,"4,206.25",10/11/2014,Resources
WC50-1306,CYGNET SOUND,Supplies & Services,Services,63000-PROFESSIONAL FEES AND SERVICES,Revenue,800.00,07/11/2014,Neighbourhood Services
WC50-1307,REDACTED,Transfer Payments,Transfer Payments,76422-DIRECT PAYMENTS TO SOCIAL SERVICES CLIENTS,Revenue,"1,008.00",18/11/2014,Social Care & Inclusion
WC50-1308,REDACTED,Transfer Payments,Transfer Payments,76422-DIRECT PAYMENTS TO SOCIAL SERVICES CLIENTS,Revenue,"1,289.44",11/11/2014,Social Care & Inclusion
WC50-1309,REDACTED,Supplies & Services,Other Supplies & Services,62515-MISCELLANEOUS SUPPLIES,Revenue,533.96,10/11/2014,Childrens
WC50-1310,REDACTED,Third Party Payments,Private Contractor Fees,74006-HOLIDAY/CHRISTMAS ALLOWANCE-FOSTER CARERS-OTH AGENCY PROVISION,Revenue,799.25,24/11/2014,Childrens
